Workbook

Sheet README
G3: TONEARM ALIGNMENT WORKBOOK
G5: by Graeme Dennes
G7: 2024-05-14
B9: Revision History
C10: 2021-09-24 Initial Release
C11: 2021-11-07 Correction to equalisation calculator
C12: 2022-03-22 Correction to the WTE derivative formula. My thanks to Peet Hickman.
C13: 2022-05-28 The Derivatives setting of the Solver tool has been changed to Central (differencing) to provide improved accuracy for the "perfect" results. My thanks to Peet Hickman.
C14: 2023-05-10 Minor overall improvements.
C15: 2024-05-14 1. Added the 'Tests' sheet, titled Experimenter's Tonearm Alignment Workshop, for experimental and insight purposes. This is not an alignment-optimising sheet.
C16: It provides for arbitrary input values of the five fundamental parameters: R1, R2, L, β and d, and shows plots of the resulting tracking distortion, WTE and TE.
C17: 2. The 'Perfect Löf C' sheet provides an option to lower the distortion at the inner or outer grooves, should this be required. Refer to the 'Perfect Löf C' sheet for details.
B19: Introduction
C20: This Excel workbook was created by the writer in 2008 but was not publicly released.
C21: Its fundamental purpose is to calculate the offset angle and overhang figures required to implement the tonearm alignment strategies and solutions from Löfgren (1938) and Stevenson (1966).
C22: This workbook and the writer's accompanying tonearm alignment book were enhanced in 2010 to incorporate the four "perfect" alignment solutions, which utilise the enhanced accuracy capabilities of Excel's Solver tool.
C23: The first public release of this Excel workbook was in 2021 to accompany the 2021 release of the writer's tonearm alignment book.
C25: Please note: This Excel workbook does not describe the strategies, techniques and calculations used by Löfgren and Stevenson to implement their alignment solutions.
C26: The writer's tonearm alignment book is the main reference for this Excel workbook.
C27: The latest releases of the tonearm alignment book and this Excel workbook may be downloaded from Vinyl Engine at:
C28: https://www.vinylengine.com/turntable_forum/viewtopic.php?f=46&t=4854
C29: The writer expresses his gratitude to JaS for hosting the files on Vinyl Engine.
B31: Tonearm Alignments
C32: This Excel workbook contains eight main alignment worksheets comprised of four 'perfect' sheets and four 'formula' sheets.
C33: The 'perfect' sheets are named 'Perfect Löf A', 'Perfect Löf B', 'Perfect Löf C' and 'Perfect Stev A'. These use the Excel Solver tool to provide the maximum possible accuracy for the calculated alignment figures.
C34: The 'formula' sheets are named 'Löf A', 'Löf B', 'Löf C' and 'Stev A'. These use the alignment formulas presented by their respective authors.
C35: This Excel workbook requires the use of the Solver tool. To install the Solver tool, refer below.
C37: A sheet named 'Perfect Löf C Trap' is included. It uses a worksheet-based composite trapezoidal rule numerical integrator and RMS distortion calculator to also calculate the 'perfect' offset angle and overhang
C38: figures for the 'Löfgren C' alignment. Although not as accurate as the 'Perfect Löf C' sheet (which uses a separate RMS distortion calculator, described below), it is included here for reference to the trapezoidal rule
C39: 'Perfect Löfgren C' worksheet calculator described in the writer's tonearm alignment book.
C41: A sheet named 'Löf EQN (46)' is included for historical and reference purposes to demonstrate the calculation of the mean and RMS distortion using Löfgren's EQN (46).
C42: Although the least accurate of the three distortion calculators provided in this workbook, the EQN (46) distortion formula is fully described in the writer's tonearm alignment book.
C44: The sheet named 'Tests' is included to enable experimentation with the five key alignment parameters: R1, R2, L, β and d and to observe their effects on the tracking distortion, WTE and TE by way of plots.
C45: Please note: The 'TESTS' sheet is not an alignment-optimising sheet.
B47: High-Accuracy WTE Formula
C48: All WTE calculations in this workbook use Löfgren's high-accuracy, no-approximation WTE formula: WTE = TAN(tracking error) / radius.
C49: The 2021 release of the writer's tonearm alignment book was revised to include this high-accuracy WTE formula.
C50: It replaces the small angle approximations (SAAs) formula used in Löfgren's EQN (22) and as was used in previous releases of this workbook (WTE = tracking error (radians) / radius).
B52: This Excel workbook contains 13 worksheets. The instructions for using the eight main alignment worksheets are provided on the worksheets.
C54: 1. This 'Readme' sheet.
C56: 2. 'Löf A' sheet, Löfgren's prime alignment strategy, 'Löfgren A'. Uses Löfgren's formulas. Calculates the optimum offset angle and overhang which minimises and equalises the magnitudes
C57: of the three WTE peaks.
C59: 3. 'Perfect Löf A' sheet, the 'Löfgren A' alignment calculated using the Excel Solver tool to provide the highest possible accuracy for the offset angle and overhang required.
C61: 4. 'Löf B' sheet, Löfgren's compromise alignment strategy, 'Löfgren B'. Uses Löfgren's formulas. Calculates the optimum overhang which minimises the RMS distortion for situations
C62: where the offset angle is fixed and non-optimum.
C64: 5. 'Perfect Löf B' sheet, the 'Löfgren B' alignment calculated using the Excel Solver tool to provide the highest possible accuracy for the overhang required.
C66: 6. 'Löf C' sheet, Löfgren's alternative alignment strategy, 'Löfgren C'. Uses the linear offset formula by Vladan Jovanovic and Löfgren's 'Löfgren B' overhang formula. Löfgren did not provide a solution
C67: for this alignment. Calculates the optimum offset angle and overhang which minimises the RMS distortion as the means to reduce the magnitude of the central WTE peak of the 'Löfgren A' alignment
C68: for situations where the magnitude may be considered objectionable, given that the WTE and distortion change only slowly in this area of the record playing surface.
C70: 7. 'Perfect Löf C' sheet, the 'Löfgren C' alignment calculated using the Excel Solver tool to provide the highest possible accuracy of the offset angle and overhang required.
C72: 8. 'Stev A' sheet, Stevenson's prime alignment strategy, 'Stevenson A'. Based on Stevenson's and Löfgren's formulas. Calculates the optimum offset angle and overhang which sets the WTE at the inner groove to zero.
C74: 9. 'Perfect Stev A' sheet, the 'Stevenson A' alignment calculated using the Excel Solver tool to provide the highest possible accuracy of the offset angle and overhang required.
C76: 10. 'Perfect Löf C Trap' sheet, an optional (but less accurate) 'perfect Löf C' alignment calculated using the Trapezoidal Rule integrator as described in the writer's tonearm alignment book (for reference purposes only).
C78: 11. 'Löf Eqn (46)' sheet, an optional distortion calculator based on Löfgren's EQN (46) as described in the writer's tonearm alignment book. (For historical and reference purposes only.)
C80: 12. 'Tests' sheet, provided to show graphs of tracking distortion, WTE and TE when the five key alignment parameters: R1, R2, L, β and d are manually selected to assist with experimental or what-if alignment situations.
C82: 13. 'Plots' sheet, showing the plots of tracking distortion and WTE between the groove radii R1 and R2 for the eight main alignment sheets. Provides adjustable recording parameters and equalisation options.
C83: Of great interest is the degree the four "formula" plots match the respective four "perfect' plots.
B85: Symbols used in this workbook
C86: WTE | D86: Weighted tracking error at radius R, TAN(TE) per mm
C87: TA | D87: Tracking angle at radius R in degrees
C88: TE | D88: Tracking error at radius R in degrees
C89: R1 | D89: Inner groove radius in mm
C90: R2 | D90: Outer groove radius in mm
C91: L | D91: Tonearm length in mm
C92: β | D92: Offset angle in degrees
C93: d | D93: Overhang in mm
C94: R01 | D94: Inner zero (null) radius in mm
C95: R02 | D95: Outer zero (null) radius in mm
C96: p | D96: Linear offset in mm
C97: M | D97: Mounting distance in mm
C98: Rw | D98: Radius in mm at the minimum of the weighted tracking error curve
C99: Ra | D99: Radius in mm at the minimum of the angular tracking error curve
C100: %RMS Tracking Distortion | E100: The %RMS second harmonic distortion of a 1 KHz tone due to WTE. The RIAA roll-off is included.
B102: Universal (Alignment-Independent) Formulas
C103: These Excel formulas are independent of the alignment method and may be universally applied.
C104: The formulas are exact, except where noted.
C105: Note that Excel's angular mode is radians.
C106: WTE = TAN ( ASIN ( ( R2 + L2 - M2 ) / ( 2 * L * R ) ) - β * PI / 180 ) / R
C107: TA = ASIN(( R2 + L2 – M2 ) / ( 2 * L * R )) * 180 / PI
C108: TE = TA – β
C109: M = L – d
C110: M = SQRT ( L2 – Ra2 )
C111: d = L – SQRT ( L2 – Ra2 )
C112: L2 – M2 = 2 * L * d – d2
C113: Ra2 = L2 – M2
C114: Ra2 = 2 * L * d – d2
C115: Ra2 = R01 * R02
C116: Rw = Ra2 / p <<< Uses small angle approximations. For maximum accuracy, use the Solver tool to find Rw as is done for the "perfect" sheets.
C117: p = L * sin β
C118: p = ( R01 + R02 ) / 2
C119: R01 = p –SQRT ( p2 – Ra2 )
C120: R02 = p + SQRT ( p2 – Ra2 )
B122: RMS Distortion Calculator
C123: Most worksheets call the RMS distortion program to calculate and display the RMS distortion figures shown on the worksheets.
C124: The program is located in the VBA module m_RMS_DISTORTION.
C125: The RMS distortion figures represent the level of second harmonic distortion caused by WTE for a 1 KHz tone with a maximum peak recorded velocity of 100 mm/sec and a turntable speed of 33 1/3 RPM.
C126: These constants are stored in the RMS distortion program. RIAA playback de-emphasis is included in the RMS distortion calculations.
C127: In this application, the RMS distortion results are usually accurate to the 15 significant digits displayed because of the exceptional accuracy of the RMS Distortion program and the smoothness of the WTE function.
C129: The RMS distortion program is called with five parameters in the order of: (1) radius R1 in mm, (2) radius R2 in mm, (3) arm length L in mm, (4) offset angle β in degrees, (5) overhang d in mm.
C130: As an example of calling with numeric values, the cell formula is of the form: =RMS_DISTORTION(60.325, 146.05, 250, 22, 16).
C131: As an example of calling with cell references, the cell formula is of the form: =RMS_DISTORTION(A1, B2, C3, D4, E5).
C132: Multiply the result by 100 for %RMS distortion.
B134: Playback Equalisation Calculator
C135: The workbook includes a VBA-coded playback equalisation calculator which is used by the 'Plots' sheet. The function name is EQUALISATION.
C136: It allows for the selection of the RIAA response, the IEC response or a flat (no EQ) response, and can provide its result as a gain figure or a decibel figure.
C137: It may also be called as a function by other programs for providing equalisation calculations.
C138: A complete explanation of the purpose, use and examples for using it are included at the beginning of the code in the VBA module m_EQUALISATION, so is not repeated here.
B140: Quick Calculator Box
C141: The alignment worksheets include a Quick Calculator box to calculate the WTE, tracking angle, tracking error and tracking distortion for the entered radius.
C142: The tracking distortion is based on a fundamental frequency of 1 KHz with RIAA correction.
B144: Unintentional Data Entry Protection for Worksheets
C145: For safety, all worksheets except the 'Plots' sheet are protected from unintentional (destructive) data entry via Excel's data validation rules. Only the worksheet data input cells allow entry of data.
C146: However, part of or all such protection may be readily removed via the data validation settings under Data tab / Data Tools group / Data Validation (small red circle).
C147: To protect a cell, range of cells or a worksheet against data entry, select the cell(s) then select Data tab / Data Tools group / Data Validation / Settings / Validation Criteria / Allow Text Length / Equal to / 0, then OK.
C148: To remove the protection from a cell, range of cells or a worksheet, select the cell(s) then select Data tab / Data Tools group / Data Validation / Settings / Clear All, then OK.
B150: Adding the Solver Tool in Excel
C151: The Excel Solver Add-in is a Microsoft Office add-in tool that is included when Excel is installed. It is not usually enabled by default. This workbook requires the Solver tool.
C152: Firstly, the Solver tool needs to be enabled in Excel as follows:
C153: 1. Open Excel.
C154: 2. In Excel 2010 and later, go to File > Options
C155: In Excel 2007, click the Microsoft Office Button and then click Excel Options.
C156: 3. On the left menu list, click Add-Ins, and then in the Manage box, select Excel Add-ins.
C157: 4. Click Go.
C158: 5. In the Add-Ins available box, click the Solver Add-in check box and then click OK.
C159: 6. After the Solver Add-in is enabled, the Solver command is available in the Analysis group on the Data tab.
C161: Secondly, the Solver tool needs to be added to the Visual Basic References as follows:
C162: 1. In Excel, click the Developer tab. (If not showing, the Developer option must be added separately).
C163: 2. Click the Visual Basic option in the Code group.
C164: 3. In the VBA window, click the Tools option, then click References…
C165: 4. Locate the Solver entry in the available References list then check the box alongside it.
C166: 5. Click OK to close the References window, then close the VBA window.
B168: Copyright © 2008, 2024 Graeme Dennes
C169: 1. This Excel workbook is free software: you may redistribute it and/or | J169: 2. This program is distributed in the hope that it will be useful, | P169: 3. See the GNU General Public License (GGPL) for more details.
C170: modify it under the terms of the GNU General Public License as | J170: but WITHOUT ANY WARRANTY; without even the implied warranty of | P170: A copy of the GNU General Public License is available at
C171: published by the Free Software Foundation, either version 3 of the | J171: MERCHANTABILITY or FITNESS FOR A PARTICULAR PURPOSE. | P171: http://www.gnu.org/licenses/gpl-3.0.html
C172: License, or (at your option) any later version, as long as this copyright | J172: See the GNU General Public License (GGPL) for more details.
C173: notice is included in full.

Sheet LÖF A
B2: INPUT | C2: Inner groove radius R1 = | D2: 60.325 | E2: mm | H2: QUICK CALCULATOR
B3: INPUT | C3: Outer groove radius R2 = | D3: 146.05 | E3: mm | F3: 'LÖFGREN A' CALCULATOR | H3: Enter radius in mm:
B4: INPUT | C4: Tonearm length L = | D4: 250 | E4: mm | F4: USING LÖFGREN'S EQUATIONS | H4: 60.325
B6: OUTPUT | C6: Offset angle β = | D6: =DEGREES(ASIN(($D$2*$D$3*($D$2+$D$3))/$D$4/(($D$2+$D$3)^2/4+$D$2*$D$3))) -> 21.9488704 | E6: degrees | H6: WTE: TAN(TE) per mm
B7: OUTPUT | C7: Overhang d = | D7: =$D$4-SQRT($D$4^2-$D$13) -> 16.50182275 | E7: mm | F7: INSTRUCTIONS | H7: =TAN(ASIN(($H$4^2+2*$D$4*$D$7-$D$7^2)/(2*$D$4*$H$4))-$D$6*PI()/180)/$H$4 -> 0.000204114308
F8: 1. Enter R1 into D2, R2 into D3, L into D4. | H8: Tracking Angle (degrees)
B9: OUTPUT | C9: Radius Rw = | D9: =(2*$D$2*$D$3)/($D$2+$D$3) -> 85.38307692 | E9: mm | F9: 2. The optimum offset angle β is shown in D6, | H9: =((DEGREES(ASIN((($H$4^2)+(2*$D$4*$D$7)-($D$7^2))/(2*$D$4*$H$4))))) -> 22.65432889
B10: OUTPUT | C10: Derivative of WTE (Rw) = | D10: =((1/$D$4-($D$4^2-$D$18^2+$D$9^2)/(2*$D$4*$D$9^2))*_xlfn.SEC($D$6*PI()/180-ASIN(($D$4^2-$D$18^2+$D$9^2)/(2*$D$4*$D$9)))^2)/($D$9*SQRT(1-($D$4^2-$D$18^2+$D$9^2)^2/(4*$D$4^2*$D$9^2)))+TAN($D$6*PI()/180-ASIN(($D$4^2-$D$18^2+$D$9^2)/(2*$D$4*$D$9)))/$D$9^2 -> 7.528603858e-09 | E10: TAN(TE) per mm2 | F10: and the optimum overhang d is shown in D7. | H10: Tracking Error (degrees)
B11: OUTPUT | C11: Radius Ra = | D11: =SQRT($D$13) -> 89.32301618 | E11: mm | F11: 3. The %RMS tracking distortion is shown in D27. | H11: =((DEGREES(ASIN((($H$4^2)+(2*$D$4*$D$7)-($D$7^2))/(2*$D$4*$H$4))))-$D$6) -> 0.7054584908
B12: OUTPUT | C12: Derivative of TE (Ra) = | D12: =($D$13-$D$4^2+$D$18^2)/(2*$D$4*$D$13)/SQRT(1-($D$13+$D$4^2-$D$18^2)^2/(4*$D$4^2*$D$13)) -> 1.952764679e-18 | E12: TAN(TE) per mm | H12: %Tracking Distortion (includes RIAA term)
B13: OUTPUT | C13: Radius Ra2 = | D13: =(2*($D$2*$D$3)^2)/(($D$2+$D$3)^2/4+$D$2*$D$3) -> 7978.60122 | E13: mm2 | H13: =ABS($H$7)*90/PI()*0.742288880049004*100 -> 0.4340492802
B14: OUTPUT | C14: Inner null radius R01 = | D14: =IF($D$17^2-$D$13<0, "No solution possible",IF($D$17-SQRT($D$17^2-$D$13)<$D$2,"No solution possible",$D$17-SQRT($D$17^2-$D$13))) -> 65.99804637 | E14: mm
B15: OUTPUT | C15: Outer null radius R02 = | D15: =IF($D$17^2-$D$13<0, "No solution possible",IF($D$17+SQRT($D$17^2-$D$13)>$D$3,"No solution possible",$D$17+SQRT($D$17^2-$D$13))) -> 120.8914757 | E15: mm | H15: Löfgren's Alignment Strategy:
B16: OUTPUT | C16: sin β = | D16: =SIN($D$6*PI()/180) -> 0.3737790442 | H16: Minimise and equalise the magnitudes of
B17: OUTPUT | C17: Linear offset p = | D17: =$D$4*$D$16 -> 93.44476104 | E17: mm | H17: the three weighted tracking error peaks.
B18: OUTPUT | C18: Mounting distance M = | D18: =$D$4-$D$7 -> 233.4981773 | E18: mm
B19: OUTPUT | C19: WTE at R1 = | D19: =TAN(ASIN(($D$2^2+2*$D$4*$D$7-$D$7^2)/(2*$D$4*$D$2))-$D$6*PI()/180)/$D$2 -> 0.000204114308 | E19: TAN(TE) per mm
B20: OUTPUT | C20: WTE at RW = | D20: =TAN(ASIN(($D$9^2+2*$D$4*$D$7-$D$7^2)/(2*$D$4*$D$9))-$D$6*PI()/180)/$D$9 -> -0.0002029147135 | E20: TAN(TE) per mm
B21: OUTPUT | C21: WTE at R2 = | D21: =TAN(ASIN(($D$3^2+2*$D$4*$D$7-$D$7^2)/(2*$D$4*$D$3))-$D$6*PI()/180)/$D$3 -> 0.0002049191075 | E21: TAN(TE) per mm
B22: OUTPUT | C22: %Tracking Distortion at R1 = | D22: =ABS($D$19)*90/PI()*0.742288880049004*100 -> 0.4340492802 | E22: (Includes RIAA term)
B23: OUTPUT | C23: %Tracking Distortion at RW = | D23: =ABS($D$20)*90/PI()*0.742288880049004*100 -> 0.4314983412 | E23: (Includes RIAA term)
B24: OUTPUT | C24: %Tracking Distortion at R2 = | D24: =ABS($D$21)*90/PI()*0.742288880049004*100 -> 0.4357606871 | E24: (Includes RIAA term)
B25: OUTPUT | C25: WTE at R1 - WTE at R2 = | D25: =$D$19-$D$21 -> -8.047994733e-07 | E25: TAN(TE) per mm
B26: OUTPUT | C26: WTE at R1 + WTE at RW = | D26: =$D$19+$D$20 -> 1.199594538e-06 | E26: TAN(TE) per mm
B27: OUTPUT | C27: %RMS Tracking Distortion = | D27: =RMS_DISTORTION($D$2,$D$3,$D$4,$D$6,$D$7)*100 -> 0.287637896 | E27: (Includes RIAA term)
F45: =RIGHT(CELL("filename",B1),LEN(CELL("filename",B1))-FIND("]",CELL("filename",B1))) -> LÖF A

Sheet PERFECT LÖF A
B2: INPUT | C2: Inner groove radius R1 = | D2: 60.325 | E2: mm | H2: QUICK CALCULATOR
B3: INPUT | C3: Outer groove radius R2 = | D3: 146.05 | E3: mm | F3: 'PERFECT LÖFGREN A' CALCULATOR | H3: Enter radius in mm:
B4: INPUT | C4: Tonearm length L = | D4: 250 | E4: mm | F4: USING THE SOLVER TOOL | H4: 146.05
B6: INPUT/OUTPUT | C6: Offset angle β = | D6: 21.96299731 | E6: degrees | F6: INSTRUCTIONS | H6: WTE: TAN(TE) per mm
B7: INPUT/OUTPUT | C7: Overhang d = | D7: 16.5157297 | E7: mm | F7: 1. Enter R1 into D2, R2 into D3, L into D4. | H7: =TAN(ASIN(($H$4^2+2*$D$4*$D$7-$D$7^2)/(2*$D$4*$H$4))-$D$6*PI()/180)/$H$4 -> 0.0002038948297
F8: 2. Click the orange button to run the Solver. | H8: Tracking Angle (degrees)
B9: OUTPUT | C9: Radius Rw = | D9: 85.38851214 | E9: mm | F9: 3. The "perfect" offset angle β is shown in D6 and | H9: =((DEGREES(ASIN((($H$4^2)+(2*$D$4*$D$7)-($D$7^2))/(2*$D$4*$H$4))))) -> 23.66869508
B10: OUTPUT | C10: Derivative of WTE (Rw) = | D10: =((1/$D$4-($D$4^2-$D$18^2+$D$9^2)/(2*$D$4*$D$9^2))*_xlfn.SEC($D$6*PI()/180-ASIN(($D$4^2-$D$18^2+$D$9^2)/(2*$D$4*$D$9)))^2)/($D$9*SQRT(1-($D$4^2-$D$18^2+$D$9^2)^2/(4*$D$4^2*$D$9^2)))+TAN($D$6*PI()/180-ASIN(($D$4^2-$D$18^2+$D$9^2)/(2*$D$4*$D$9)))/$D$9^2 -> 3.625301014e-19 | E10: TAN(TE) per mm2 | F10: the "perfect" overhang d is shown in D7. | H10: Tracking Error (degrees)
B11: OUTPUT | C11: Radius Ra = | D11: =SQRT($D$13) -> 89.35936171 | E11: mm | F11: 4. The %RMS tracking distortion is shown in D27. | H11: =((DEGREES(ASIN((($H$4^2)+(2*$D$4*$D$7)-($D$7^2))/(2*$D$4*$H$4))))-$D$6) -> 1.705697771
B12: OUTPUT | C12: Derivative of TE (Ra) = | D12: =($D$13-$D$4^2+$D$18^2)/(2*$D$4*$D$13)/SQRT(1-($D$13+$D$4^2-$D$18^2)^2/(4*$D$4^2*$D$13)) -> 0 | E12: TAN(TE) per mm | H12: %Tracking Distortion (includes RIAA term)
B13: OUTPUT | C13: Radius Ra2 = | D13: =$D$4^2-$D$18^2 -> 7985.095525 | E13: mm2 | F13: %RMS Tracking Distortion Calculator | H13: =ABS($H$7)*90/PI()*0.742288880049004*100 -> 0.4335825594
B14: OUTPUT | C14: Inner null radius R01 = | D14: =IF($D$17^2-$D$13<0, "No solution possible",IF($D$17-SQRT($D$17^2-$D$13)<$D$2,"No solution possible",$D$17-SQRT($D$17^2-$D$13))) -> 65.97893104 | E14: mm | F14: 1. Enter arm length L in D4, offset angle β in D6 and overhang d in D7.
B15: OUTPUT | C15: Outer null radius R02 = | D15: =IF($D$17^2-$D$13<0, "No solution possible",IF($D$17+SQRT($D$17^2-$D$13)>$D$3,"No solution possible",$D$17+SQRT($D$17^2-$D$13))) -> 121.0249302 | E15: mm | F15: 2. Read the resulting %RMS tracking distortion in D27. | H15: Löfgren's Alignment Strategy:
B16: OUTPUT | C16: sin β = | D16: =SIN($D$6*PI()/180) -> 0.3740077225 | H16: Minimise and equalise the magnitudes of
B17: OUTPUT | C17: Linear offset p = | D17: =$D$4*$D$16 -> 93.50193063 | E17: mm | F17: SOLVER SETTINGS | H17: the three weighted tracking error peaks.
B18: OUTPUT | C18: Mounting distance M = | D18: =$D$4-$D$7 -> 233.4842703 | E18: mm | F18: Objective Cell = D25 (WTE R1 - WTE R2) Equal to Value of: 0
B19: OUTPUT | C19: WTE at R1 = | D19: =TAN(ASIN(($D$2^2+2*$D$4*$D$7-$D$7^2)/(2*$D$4*$D$2))-$D$6*PI()/180)/$D$2 -> 0.0002038948297 | E19: TAN(TE) per mm | F19: Changing Cells = D6 (β), D7 (d), D9 (Rw)
B20: OPTPUT | C20: WTE at RW = | D20: =TAN(ASIN(($D$9^2+2*$D$4*$D$7-$D$7^2)/(2*$D$4*$D$9))-$D$6*PI()/180)/$D$9 -> -0.0002038948297 | E20: TAN(TE) per mm | F20: Constraints: D10 = 0 (Derivative of WTE function = 0 at Rw)
B21: OUTPUT | C21: WTE at R2 = | D21: =TAN(ASIN(($D$3^2+2*$D$4*$D$7-$D$7^2)/(2*$D$4*$D$3))-$D$6*PI()/180)/$D$3 -> 0.0002038948297 | E21: TAN(TE) per mm | F21: D26 = 0 (WTE R1 + WTE Rw = 0)
B22: OUTPUT | C22: %Tracking Distortion at R1 = | D22: =ABS($D$19)*90/PI()*0.742288880049004*100 -> 0.4335825594 | E22: (Includes RIAA term) | F22: Make Unconstrained Variables Non-Negative.
B23: OUTPUT | C23: %Tracking Distortion at RW = | D23: =ABS($D$20)*90/PI()*0.742288880049004*100 -> 0.4335825594 | E23: (Includes RIAA term) | F23: Solving Method: GRG Nonlinear. Constraint Precision: 1E-14
B24: OUTPUT | C24: %Tracking Distortion at R2 = | D24: =ABS($D$21)*90/PI()*0.742288880049004*100 -> 0.4335825594 | E24: (Includes RIAA term) | F24: Use Automatic Scaling. Max Time: 100 seconds.
B25: OUTPUT | C25: WTE at R1 - WTE at R2 = | D25: =$D$19-$D$21 -> -4.878909776e-19 | E25: TAN(TE) per mm | F25: Iterations: 10000. Convergence: 1E-14 Derivatives: Central.
B26: OUTPUT | C26: WTE at R1 + WTE at RW = | D26: =$D$19+$D$20 -> 1.409462824e-18 | E26: TAN(TE) per mm | F26: Require Bounds on Variables.
B27: OUTPUT | C27: %RMS Tracking Distortion = | D27: =RMS_DISTORTION($D$2,$D$3,$D$4,$D$6,$D$7)*100 -> 0.2883982951 | E27: (Includes RIAA term)
E43: =RIGHT(CELL("filename",B1),LEN(CELL("filename",B1))-FIND("]",CELL("filename",B1))) -> PERFECT LÖF A

Sheet LÖF B
B2: INPUT | C2: Inner groove radius R1 = | D2: 60.325 | E2: mm | H2: QUICK CALCULATOR
B3: INPUT | C3: Outer groove radius R2 = | D3: 146.05 | E3: mm | F3: 'LÖFGREN B' CALCULATOR | H3: Enter radius in mm:
B4: INPUT | C4: Tonearm length L = | D4: 250 | E4: mm | F4: USING LÖFGREN'S EQUATIONS | H4: 146.05
B5: INPUT | C5: Offset angle β = | D5: 21 | E5: degrees
H6: WTE: TAN(TE) per mm
B7: OUTPUT | C7: Overhang d = | D7: =$D$4-SQRT($D$4^2-$D$13) -> 15.63580753 | E7: mm | F7: INSTRUCTIONS | H7: =TAN(ASIN(($H$4^2+2*$D$4*$D$7-$D$7^2)/(2*$D$4*$H$4))-$D$5*PI()/180)/$H$4 -> 0.0002769781324
F8: 1. Enter R1 into D2, R2 into D3, L into D4. | H8: Tracking Angle (degrees)
B9: OUTPUT | C9: Radius Rw = | D9: =$D$13/$D$17 -> 84.53239526 | E9: mm | F9: 2. Enter offset angle β into D5. | H9: =((DEGREES(ASIN((($H$4^2)+(2*$D$4*$D$7)-($D$7^2))/(2*$D$4*$H$4))))) -> 23.31650343
B10: OUTPUT | C10: Derivative of WTE (Rw) = | D10: =((1/$D$4-($D$4^2-$D$18^2+$D$9^2)/(2*$D$4*$D$9^2))*_xlfn.SEC($D$5*PI()/180-ASIN(($D$4^2-$D$18^2+$D$9^2)/(2*$D$4*$D$9)))^2)/($D$9*SQRT(1-($D$4^2-$D$18^2+$D$9^2)^2/(4*$D$4^2*$D$9^2)))+TAN($D$5*PI()/180-ASIN(($D$4^2-$D$18^2+$D$9^2)/(2*$D$4*$D$9)))/$D$9^2 -> 2.953277991e-09 | E10: TAN(TE) per mm2 | F10: 3. The optimum overhang d is shown in D7. | H10: Tracking Error (degrees)
B11: OUTPUT | C11: Radius Ra = | D11: =SQRT($D$13) -> 87.02542898 | E11: mm | F11: 4. The %RMS tracking distortion is shown in D27. | H11: =((DEGREES(ASIN((($H$4^2)+(2*$D$4*$D$7)-($D$7^2))/(2*$D$4*$H$4))))-$D$5) -> 2.316503434
B12: OUTPUT | C12: Derivative of TE (Ra) = | D12: =($D$13-$D$4^2+$D$18^2)/(2*$D$4*$D$13)/SQRT(1-($D$13+$D$4^2-$D$18^2)^2/(4*$D$4^2*$D$13)) -> -2.049635152e-18 | E12: TAN(TE) per mm | H12: %Tracking Distortion (includes RIAA term)
B13: OUTPUT | C13: Radius Ra2 = | D13: =3*$D$2*$D$3*($D$17*($D$2+$D$3)-$D$2*$D$3)/(($D$2+$D$3)^2-$D$2*$D$3) -> 7573.425289 | E13: mm2 | H13: =ABS($H$7)*90/PI()*0.742288880049004*100 -> 0.5889942756
B14: OUTPUT | C14: Inner null radius R01 = | D14: =IF($D$17^2-$D$13<0, "No solution possible",IF($D$17-SQRT($D$17^2-$D$13)<$D$2,"No solution possible",$D$17-SQRT($D$17^2-$D$13))) -> 68.30116978 | E14: mm
B15: OUTPUT | C15: Outer null radius R02 = | D15: =IF($D$17^2-$D$13<0, "No solution possible",IF($D$17+SQRT($D$17^2-$D$13)>$D$3,"No solution possible",$D$17+SQRT($D$17^2-$D$13))) -> 110.882805 | E15: mm | H15: Löfgren's Alignment Strategy:
B16: OUTPUT | C16: sin β = | D16: =SIN($D$5*PI()/180) -> 0.3583679495 | H16: A compromise alignment which minimises
B17: OUTPUT | C17: Linear offset p = | D17: =$D$4*$D$16 -> 89.59198739 | E17: mm | H17: the RMS distortion for when the offset angle
B18: OUTPUT | C18: Mounting distance M = | D18: =$D$4-$D$7 -> 234.3641925 | E18: mm | H18: is fixed and non-optimum.
B19: OUTPUT | C19: WTE at R1 = | D19: =TAN(ASIN(($D$2^2+2*$D$4*$D$7-$D$7^2)/(2*$D$4*$D$2))-$D$5*PI()/180)/$D$2 -> 0.0002380727536 | E19: TAN(TE) per mm
B20: OUTPUT | C20: WTE at RW = | D20: =TAN(ASIN(($D$9^2+2*$D$4*$D$7-$D$7^2)/(2*$D$4*$D$9))-$D$5*PI()/180)/$D$9 -> -0.0001279662033 | E20: TAN(TE) per mm
B21: OUTPUT | C21: WTE at R2 = | D21: =TAN(ASIN(($D$3^2+2*$D$4*$D$7-$D$7^2)/(2*$D$4*$D$3))-$D$5*PI()/180)/$D$3 -> 0.0002769781324 | E21: TAN(TE) per mm
B22: OUTPUT | C22: %Tracking Distortion at R1 = | D22: =ABS($D$19)*90/PI()*0.742288880049004*100 -> 0.5062619487 | E22: (Includes RIAA term)
B23: OUTPUT | C23: %Tracking Distortion at RW = | D23: =ABS($D$20)*90/PI()*0.742288880049004*100 -> 0.2721202593 | E23: (Includes RIAA term)
B24: OUTPUT | C24: %Tracking Distortion at R2 = | D24: =ABS($D$21)*90/PI()*0.742288880049004*100 -> 0.5889942756 | E24: (Includes RIAA term)
B25: OUTPUT | C25: WTE at R1 - WTE at R2 = | D25: =$D$19-$D$21 -> -3.890537879e-05 | E25: TAN(TE) per mm
B26: OUTPUT | C26: WTE at R1 + WTE at RW = | D26: =$D$19+$D$20 -> 0.0001101065503 | E26: TAN(TE) per mm
B27: OUTPUT | C27: %RMS Tracking Distortion = | D27: =RMS_DISTORTION($D$2,$D$3,$D$4,$D$5,$D$7)*100 -> 0.2698688578 | E27: (Includes RIAA term)
E45: =RIGHT(CELL("filename",B1),LEN(CELL("filename",B1))-FIND("]",CELL("filename",B1))) -> LÖF B

Sheet PERFECT LÖF B
B2: INPUT | C2: Inner groove radius R1 = | D2: 60.325 | E2: mm | H2: QUICK CALCULATOR
B3: INPUT | C3: Outer groove radius R2 = | D3: 146.05 | E3: mm | F3: 'PERFECT LÖFGREN B' CALCULATOR | H3: Enter radius in mm:
B4: INPUT | C4: Tonearm length L = | D4: 250 | E4: mm | F4: USING THE SOLVER TOOL | H4: 146.05
B5: INPUT | C5: Fixed offset angle β = | D5: 21 | E5: degrees
F6: INSTRUCTIONS | H6: WTE: TAN(TE) per mm
B7: INPUT/OUTPUT | C7: Overhang d = | D7: 15.63038032 | E7: mm | F7: 1. Enter R1 into D2, R2 into D3, L into D4. | H7: =TAN(ASIN(($H$4^2+2*$D$4*$D$7-$D$7^2)/(2*$D$4*$H$4))-$D$5*PI()/180)/$H$4 -> 0.0002767179751
F8: 2. Enter the fixed, non-optimum offset angle β into D5. | H8: Tracking Angle (degrees)
B9: OUTPUT | C9: Radius Rw = | D9: 84.49928658 | E9: mm | F9: 3. Click the orange button to run the Solver. | H9: =((DEGREES(ASIN((($H$4^2)+(2*$D$4*$D$7)-($D$7^2))/(2*$D$4*$H$4))))) -> 23.31432998
B10: OUTPUT | C10: Derivative of WTE (Rw) = | D10: =((1/$D$4-($D$4^2-$D$18^2+$D$9^2)/(2*$D$4*$D$9^2))*_xlfn.SEC($D$5*PI()/180-ASIN(($D$4^2-$D$18^2+$D$9^2)/(2*$D$4*$D$9)))^2)/($D$9*SQRT(1-($D$4^2-$D$18^2+$D$9^2)^2/(4*$D$4^2*$D$9^2)))+TAN($D$5*PI()/180-ASIN(($D$4^2-$D$18^2+$D$9^2)/(2*$D$4*$D$9)))/$D$9^2 -> 5.35710985e-15 | E10: TAN(TE) per mm2 | F10: 4. Read the "perfect" overhang d in D7. | H10: Tracking Error (degrees)
B11: OUTPUT | C11: Radius Ra = | D11: =SQRT($D$13) -> 87.01081181 | E11: mm | F11: 5. The %RMS tracking distortion is shown in D27. | H11: =((DEGREES(ASIN((($H$4^2)+(2*$D$4*$D$7)-($D$7^2))/(2*$D$4*$H$4))))-$D$5) -> 2.314329979
B12: OUTPUT | C12: Derivative of TE (Ra) = | D12: =($D$13-$D$4^2+$D$18^2)/(2*$D$4*$D$13)/SQRT(1-($D$13+$D$4^2-$D$18^2)^2/(4*$D$4^2*$D$13)) -> 0 | E12: TAN(TE) per mm | H12: %Tracking Distortion (includes RIAA term)
B13: OUTPUT | C13: Radius Ra2 = | D13: =$D$4^2-$D$18^2 -> 7570.881371 | E13: mm2 | F13: %RMS Tracking Distortion Calculator | H13: =ABS($H$7)*90/PI()*0.742288880049004*100 -> 0.5884410508
B14: OUTPUT | C14: Inner null radius R01 = | D14: =IF($D$17^2-$D$13<0, "No solution possible",IF($D$17-SQRT($D$17^2-$D$13)<$D$2,"No solution possible",$D$17-SQRT($D$17^2-$D$13))) -> 68.24151121 | E14: mm | F14: 1. Enter arm length L in D4, offset angle β in D5 and overhang d in D7.
B15: OUTPUT | C15: Outer null radius R02 = | D15: =IF($D$17^2-$D$13<0, "No solution possible",IF($D$17+SQRT($D$17^2-$D$13)>$D$3,"No solution possible",$D$17+SQRT($D$17^2-$D$13))) -> 110.9424636 | E15: mm | F15: 2. Read the resulting %RMS tracking distortion in D27. | H15: Löfgren's Alignment Strategy:
B16: OUTPUT | C16: sin β = | D16: =SIN($D$5*PI()/180) -> 0.3583679495 | H16: A compromise alignment which minimises
B17: OUTPUT | C17: Linear offset p = | D17: =$D$4*$D$16 -> 89.59198739 | E17: mm | F17: SOLVER SETTINGS | H17: the RMS distortion for when the offset angle
B18: OUTPUT | C18: Mounting distance M = | D18: =$D$4-$D$7 -> 234.3696197 | E18: mm | F18: Objective Cell: D27 (%RMS Tracking Distortion) Equal to: Minimum | H18: is fixed and non-optimum.
B19: OUTPUT | C19: WTE at R1 = | D19: =TAN(ASIN(($D$2^2+2*$D$4*$D$7-$D$7^2)/(2*$D$4*$D$2))-$D$5*PI()/180)/$D$2 -> 0.0002365664464 | E19: TAN(TE) per mm | F19: Changing Cells: D7 (d), D9 (Rw)
B20: OUTPUT | C20: WTE at RW = | D20: =TAN(ASIN(($D$9^2+2*$D$4*$D$7-$D$7^2)/(2*$D$4*$D$9))-$D$5*PI()/180)/$D$9 -> -0.0001287261887 | E20: TAN(TE) per mm | F20: Constraint: D10 = 0 (Derivative of WTE function = 0 at Rw)
B21: OUTPUT | C21: WTE at R2 = | D21: =TAN(ASIN(($D$3^2+2*$D$4*$D$7-$D$7^2)/(2*$D$4*$D$3))-$D$5*PI()/180)/$D$3 -> 0.0002767179751 | E21: TAN(TE) per mm | F21: Make Unconstrained Variables Non-Negative.
B22: OUTPUT | C22: %Tracking Distortion at R1 = | D22: =ABS($D$19)*90/PI()*0.742288880049004*100 -> 0.503058785 | E22: (Includes RIAA term) | F22: Solving Method: GRG Nonlinear. Constraint Precision: 1E-14
B23: OUTPUT | C23: %Tracking Distortion at RW = | D23: =ABS($D$20)*90/PI()*0.742288880049004*100 -> 0.2737363689 | E23: (Includes RIAA term) | F23: Use Automatic Scaling. Max Time: 100 seconds.
B24: OUTPUT | C24: %Tracking Distortion at R2 = | D24: =ABS($D$21)*90/PI()*0.742288880049004*100 -> 0.5884410508 | E24: (Includes RIAA term) | F24: Iterations: 10000. Convergence: 1E-14 Derivatives: Central.
B25: OUTPUT | C25: WTE at R1 - WTE at R2 = | D25: =$D$19-$D$21 -> -4.015152864e-05 | E25: TAN(TE) per mm | F25: Require Bounds on Variables.
B26: OUTPUT | C26: WTE at R1 + WTE at RW = | D26: =$D$19+$D$20 -> 0.0001078402578 | E26: TAN(TE) per mm
B27: OUTPUT | C27: %RMS Tracking Distortion = | D27: =RMS_DISTORTION($D$2,$D$3,$D$4,$D$5,$D$7)*100 -> 0.2698647594 | E27: (Includes RIAA term)
E43: =RIGHT(CELL("filename",B1),LEN(CELL("filename",B1))-FIND("]",CELL("filename",B1))) -> PERFECT LÖF B

Sheet LÖF C
B2: INPUT | C2: Inner groove radius R1 = | D2: 60.325 | E2: mm | H2: QUICK CALCULATOR
B3: INPUT | C3: Outer groove radius R2 = | D3: 146.05 | E3: mm | F3: 'LÖFGREN C' CALCULATOR | H3: Enter radius in mm:
B4: INPUT | C4: Tonearm length L = | D4: 250 | E4: mm | F4: USING LÖFGREN'S AND JOVANOVIC'S EQUATIONS | H4: 146.05
B6: OUTPUT | C6: Offset angle β = | D6: =DEGREES(ASIN($D$17/$D$4)) -> 21.82842702 | E6: degrees | H6: WTE: TAN(TE) per mm
B7: OUTPUT | C7: Overhang d = | D7: =$D$4-SQRT($D$4^2-$D$13) -> 16.79798797 | E7: mm | F7: INSTRUCTIONS | H7: =TAN(ASIN(($H$4^2+2*$D$4*$D$7-$D$7^2)/(2*$D$4*$H$4))-$D$6*PI()/180)/$H$4 -> 0.0002334975724
F8: 1. Enter R1 into D2, R2 into D3, L into D4. | H8: Tracking Angle (degrees)
B9: OUTPUT | C9: Radius Rw = | D9: =$D$13/$D$17 -> 87.31791782 | E9: mm | F9: 2. The optimum offset angle β is shown in D6, | H9: =((DEGREES(ASIN((($H$4^2)+(2*$D$4*$D$7)-($D$7^2))/(2*$D$4*$H$4))))) -> 23.78158913
B10: OUTPUT | C10: Derivative of WTE (Rw) = | D10: =((1/$D$4-($D$4^2-$D$18^2+$D$9^2)/(2*$D$4*$D$9^2))*_xlfn.SEC($D$6*PI()/180-ASIN(($D$4^2-$D$18^2+$D$9^2)/(2*$D$4*$D$9)))^2)/($D$9*SQRT(1-($D$4^2-$D$18^2+$D$9^2)^2/(4*$D$4^2*$D$9^2)))+TAN($D$6*PI()/180-ASIN(($D$4^2-$D$18^2+$D$9^2)/(2*$D$4*$D$9)))/$D$9^2 -> 3.607640615e-09 | E10: TAN(TE) per mm2 | F10: and the optimum overhang d in D7. | H10: Tracking Error (degrees)
B11: OUTPUT | C11: Radius Ra = | D11: =SQRT($D$13) -> 90.09340479 | E11: mm | F11: 3. The %RMS tracking distortion is shown in D27. | H11: =((DEGREES(ASIN((($H$4^2)+(2*$D$4*$D$7)-($D$7^2))/(2*$D$4*$H$4))))-$D$6) -> 1.953162112
B12: OUTPUT | C12: Derivative of TE (Ra) = | D12: =($D$13-$D$4^2+$D$18^2)/(2*$D$4*$D$13)/SQRT(1-($D$13+$D$4^2-$D$18^2)^2/(4*$D$4^2*$D$13)) -> 0 | E12: TAN(TE) per mm | H12: %Tracking Distortion (includes RIAA term)
B13: OUTPUT | C13: Radius Ra2 = | D13: =(3*$D$2*$D$3*($D$17*($D$2+$D$3)-$D$2*$D$3))/($D$2^2+$D$2*$D$3+$D$3^2) -> 8116.821587 | E13: mm2 | H13: =ABS($H$7)*90/PI()*0.742288880049004*100 -> 0.4965328212
B14: OUTPUT | C14: Inner null radius R01 = | D14: =IF($D$17^2-$D$13<0, "No solution possible",IF($D$17-SQRT($D$17^2-$D$13)<$D$2,"No solution possible",$D$17-SQRT($D$17^2-$D$13))) -> 70.06162603 | E14: mm
B15: OUTPUT | C15: Outer null radius R02 = | D15: =IF($D$17^2-$D$13<0, "No solution possible",IF($D$17+SQRT($D$17^2-$D$13)>$D$3,"No solution possible",$D$17+SQRT($D$17^2-$D$13))) -> 115.8526007 | E15: mm | F15: EQUATION-BASED 'LÖFGREN C' ALIGNMENT | H15: Löfgren's Alignment Strategy:
B16: OUTPUT | C16: sin β = | D16: =$D$17/$D$4 -> 0.3718284535 | F16: This is an historic first! | H16: An alternative alignment to address possible
B17: OUTPUT | C17: Linear offset p = | D17: =2*($D$2*$D$3*(2*($D$2^2+$D$2*$D$3+$D$3^2)*LN($D$3/$D$2)-3*($D$3^2-$D$2^2))/($D$3-$D$2)^3)/((1+$D$2*$D$3/$D$4^2)+SQRT((1+$D$2*$D$3/$D$4^2)^2-4*($D$2*$D$3*(2*($D$2^2+$D$2*$D$3+$D$3^2)*LN($D$3/$D$2)-3*($D$3^2-$D$2^2))/($D$3-$D$2)^3)^2/$D$4^2)) -> 92.95711338 | E17: mm | F17: This alignment is made possible by the development of an equation | H17: objections to the magnitude of the central WTE
B18: OUTPUT | C18: Mounting distance M = | D18: =$D$4-$D$7 -> 233.202012 | E18: mm | F18: for the linear offset p by Vladan Jovanovic in 2021, from which | H18: peak of the 'Löfgren A' alignment.
B19: OUTPUT | C19: WTE at R1 = | D19: =TAN(ASIN(($D$2^2+2*$D$4*$D$7-$D$7^2)/(2*$D$4*$D$2))-$D$6*PI()/180)/$D$2 -> 0.00032139177 | E19: TAN(TE) per mm | F19: the offset angle is calculated. Although Löfgren provided
B20: OUTPUT | C20: WTE at RW = | D20: =TAN(ASIN(($D$9^2+2*$D$4*$D$7-$D$7^2)/(2*$D$4*$D$9))-$D$6*PI()/180)/$D$9 -> -0.0001388141409 | E20: TAN(TE) per mm | F20: a solution for the overhang for the Löfgren C alignment,
B21: OUTPUT | C21: WTE at R2 = | D21: =TAN(ASIN(($D$3^2+2*$D$4*$D$7-$D$7^2)/(2*$D$4*$D$3))-$D$6*PI()/180)/$D$3 -> 0.0002334975724 | E21: TAN(TE) per mm | F21: a solution for the offset angle was not given. We now have it!
B22: OUTPUT | C22: %Tracking Distortion at R1 = | D22: =ABS($D$19)*90/PI()*0.742288880049004*100 -> 0.6834399204 | E22: (Includes RIAA term)
B23: OUTPUT | C23: %Tracking Distortion at RW = | D23: =ABS($D$20)*90/PI()*0.742288880049004*100 -> 0.2951884095 | E23: (Includes RIAA term)
B24: OUTPUT | C24: %Tracking Distortion at R2 = | D24: =ABS($D$21)*90/PI()*0.742288880049004*100 -> 0.4965328212 | E24: (Includes RIAA term)
B25: OUTPUT | C25: WTE at R1 - WTE at R2 = | D25: =$D$19-$D$21 -> 8.789419762e-05 | E25: TAN(TE) per mm
B26: OUTPUT | C26: WTE at R1 + WTE at RW = | D26: =$D$19+$D$20 -> 0.000182577629 | E26: TAN(TE) per mm
B27: OUTPUT | C27: %RMS Tracking Distortion = | D27: =RMS_DISTORTION($D$2,$D$3,$D$4,$D$6,$D$7)*100 -> 0.2584007644 | E27: (Includes RIAA term)
E45: =RIGHT(CELL("filename",B1),LEN(CELL("filename",B1))-FIND("]",CELL("filename",B1))) -> LÖF C

Sheet PERFECT LÖF C
B2: INPUT | C2: Inner groove radius R1 = | D2: 60.325 | E2: mm | H2: QUICK CALCULATOR
B3: INPUT | C3: Outer groove radius R2 = | D3: 146.05 | E3: mm | F3: 'PERFECT LÖFGREN C' CALCULATOR | H3: Enter radius in mm:
B4: INPUT | C4: Tonearm length L = | D4: 250 | E4: mm | F4: USING THE SOLVER TOOL | H4: 146.05
B6: INPUT/OUTPUT | C6: Offset angle β = | D6: 21.84051542 | E6: degrees | F6: INSTRUCTIONS | H6: WTE: TAN(TE) per mm | J6: INPUT | K6: Q = | L6: 0
B7: INPUT/OUTPUT | C7: Overhang d = | D7: 16.80913371 | E7: mm | F7: 1. Enter R1 into D2, R2 into D3, L into D4. | H7: =TAN(ASIN(($H$4^2+2*$D$4*$D$7-$D$7^2)/(2*$D$4*$H$4))-$D$6*PI()/180)/$H$4 -> 0.0002325845629
F8: 2. Enter Q into L6 (upper right). | H8: Tracking Angle (degrees) | J8: If Q = 0, the 'PERFECT LÖF C'
B9: OUTPUT | C9: Radius Rw = | D9: 87.32173703 | E9: mm | F9: 3. Click the orange button to run the Solver. | H9: =((DEGREES(ASIN((($H$4^2)+(2*$D$4*$D$7)-($D$7^2))/(2*$D$4*$H$4))))) -> 23.78604627 | J9: alignment solution is provided.
B10: OUTPUT | C10: Derivative of WTE (Rw) = | D10: =((1/$D$4-($D$4^2-$D$18^2+$D$9^2)/(2*$D$4*$D$9^2))*_xlfn.SEC($D$6*PI()/180-ASIN(($D$4^2-$D$18^2+$D$9^2)/(2*$D$4*$D$9)))^2)/($D$9*SQRT(1-($D$4^2-$D$18^2+$D$9^2)^2/(4*$D$4^2*$D$9^2)))+TAN($D$6*PI()/180-ASIN(($D$4^2-$D$18^2+$D$9^2)/(2*$D$4*$D$9)))/$D$9^2 -> -4.568683959e-18 | E10: TAN(TE) per mm2 | F10: 4. Read the "perfect" offset angle β in D6. | H10: Tracking Error (degrees)
B11: OUTPUT | C11: Radius Ra = | D11: =SQRT($D$13) -> 90.12224963 | E11: mm | F11: 5. Read the "perfect" overhang d in D7. | H11: =((DEGREES(ASIN((($H$4^2)+(2*$D$4*$D$7)-($D$7^2))/(2*$D$4*$H$4))))-$D$6) -> 1.945530845 | J11: OPTIONAL SOLUTION
B12: OUTPUT | C12: Derivative of TE (Ra) = | D12: =($D$13-$D$4^2+$D$18^2)/(2*$D$4*$D$13)/SQRT(1-($D$13+$D$4^2-$D$18^2)^2/(4*$D$4^2*$D$13)) -> 0 | E12: TAN(TE) per mm | F12: 6. The %RMS tracking distortion is shown in D27. | H12: %Tracking Distortion (includes RIAA term) | J12: As an option to lower the tracking
B13: OUTPUT | C13: Radius Ra2 = | D13: =$D$4^2-$D$18^2 -> 8122.019879 | E13: mm2 | H13: =ABS($H$7)*90/PI()*0.742288880049004*100 -> 0.4945913057 | J13: distortion at the inner or outer groove
B14: OUTPUT | C14: Inner null radius R01 = | D14: =IF($D$17^2-$D$13<0, "No solution possible",IF($D$17-SQRT($D$17^2-$D$13)<$D$2,"No solution possible",$D$17-SQRT($D$17^2-$D$13))) -> 70.02542823 | E14: mm | F14: %RMS Tracking Distortion Calculator | J14: areas to favour the playback of particular
B15: OUTPUT | C15: Outer null radius R02 = | D15: =IF($D$17^2-$D$13<0, "No solution possible",IF($D$17+SQRT($D$17^2-$D$13)>$D$3,"No solution possible",$D$17+SQRT($D$17^2-$D$13))) -> 115.986722 | E15: mm | F15: 1. Enter arm length L in D4, offset angle β in D6 and overhang d in D7. | H15: Löfgren's Alignment Strategy: | J15: tracks, the Q factor is provided.
B16: OUTPUT | C16: sin β = | D16: =SIN($D$6*PI()/180) -> 0.3720243005 | F16: 2. Read the resulting %RMS tracking distortion in D27. | H16: Löfgren's alternative alignment to address possible | J16: If Q > 0, the tracking distortion at R1 is
B17: OUTPUT | C17: Linear offset p = | D17: =$D$4*$D$16 -> 93.00607513 | E17: mm | H17: objections to the magnitude of the central WTE | J17: set to Q times the tracking distortion at
B18: OUTPUT | C18: Mounting distance M = | D18: =$D$4-$D$7 -> 233.1908663 | E18: mm | F18: SOLVER SETTINGS | H18: peak of the 'Löfgren A' alignment. | J18: R2. This means that for 0 < Q < 1, the
B19: OUTPUT | C19: WTE at R1 = | D19: =TAN(ASIN(($D$2^2+$D$4^2-$D$18^2)/(2*$D$4*$D$2))-$D$6*PI()/180)/$D$2 -> 0.0003209965483 | E19: TAN(TE) per mm | F19: Objective Cell: D27 (%RMS Tracking Distortion) Equal to: Minimum | J19: tracking distortion at the inner grooves
B20: OUTPUT | C20: WTE at RW = | D20: =TAN(ASIN(($D$9^2+$D$4^2-$D$18^2)/(2*$D$4*$D$9))-$D$6*PI()/180)/$D$9 -> -0.0001397685867 | E20: TAN(TE) per mm | F20: Changing Cells: D6 (β), D7 (d), D9 (Rw) | J20: is lowered; for Q > 1, the tracking
B21: OUTPUT | C21: WTE at R2 = | D21: =TAN(ASIN(($D$3^2+$D$4^2-$D$18^2)/(2*$D$4*$D$3))-$D$6*PI()/180)/$D$3 -> 0.0002325845629 | E21: TAN(TE) per mm | F21: Constraint: D10 = 0 (Derivative of WTE function = 0 at Rw) | J21: distortion at the outer grooves is lowered,
B22: OUTPUT | C22: %Tracking Distortion at R1 = | D22: =ABS($D$19)*90/PI()*0.742288880049004*100 -> 0.6825994811 | E22: (Includes RIAA term) | F22: Optional constraint: If Q > 0, D19 = Q x D21 | J22: and for Q = 1, the tracking distortions at
B23: OUTPUT | C23: %Tracking Distortion at RW = | D23: =ABS($D$20)*90/PI()*0.742288880049004*100 -> 0.2972180394 | E23: (Includes RIAA term) | F23: Make Unconstrained Variables Non-Negative. | J23: R1 and R2 are made equal.
B24: OUTPUT | C24: %Tracking Distortion at R2 = | D24: =ABS($D$21)*90/PI()*0.742288880049004*100 -> 0.4945913057 | E24: (Includes RIAA term) | F24: Solving Method: GRG Nonlinear. Constraint Precision: 1E-14 | J24: (The RMS distortion remains minimised.)
B25: OUTPUT | C25: WTE at R1 - WTE at R2 = | D25: =$D$19-$D$21 -> 8.841198542e-05 | E25: TAN(TE) per mm | F25: Use Automatic Scaling. Max Time: 100 seconds. | J25: Refer to the 'PERFECT LÖF C' plots on
B26: OUTPUT | C26: WTE at R1 + WTE at RW = | D26: =$D$19+$D$20 -> 0.0001812279616 | E26: TAN(TE) per mm | F26: Iterations: 10000. Convergence: 1E-14 Derivatives: Central. | J26: the PLOTS sheet to observe the effects
B27: OUTPUT | C27: %RMS Tracking Distortion = | D27: =RMS_DISTORTION($D$2, $D$3, $D$4, $D$6,$D$7)*100 -> 0.2583934384 | E27: (Includes RIAA term) | F27: Require Bounds on Variables. | J27: of Q on tracking distortion and WTE.
E43: =RIGHT(CELL("filename",B1),LEN(CELL("filename",B1))-FIND("]",CELL("filename",B1))) -> PERFECT LÖF C

Sheet PERFECT LÖF C TRAP
B2: INPUT | C2: Inner groove radius R1 = | D2: 60.325 | E2: mm | J2: QUICK CALCULATOR
B3: INPUT | C3: Outer groove radius R2 = | D3: 146.05 | E3: mm | F3: 'PERFECT LÖFGREN C' CALCULATOR USING THE SOLVER TOOL | J3: Enter Radius in mm:
B4: INPUT | C4: Tonearm length L = | D4: 250 | E4: mm | F4: AND WORKSHEET TRAPEZOIDAL RULE INTEGRATOR | J4: 146.05
F5: INSTRUCTIONS
B6: INPUT/OUTPUT | C6: Offset angle β = | D6: 21.84051536 | E6: degrees | F6: 1. Enter R1 into D2, R2 into D3 and L into D4. | J6: WTE: TAN(TE) per mm
B7: INPUT/OUTPUT | C7: Overhang d = | D7: 16.8091336 | E7: mm | F7: 2. Click the orange button (may take several seconds). | J7: =TAN(ASIN(($J$4^2+2*$D$4*$D$7-$D$7^2)/(2*$D$4*$J$4))-$D$6*PI()/180)/$J$4 -> 0.0002325845648
F8: 3. Read the "perfect" offset angle β in D6, the "perfect" Overhang d | J8: Tracking Angle (degrees)
B9: OUTPUT | C9: Radius Rw = | D9: 87.3217367 | E9: mm | F9: in D7 and the %RMS tracking distortion in D25. | J9: =((DEGREES(ASIN((($J$4^2)+(2*$D$4*$D$7)-($D$7^2))/(2*$D$4*$J$4))))) -> 23.78604622
B10: OUTPUT | C10: Derivative of WTE (Rw) = | D10: =((1/$D$4-($D$4^2-$D$18^2+$D$9^2)/(2*$D$4*$D$9^2))*_xlfn.SEC($D$6*PI()/180-ASIN(($D$4^2-$D$18^2+$D$9^2)/(2*$D$4*$D$9)))^2)/($D$9*SQRT(1-($D$4^2-$D$18^2+$D$9^2)^2/(4*$D$4^2*$D$9^2)))+TAN($D$6*PI()/180-ASIN(($D$4^2-$D$18^2+$D$9^2)/(2*$D$4*$D$9)))/$D$9^2 -> -3.654142063e-15 | E10: TAN(TE) per mm2 | J10: Tracking Error (degrees)
B11: OUTPUT | C11: Radius Ra = | D11: =SQRT($D$13) -> 90.12224934 | E11: mm | F11: %RMS Tracking Distortion Calculator | J11: =((DEGREES(ASIN((($J$4^2)+(2*$D$4*$D$7)-($D$7^2))/(2*$D$4*$J$4))))-$D$6) -> 1.945530861
B12: OUTPUT | C12: Derivative of TE (Ra) = | D12: =($D$13-$D$4^2+$D$18^2)/(2*$D$4*$D$13)/SQRT(1-($D$13+$D$4^2-$D$18^2)^2/(4*$D$4^2*$D$13)) -> 0 | E12: TAN(TE) per mm | F12: 1. Enter arm length L in D4, offset angle β in D6 and overhang d in D7. | J12: %Tracking Distortion (includes RIAA term)
B13: OUTPUT | C13: Radius Ra2 = | D13: =$D$4^2-$D$18^2 -> 8122.019827 | E13: mm2 | F13: 2. Read the resulting %RMS tracking distortion in D25. | J13: =ABS($J$7)*90/PI()*0.742288880049004*100 -> 0.4945913097
B14: OUTPUT | C14: Inner null radius R01 = | D14: =IF($D$17^2-$D$13<0, "No solution possible",IF($D$17-SQRT($D$17^2-$D$13)<$D$2,"No solution possible",$D$17-SQRT($D$17^2-$D$13))) -> 70.02542785 | E14: mm
B15: OUTPUT | C15: Outer null radius R02 = | D15: =IF($D$17^2-$D$13<0, "No solution possible",IF($D$17+SQRT($D$17^2-$D$13)>$D$3,"No solution possible",$D$17+SQRT($D$17^2-$D$13))) -> 115.9867219 | E15: mm | F15: SOLVER SETTINGS | J15: The figures shown below form the calculation sequence based on
B16: OUTPUT | C16: sin β = | D16: =SIN($D$6*PI()/180) -> 0.3720242995 | F16: Objective Cell: D25 (%RMS Tracking Distortion) Equal to: Minimum | J16: the values showing in cells D2, D3, D4, D6 and D7.
B17: OUTPUT | C17: Linear offset p = | D17: =$D$4*$D$16 -> 93.00607488 | E17: mm | F17: Changing Cells: D6 (β), D7 (d), D9 (Rw) | J17: Sum of Totals = | K17: =SUM(J30:J17175) -> 0.4155129499
B18: OUTPUT | C18: Mounting distance M = | D18: =$D$4-$D$7 -> 233.1908664 | E18: mm | F18: Constraint: D10 = 0 (Derivative of WTE function = 0 at Rw) | J18: Radius interval = | K18: =$D$3-$D$2 -> 85.725
B19: OUTPUT | C19: WTE at R1 = | D19: =TAN(ASIN(($D$2^2+2*$D$4*$D$7-$D$7^2)/(2*$D$4*$D$2))-$D$6*PI()/180)/$D$2 -> 0.0003209965348 | E19: TAN(TE) per mm | F19: Make Unconstrained Variables Non-Negative. | J19: No. of radius panels = | K19: =17146-1 -> 17145
B20: OUTPUT | C20: WTE at RW = | D20: =TAN(ASIN(($D$9^2+2*$D$4*$D$7-$D$7^2)/(2*$D$4*$D$9))-$D$6*PI()/180)/$D$9 -> -0.0001397685892 | E20: TAN(TE) per mm | F20: Solving Method: GRG Nonlinear. Constraint Precision: 1E-14 | J20: Integral = | K20: =$K$17*$K$18/(2*$K$19) -> 0.001038782375
B21: OUTPUT | C21: WTE at R2 = | D21: =TAN(ASIN(($D$3^2+2*$D$4*$D$7-$D$7^2)/(2*$D$4*$D$3))-$D$6*PI()/180)/$D$3 -> 0.0002325845648 | E21: TAN(TE) per mm | F21: Use Automatic Scaling. Max Time: 100 seconds. | J21: Mean distortion method 1 = | K21: =$K$20/$K$18 -> 1.2117613e-05
B22: OUTPUT | C22: %Tracking Distortion at R1 = | D22: =ABS($D$19)*90/PI()*0.742288880049004*100 -> 0.6825994523 | E22: (Includes RIAA term) | F22: Iterations: 10000. Convergence: 1E-14 Derivatives: Central. | J22: Mean distortion method 2 = | K22: =$K$17/(2*$K$19) -> 1.2117613e-05
B23: OUTPUT | C23: %Tracking Distortion at RW = | D23: =ABS($D$20)*90/PI()*0.742288880049004*100 -> 0.2972180448 | E23: (Includes RIAA term) | F23: Require Bounds on Variables. | J23: RMS distortion = | K23: =SQRT($K$21) -> 0.003481036197
B24: OUTPUT | C24: %Tracking Distortion at R2 = | D24: =ABS($D$21)*90/PI()*0.742288880049004*100 -> 0.4945913097 | E24: (Includes RIAA term) | F24: This sheet is included as a reference to the Trapezoidal Rule | J24: RMS dist. with RIAA term = | K24: =$K$23*0.742288880049004 -> 0.00258393446
B25: OUTPUT | C25: %RMS Tracking Distortion = | D25: =SQRT(SUM($J$30:$J$17175)/34290)*0.742288880049004*100 -> 0.258393446 | E25: (Includes RIAA term) | F25: 'perfect Löfgren C' calculator presented in Section 1 of the writer's | J25: %RMS distortion = | K25: =$K$24*100 -> 0.258393446
F26: tonearm alignment book. Not as accurate as the 'PERFECT LÖF C' sheet.
B28: 1 | C28: 2 | D28: 3 | E28: 4 | F28: 5 | G28: 6 | H28: 7 | I28: 8 | J28: 9
B29: Line No. | C29: Radius (mm) | D29: Tracking Angle (Degrees) | E29: Tracking Error (Degrees) | F29: WTE (TAN(TE) per mm) | G29: Distortion Parameter, K | H29: Distortion Parameter Squared, K^2 | I29: Multiplier | J29: Total
B30: 1 | C30: 60.325 | D30: =DEGREES(ASIN((C30^2+2*$D$4*$D$7 -$D$7^2)/(2*$D$4*C30))) -> 22.94985884 | E30: =D30-$D$6 -> 1.109343476 | F30: =TAN(E30*PI()/180)/C30 -> 0.0003209965348 | G30: =ABS(F30)*90/PI() -> 0.00919587334 | H30: =G30^2 -> 8.456408649e-05 | I30: 1 | J30: =H30*I30 -> 8.456408649e-05
B31: 2 | C31: 60.33 | D31: 22.94909247 | E31: 1.108577113 | F31: 0.0003207481416 | G31: =ABS(F31)*90/PI() -> 0.009188757401 | H31: =G31^2 -> 8.443326257e-05 | I31: 2 | J31: =H31*I31 -> 0.0001688665251
B32: 3 | C32: 60.335 | D32: 22.94832634 | E32: 1.107810984 | F32: 0.0003204998576 | G32: 0.009181644588 | H32: =G32^2 -> 8.430259733e-05 | I32: 2 | J32: =H32*I32 -> 0.0001686051947
B33: 4 | C33: 60.34 | D33: 22.94756045 | E33: 1.107045089 | F33: 0.0003202516827 | G33: 0.0091745349 | H33: =G33^2 -> 8.417209063e-05 | I33: 2 | J33: =H33*I33 -> 0.0001683441813
B34: 5 | C34: 60.345 | D34: 22.94679479 | E34: 1.106279429 | F34: 0.0003200036168 | G34: 0.009167428336 | H34: =G34^2 -> 8.40417423e-05 | I34: 2 | J34: 0.0001680834846
B35: 6 | C35: 60.35 | D35: 22.94602936 | E35: 1.105514003 | F35: 0.00031975566 | G35: 0.009160324895 | H35: 8.391155219e-05 | I35: 2 | J35: 0.0001678231044
B36: 7 | C36: 60.355 | D36: 22.94526417 | E36: 1.104748812 | F36: 0.000319507812 | G36: 0.009153224576 | H36: 8.378152014e-05 | I36: 2 | J36: 0.0001675630403
B37: 8 | C37: 60.36 | D37: 22.94449922 | E37: 1.103983854 | F37: 0.0003192600731 | G37: 0.009146127376 | H37: 8.365164599e-05 | I37: 2 | J37: 0.000167303292
B38: 9 | C38: 60.365 | D38: 22.94373449 | E38: 1.103219131 | F38: 0.0003190124429 | G38: 0.009139033296 | H38: 8.352192958e-05 | I38: 2 | J38: 0.0001670438592
B39: 10 | C39: 60.37 | D39: 22.94297 | E39: 1.102454642 | F39: 0.0003187649216 | G39: 0.009131942333 | H39: 8.339237077e-05 | I39: 2 | J39: 0.0001667847415
B40: 11 | C40: 60.375 | D40: 22.94220575 | E40: 1.101690387 | F40: 0.0003185175091 | G40: 0.009124854486 | H40: 8.326296939e-05 | I40: 2 | J40: 0.0001665259388
B41: 12 | C41: 60.38 | D41: 22.94144173 | E41: 1.100926365 | F41: 0.0003182702053 | G41: 0.009117769754 | H41: 8.313372529e-05 | I41: 2 | J41: 0.0001662674506
B42: 13 | C42: 60.385 | D42: 22.94067794 | E42: 1.100162578 | F42: 0.0003180230102 | G42: 0.009110688136 | H42: 8.300463832e-05 | I42: 2 | J42: 0.0001660092766
B43: 14 | C43: 60.39 | D43: 22.93991439 | E43: 1.099399024 | F43: 0.0003177759237 | G43: 0.009103609631 | H43: 8.287570831e-05 | I43: 2 | J43: 0.0001657514166
B44: 15 | C44: 60.395 | D44: 22.93915107 | E44: 1.098635704 | F44: 0.0003175289459 | G44: 0.009096534236 | H44: 8.274693511e-05 | I44: 2 | J44: 0.0001654938702
B45: 16 | C45: 60.4 | D45: 22.93838798 | E45: 1.097872618 | F45: 0.0003172820766 | G45: 0.009089461952 | H45: 8.261831857e-05 | I45: 2 | J45: 0.0001652366371
B46: 17 | C46: 60.405 | D46: 22.93762513 | E46: 1.097109765 | F46: 0.0003170353158 | G46: 0.009082392776 | H46: 8.248985853e-05 | I46: 2 | J46: 0.0001649797171
B47: 18 | C47: 60.41 | D47: 22.93686251 | E47: 1.096347146 | F47: 0.0003167886635 | G47: 0.009075326707 | H47: 8.236155484e-05 | I47: 2 | J47: 0.0001647231097
B48: 19 | C48: 60.415 | D48: 22.93610012 | E48: 1.095584761 | F48: 0.0003165421195 | G48: 0.009068263744 | H48: 8.223340733e-05 | I48: 2 | J48: 0.0001644668147
B49: 20 | C49: 60.42 | D49: 22.93533797 | E49: 1.094822609 | F49: 0.000316295684 | G49: 0.009061203886 | H49: 8.210541587e-05 | I49: 2 | J49: 0.0001642108317
B50: 21 | C50: 60.425 | D50: 22.93457605 | E50: 1.09406069 | F50: 0.0003160493568 | G50: 0.009054147131 | H50: 8.197758028e-05 | I50: 2 | J50: 0.0001639551606
B51: 22 | C51: 60.43 | D51: 22.93381437 | E51: 1.093299005 | F51: 0.0003158031379 | G51: 0.009047093479 | H51: 8.184990042e-05 | I51: 2 | J51: 0.0001636998008
B52: 23 | C52: 60.435 | D52: 22.93305291 | E52: 1.092537553 | F52: 0.0003155570272 | G52: 0.009040042927 | H52: 8.172237613e-05 | I52: 2 | J52: 0.0001634447523
B53: 24 | C53: 60.44 | D53: 22.93229169 | E53: 1.091776334 | F53: 0.0003153110247 | G53: 0.009032995476 | H53: 8.159500726e-05 | I53: 2 | J53: 0.0001631900145
B54: 25 | C54: 60.445 | D54: 22.93153071 | E54: 1.091015348 | F54: 0.0003150651304 | G54: 0.009025951122 | H54: 8.146779366e-05 | I54: 2 | J54: 0.0001629355873
B55: 26 | C55: 60.45 | D55: 22.93076996 | E55: 1.090254595 | F55: 0.0003148193442 | G55: 0.009018909865 | H55: 8.134073516e-05 | I55: 2 | J55: 0.0001626814703
B56: 27 | C56: 60.455 | D56: 22.93000944 | E56: 1.089494076 | F56: 0.000314573666 | G56: 0.009011871705 | H56: 8.121383162e-05 | I56: 2 | J56: 0.0001624276632
B57: 28 | C57: 60.46 | D57: 22.92924915 | E57: 1.088733789 | F57: 0.0003143280959 | G57: 0.009004836638 | H57: 8.108708288e-05 | I57: 2 | J57: 0.0001621741658
B58: 29 | C58: 60.465 | D58: 22.9284891 | E58: 1.087973735 | F58: 0.0003140826337 | G58: 0.008997804665 | H58: 8.096048879e-05 | I58: 2 | J58: 0.0001619209776
B59: 30 | C59: 60.47 | D59: 22.92772928 | E59: 1.087213914 | F59: 0.0003138372795 | G59: 0.008990775784 | H59: 8.08340492e-05 | I59: 2 | J59: 0.0001616680984
B60: 31 | C60: 60.475 | D60: 22.92696969 | E60: 1.086454326 | F60: 0.0003135920331 | G60: 0.008983749993 | H60: 8.070776395e-05 | I60: 2 | J60: 0.0001614155279
B61: 32 | C61: 60.48 | D61: 22.92621033 | E61: 1.08569497 | F61: 0.0003133468946 | G61: 0.008976727292 | H61: 8.058163288e-05 | I61: 2 | J61: 0.0001611632658
B62: 33 | C62: 60.485 | D62: 22.92545121 | E62: 1.084935848 | F62: 0.0003131018639 | G62: 0.008969707679 | H62: 8.045565585e-05 | I62: 2 | J62: 0.0001609113117
B63: 34 | C63: 60.49 | D63: 22.92469232 | E63: 1.084176957 | F63: 0.0003128569409 | G63: 0.008962691153 | H63: 8.032983271e-05 | I63: 2 | J63: 0.0001606596654
B64: 35 | C64: 60.495 | D64: 22.92393366 | E64: 1.0834183 | F64: 0.0003126121257 | G64: 0.008955677713 | H64: 8.02041633e-05 | I64: 2 | J64: 0.0001604083266
B65: 36 | C65: 60.5 | D65: 22.92317524 | E65: 1.082659874 | F65: 0.0003123674181 | G65: 0.008948667357 | H65: 8.007864746e-05 | I65: 2 | J65: 0.0001601572949
B66: 37 | C66: 60.505 | D66: 22.92241704 | E66: 1.081901681 | F66: 0.0003121228181 | G66: 0.008941660083 | H66: 7.995328505e-05 | I66: 2 | J66: 0.0001599065701
B67: 38 | C67: 60.51 | D67: 22.92165908 | E67: 1.081143721 | F67: 0.0003118783257 | G67: 0.008934655892 | H67: 7.982807591e-05 | I67: 2 | J67: 0.0001596561518
B68: 39 | C68: 60.515 | D68: 22.92090135 | E68: 1.080385993 | F68: 0.0003116339408 | G68: 0.008927654781 | H68: 7.970301989e-05 | I68: 2 | J68: 0.0001594060398
B69: 40 | C69: 60.52 | D69: 22.92014386 | E69: 1.079628497 | F69: 0.0003113896634 | G69: 0.008920656749 | H69: 7.957811684e-05 | I69: 2 | J69: 0.0001591562337
B70: 41 | C70: 60.525 | D70: 22.91938659 | E70: 1.078871233 | F70: 0.0003111454935 | G70: 0.008913661796 | H70: 7.945336661e-05 | I70: 2 | J70: 0.0001589067332
B71: 42 | C71: 60.53 | D71: 22.91862956 | E71: 1.078114201 | F71: 0.0003109014309 | G71: 0.008906669919 | H71: 7.932876904e-05 | I71: 2 | J71: 0.0001586575381
B72: 43 | C72: 60.535 | D72: 22.91787276 | E72: 1.077357401 | F72: 0.0003106574757 | G72: 0.008899681117 | H72: 7.920432398e-05 | I72: 2 | J72: 0.000158408648
B73: 44 | C73: 60.54 | D73: 22.91711619 | E73: 1.076600834 | F73: 0.0003104136278 | G73: 0.008892695389 | H73: 7.908003129e-05 | I73: 2 | J73: 0.0001581600626
B74: 45 | C74: 60.545 | D74: 22.91635986 | E74: 1.075844498 | F74: 0.0003101698872 | G74: 0.008885712735 | H74: 7.895589081e-05 | I74: 2 | J74: 0.0001579117816
B75: 46 | C75: 60.55 | D75: 22.91560376 | E75: 1.075088394 | F75: 0.0003099262538 | G75: 0.008878733152 | H75: 7.883190238e-05 | I75: 2 | J75: 0.0001576638048
B76: 47 | C76: 60.555 | D76: 22.91484788 | E76: 1.074332522 | F76: 0.0003096827276 | G76: 0.008871756639 | H76: 7.870806587e-05 | I76: 2 | J76: 0.0001574161317
B77: 48 | C77: 60.56 | D77: 22.91409224 | E77: 1.073576882 | F77: 0.0003094393085 | G77: 0.008864783196 | H77: 7.858438111e-05 | I77: 2 | J77: 0.0001571687622
B78: 49 | C78: 60.565 | D78: 22.91333683 | E78: 1.072821473 | F78: 0.0003091959965 | G78: 0.00885781282 | H78: 7.846084796e-05 | I78: 2 | J78: 0.0001569216959
B79: 50 | C79: 60.57 | D79: 22.91258166 | E79: 1.072066296 | F79: 0.0003089527915 | G79: 0.008850845511 | H79: 7.833746626e-05 | I79: 2 | J79: 0.0001566749325
B80: 51 | C80: 60.575 | D80: 22.91182671 | E80: 1.07131135 | F80: 0.0003087096935 | G80: 0.008843881267 | H80: 7.821423587e-05 | I80: 2 | J80: 0.0001564284717
B81: 52 | C81: 60.58 | D81: 22.911072 | E81: 1.070556636 | F81: 0.0003084667025 | G81: 0.008836920088 | H81: 7.809115663e-05 | I81: 2 | J81: 0.0001561823133
B82: 53 | C82: 60.585 | D82: 22.91031751 | E82: 1.069802154 | F82: 0.0003082238184 | G82: 0.008829961971 | H82: 7.79682284e-05 | I82: 2 | J82: 0.0001559364568
B83: 54 | C83: 60.59 | D83: 22.90956326 | E83: 1.069047903 | F83: 0.0003079810412 | G83: 0.008823006915 | H83: 7.784545102e-05 | I83: 2 | J83: 0.000155690902
B84: 55 | C84: 60.595 | D84: 22.90880924 | E84: 1.068293883 | F84: 0.0003077383708 | G84: 0.00881605492 | H84: 7.772282435e-05 | I84: 2 | J84: 0.0001554456487
B85: 56 | C85: 60.6 | D85: 22.90805546 | E85: 1.067540094 | F85: 0.0003074958071 | G85: 0.008809105984 | H85: 7.760034823e-05 | I85: 2 | J85: 0.0001552006965
B86: 57 | C86: 60.605 | D86: 22.9073019 | E86: 1.066786537 | F86: 0.0003072533503 | G86: 0.008802160105 | H86: 7.747802252e-05 | I86: 2 | J86: 0.000154956045
B87: 58 | C87: 60.61 | D87: 22.90654857 | E87: 1.066033211 | F87: 0.000307011 | G87: 0.008795217283 | H87: 7.735584706e-05 | I87: 2 | J87: 0.0001547116941
B88: 59 | C88: 60.615 | D88: 22.90579548 | E88: 1.065280115 | F88: 0.0003067687565 | G88: 0.008788277517 | H88: 7.723382171e-05 | I88: 2 | J88: 0.0001544676434
B89: 60 | C89: 60.62 | D89: 22.90504261 | E89: 1.064527251 | F89: 0.0003065266195 | G89: 0.008781340804 | H89: 7.711194632e-05 | I89: 2 | J89: 0.0001542238926
B90: 61 | C90: 60.625 | D90: 22.90428998 | E90: 1.063774618 | F90: 0.0003062845891 | G90: 0.008774407144 | H90: 7.699022073e-05 | I90: 2 | J90: 0.0001539804415
B91: 62 | C91: 60.63 | D91: 22.90353758 | E91: 1.063022216 | F91: 0.0003060426653 | G91: 0.008767476535 | H91: 7.68686448e-05 | I91: 2 | J91: 0.0001537372896
B92: 63 | C92: 60.635 | D92: 22.90278541 | E92: 1.062270044 | F92: 0.0003058008479 | G92: 0.008760548977 | H92: 7.674721838e-05 | I92: 2 | J92: 0.0001534944368
B93: 64 | C93: 60.64 | D93: 22.90203346 | E93: 1.061518104 | F93: 0.0003055591369 | G93: 0.008753624468 | H93: 7.662594132e-05 | I93: 2 | J93: 0.0001532518826
B94: 65 | C94: 60.645 | D94: =DEGREES(ASIN((C94^2+2*$D$4*$D$7 -$D$7^2)/(2*$D$4*C94))) -> 22.90128175 | E94: =D94-$D$6 -> 1.060766394 | F94: =TAN(E94*PI()/180)/C94 -> 0.0003053175323 | G94: 0.008746703006 | H94: 7.650481348e-05 | I94: 2 | J94: 0.000153009627
B95: 66 | C95: 60.65 | D95: 22.90053028 | E95: 1.060014914 | F95: 0.000305076034 | G95: =ABS(F95)*90/PI() -> 0.008739784591 | H95: 7.638383469e-05 | I95: 2 | J95: 0.0001527676694
B96: 67 | C96: 60.655 | D96: 22.89977903 | E96: 1.059263666 | F96: 0.0003048346421 | G96: 0.008732869221 | H96: 7.626300483e-05 | I96: 2 | J96: 0.0001525260097
B97: 68 | C97: 60.66 | D97: 22.89902801 | E97: 1.058512648 | F97: 0.0003045933564 | G97: 0.008725956895 | H97: 7.614232373e-05 | I97: 2 | J97: =H97*I97 -> 0.0001522846475
B98: 69 | C98: 60.665 | D98: 22.89827722 | E98: 1.05776186 | F98: 0.0003043521769 | G98: 0.008719047611 | H98: =G98^2 -> 7.602179125e-05 | I98: 2 | J98: 0.0001520435825
B99: 70 | C99: 60.67 | D99: 22.89752666 | E99: 1.057011303 | F99: 0.0003041111036 | G99: 0.008712141369 | H99: 7.590140724e-05 | I99: 2 | J99: 0.0001518028145
B100: 71 | C100: 60.675 | D100: 22.89677634 | E100: 1.056260976 | F100: 0.0003038701364 | G100: 0.008705238167 | H100: 7.578117155e-05 | I100: 2 | J100: 0.0001515623431
B101: 72 | C101: 60.68 | D101: 22.89602624 | E101: 1.055510879 | F101: 0.0003036292753 | G101: 0.008698338004 | H101: 7.566108404e-05 | I101: 2 | J101: 0.0001513221681
B102: 73 | C102: 60.685 | D102: 22.89527637 | E102: 1.054761013 | F102: 0.0003033885202 | G102: 0.008691440879 | H102: 7.554114456e-05 | I102: 2 | J102: 0.0001510822891
B103: 74 | C103: 60.69 | D103: 22.89452674 | E103: 1.054011377 | F103: 0.0003031478711 | G103: 0.008684546791 | H103: 7.542135296e-05 | I103: 2 | J103: 0.0001508427059
B104: 75 | C104: 60.695 | D104: 22.89377733 | E104: 1.053261971 | F104: 0.0003029073279 | G104: 0.008677655737 | H104: 7.530170909e-05 | I104: 2 | J104: 0.0001506034182
B105: 76 | C105: 60.7 | D105: 22.89302816 | E105: 1.052512795 | F105: 0.0003026668907 | G105: 0.008670767717 | H105: 7.518221281e-05 | I105: 2 | J105: 0.0001503644256
B106: 77 | C106: 60.705 | D106: 22.89227921 | E106: 1.051763849 | F106: 0.0003024265593 | G106: 0.00866388273 | H106: 7.506286397e-05 | I106: 2 | J106: 0.0001501257279
B107: 78 | C107: 60.71 | D107: 22.89153049 | E107: 1.051015133 | F107: 0.0003021863337 | G107: 0.008657000775 | H107: 7.494366242e-05 | I107: 2 | J107: 0.0001498873248
B108: 79 | C108: 60.715 | D108: 22.89078201 | E108: 1.050266647 | F108: 0.0003019462139 | G108: 0.00865012185 | H108: 7.482460801e-05 | I108: 2 | J108: 0.000149649216
B109: 80 | C109: 60.72 | D109: 22.89003375 | E109: 1.04951839 | F109: 0.0003017061999 | G109: 0.008643245953 | H109: 7.470570061e-05 | I109: 2 | J109: 0.0001494114012
B110: 81 | C110: 60.725 | D110: 22.88928572 | E110: 1.048770364 | F110: 0.0003014662915 | G110: 0.008636373085 | H110: 7.458694006e-05 | I110: 2 | J110: 0.0001491738801
B111: 82 | C111: 60.73 | D111: 22.88853793 | E111: 1.048022567 | F111: 0.0003012264888 | G111: 0.008629503243 | H111: 7.446832621e-05 | I111: 2 | J111: 0.0001489366524
B112: 83 | C112: 60.735 | D112: 22.88779036 | E112: 1.047275 | F112: 0.0003009867917 | G112: 0.008622636426 | H112: 7.434985893e-05 | I112: 2 | J112: 0.0001486997179
B113: 84 | C113: 60.74 | D113: 22.88704302 | E113: 1.046527662 | F113: 0.0003007472001 | G113: 0.008615772633 | H113: 7.423153806e-05 | I113: 2 | J113: 0.0001484630761
B114: 85 | C114: 60.745 | D114: 22.88629591 | E114: 1.045780554 | F114: 0.000300507714 | G114: 0.008608911863 | H114: 7.411336346e-05 | I114: 2 | J114: 0.0001482267269
B115: 86 | C115: 60.75 | D115: 22.88554904 | E115: 1.045033675 | F115: 0.0003002683334 | G115: 0.008602054114 | H115: 7.399533498e-05 | I115: 2 | J115: 0.00014799067
B116: 87 | C116: 60.755 | D116: 22.88480239 | E116: 1.044287026 | F116: 0.0003000290583 | G116: 0.008595199385 | H116: 7.387745247e-05 | I116: 2 | J116: 0.0001477549049
B117: 88 | C117: 60.76 | D117: 22.88405597 | E117: 1.043540606 | F117: 0.0002997898885 | G117: 0.008588347676 | H117: 7.37597158e-05 | I117: 2 | J117: 0.0001475194316
B118: 89 | C118: 60.765 | D118: 22.88330978 | E118: 1.042794415 | F118: 0.0002995508241 | G118: 0.008581498984 | H118: 7.364212482e-05 | I118: 2 | J118: 0.0001472842496
B119: 90 | C119: 60.77 | D119: 22.88256382 | E119: 1.042048454 | F119: 0.0002993118649 | G119: 0.008574653309 | H119: 7.352467937e-05 | I119: 2 | J119: 0.0001470493587
B120: 91 | C120: 60.775 | D120: 22.88181808 | E120: 1.041302722 | F120: 0.000299073011 | G120: 0.008567810649 | H120: 7.340737932e-05 | I120: 2 | J120: 0.0001468147586
B121: 92 | C121: 60.78 | D121: 22.88107258 | E121: 1.040557219 | F121: 0.0002988342624 | G121: 0.008560971004 | H121: 7.329022453e-05 | I121: 2 | J121: 0.0001465804491
B122: 93 | C122: 60.785 | D122: 22.88032731 | E122: 1.039811945 | F122: 0.0002985956189 | G122: 0.008554134371 | H122: 7.317321483e-05 | I122: 2 | J122: 0.0001463464297
B123: 94 | C123: 60.79 | D123: 22.87958226 | E123: 1.0390669 | F123: 0.0002983570805 | G123: 0.008547300749 | H123: 7.30563501e-05 | I123: 2 | J123: 0.0001461127002
B124: 95 | C124: 60.795 | D124: 22.87883744 | E124: 1.038322083 | F124: 0.0002981186472 | G124: 0.008540470138 | H124: 7.293963019e-05 | I124: 2 | J124: 0.0001458792604
B125: 96 | C125: 60.8 | D125: 22.87809286 | E125: 1.037577496 | F125: 0.0002978803189 | G125: 0.008533642537 | H125: 7.282305494e-05 | I125: 2 | J125: 0.0001456461099
B126: 97 | C126: 60.805 | D126: 22.8773485 | E126: 1.036833138 | F126: 0.0002976420956 | G126: 0.008526817943 | H126: 7.270662423e-05 | I126: 2 | J126: 0.0001454132485
B127: 98 | C127: 60.81 | D127: 22.87660437 | E127: 1.036089008 | F127: 0.0002974039773 | G127: 0.008519996355 | H127: 7.259033789e-05 | I127: 2 | J127: 0.0001451806758
B128: 99 | C128: 60.815 | D128: 22.87586047 | E128: 1.035345107 | F128: 0.0002971659639 | G128: 0.008513177773 | H128: 7.24741958e-05 | I128: 2 | J128: 0.0001449483916
B129: 100 | C129: 60.82 | D129: 22.8751168 | E129: 1.034601435 | F129: 0.0002969280554 | G129: 0.008506362196 | H129: 7.23581978e-05 | I129: 2 | J129: 0.0001447163956
B130: 101 | C130: 60.825 | D130: 22.87437335 | E130: 1.033857991 | F130: 0.0002966902516 | G130: 0.008499549621 | H130: 7.224234376e-05 | I130: 2 | J130: 0.0001444846875
B131: 102 | C131: 60.83 | D131: 22.87363014 | E131: 1.033114775 | F131: 0.0002964525527 | G131: 0.008492740048 | H131: 7.212663352e-05 | I131: 2 | J131: 0.000144253267
B132: 103 | C132: 60.835 | D132: 22.87288715 | E132: 1.032371789 | F132: 0.0002962149585 | G132: 0.008485933475 | H132: 7.201106694e-05 | I132: 2 | J132: 0.0001440221339
B133: 104 | C133: 60.84 | D133: 22.87214439 | E133: 1.03162903 | F133: 0.000295977469 | G133: 0.008479129902 | H133: 7.189564389e-05 | I133: 2 | J133: 0.0001437912878
B134: 105 | C134: 60.845 | D134: 22.87140186 | E134: 1.0308865 | F134: 0.0002957400841 | G134: 0.008472329326 | H134: 7.178036421e-05 | I134: 2 | J134: 0.0001435607284
B135: 106 | C135: 60.85 | D135: 22.87065956 | E135: 1.030144198 | F135: 0.0002955028039 | G135: 0.008465531748 | H135: 7.166522777e-05 | I135: 2 | J135: 0.0001433304555
B136: 107 | C136: 60.855 | D136: 22.86991749 | E136: 1.029402125 | F136: 0.0002952656282 | G136: 0.008458737165 | H136: 7.155023442e-05 | I136: 2 | J136: 0.0001431004688
B137: 108 | C137: 60.86 | D137: 22.86917564 | E137: 1.028660279 | F137: 0.000295028557 | G137: 0.008451945576 | H137: 7.143538402e-05 | I137: 2 | J137: 0.000142870768
B138: 109 | C138: 60.865 | D138: 22.86843402 | E138: 1.027918662 | F138: 0.0002947915903 | G138: 0.008445156981 | H138: 7.132067643e-05 | I138: 2 | J138: 0.0001426413529
B139: 110 | C139: 60.87 | D139: 22.86769263 | E139: 1.027177272 | F139: 0.0002945547281 | G139: 0.008438371377 | H139: 7.120611149e-05 | I139: 2 | J139: 0.000142412223
B140: 111 | C140: 60.875 | D140: 22.86695147 | E140: 1.026436111 | F140: 0.0002943179702 | G140: 0.008431588764 | H140: 7.109168908e-05 | I140: 2 | J140: 0.0001421833782
B141: 112 | C141: 60.88 | D141: 22.86621054 | E141: 1.025695178 | F141: 0.0002940813167 | G141: 0.00842480914 | H141: 7.097740905e-05 | I141: 2 | J141: 0.0001419548181
B142: 113 | C142: 60.885 | D142: 22.86546983 | E142: 1.024954472 | F142: 0.0002938447675 | G142: 0.008418032505 | H142: 7.086327125e-05 | I142: 2 | J142: 0.0001417265425
B143: 114 | C143: 60.89 | D143: 22.86472936 | E143: 1.024213994 | F143: 0.0002936083226 | G143: 0.008411258856 | H143: 7.074927555e-05 | I143: 2 | J143: 0.0001414985511
B144: 115 | C144: 60.895 | D144: 22.86398911 | E144: 1.023473744 | F144: 0.0002933719818 | G144: 0.008404488194 | H144: 7.06354218e-05 | I144: 2 | J144: 0.0001412708436
B145: 116 | C145: 60.9 | D145: 22.86324908 | E145: 1.022733722 | F145: 0.0002931357453 | G145: 0.008397720515 | H145: 7.052170985e-05 | I145: 2 | J145: 0.0001410434197
B146: 117 | C146: 60.905 | D146: 22.86250929 | E146: 1.021993927 | F146: 0.0002928996129 | G146: 0.00839095582 | H146: 7.040813958e-05 | I146: 2 | J146: 0.0001408162792
B147: 118 | C147: 60.91 | D147: 22.86176972 | E147: 1.02125436 | F147: 0.0002926635846 | G147: 0.008384194108 | H147: 7.029471084e-05 | I147: 2 | J147: 0.0001405894217
B148: 119 | C148: 60.915 | D148: 22.86103038 | E148: 1.020515021 | F148: 0.0002924276604 | G148: 0.008377435376 | H148: 7.018142347e-05 | I148: 2 | J148: 0.0001403628469
B149: 120 | C149: 60.92 | D149: 22.86029127 | E149: 1.019775909 | F149: 0.0002921918401 | G149: 0.008370679623 | H149: 7.006827736e-05 | I149: 2 | J149: 0.0001401365547
B150: 121 | C150: 60.925 | D150: 22.85955238 | E150: 1.019037024 | F150: 0.0002919561238 | G150: 0.008363926849 | H150: 6.995527234e-05 | I150: 2 | J150: 0.0001399105447
B151: 122 | C151: 60.93 | D151: 22.85881373 | E151: 1.018298366 | F151: 0.0002917205115 | G151: 0.008357177053 | H151: 6.984240829e-05 | I151: 2 | J151: 0.0001396848166
B152: 123 | C152: 60.935 | D152: 22.8580753 | E152: 1.017559936 | F152: 0.000291485003 | G152: 0.008350430232 | H152: 6.972968506e-05 | I152: 2 | J152: 0.0001394593701
B153: 124 | C153: 60.94 | D153: 22.85733709 | E153: 1.016821733 | F153: 0.0002912495984 | G153: 0.008343686386 | H153: 6.961710251e-05 | I153: 2 | J153: 0.000139234205
B154: 125 | C154: 60.945 | D154: 22.85659912 | E154: 1.016083757 | F154: 0.0002910142975 | G154: 0.008336945513 | H154: 6.950466049e-05 | I154: 2 | J154: 0.000139009321
B155: 126 | C155: 60.95 | D155: 22.85586137 | E155: 1.015346009 | F155: 0.0002907791005 | G155: 0.008330207613 | H155: 6.939235888e-05 | I155: 2 | J155: 0.0001387847178
B156: 127 | C156: 60.955 | D156: 22.85512385 | E156: 1.014608487 | F156: 0.0002905440071 | G156: 0.008323472684 | H156: 6.928019752e-05 | I156: 2 | J156: 0.000138560395
B157: 128 | C157: 60.96 | D157: 22.85438655 | E157: 1.013871193 | F157: 0.0002903090174 | G157: 0.008316740725 | H157: 6.916817629e-05 | I157: 2 | J157: 0.0001383363526
B158: 129 | C158: 60.965 | D158: =DEGREES(ASIN((C158^2+2*$D$4*$D$7 -$D$7^2)/(2*$D$4*C158))) -> 22.85364949 | E158: =D158-$D$6 -> 1.013134125 | F158: =TAN(E158*PI()/180)/C158 -> 0.0002900741313 | G158: 0.008310011734 | H158: 6.905629503e-05 | I158: 2 | J158: 0.0001381125901
B159: 130 | C159: 60.97 | D159: 22.85291265 | E159: 1.012397284 | F159: 0.0002898393488 | G159: =ABS(F159)*90/PI() -> 0.008303285711 | H159: 6.89445536e-05 | I159: 2 | J159: 0.0001378891072
B160: 131 | C160: 60.975 | D160: 22.85217603 | E160: 1.01166067 | F160: 0.0002896046698 | G160: 0.008296562655 | H160: 6.883295188e-05 | I160: 2 | J160: 0.0001376659038
B161: 132 | C161: 60.98 | D161: 22.85143964 | E161: 1.010924283 | F161: 0.0002893700944 | G161: 0.008289842563 | H161: 6.872148971e-05 | I161: 2 | J161: =H161*I161 -> 0.0001374429794
B162: 133 | C162: 60.985 | D162: 22.85070348 | E162: 1.010188122 | F162: 0.0002891356224 | G162: 0.008283125435 | H162: =G162^2 -> 6.861016697e-05 | I162: 2 | J162: 0.0001372203339
B163: 134 | C163: 60.99 | D163: 22.84996755 | E163: 1.009452188 | F163: 0.0002889012538 | G163: 0.008276411269 | H163: 6.84989835e-05 | I163: 2 | J163: 0.000136997967
B164: 135 | C164: 60.995 | D164: 22.84923184 | E164: 1.00871648 | F164: 0.0002886669886 | G164: 0.008269700065 | H164: 6.838793917e-05 | I164: 2 | J164: 0.0001367758783
B165: 136 | C165: 61 | D165: 22.84849636 | E165: 1.007981 | F165: 0.0002884328267 | G165: 0.008262991821 | H165: 6.827703384e-05 | I165: 2 | J165: 0.0001365540677
B166: 137 | C166: 61.005 | D166: 22.84776111 | E166: 1.007245745 | F166: 0.0002881987681 | G166: 0.008256286536 | H166: 6.816626737e-05 | I166: 2 | J166: 0.0001363325347
B167: 138 | C167: 61.01 | D167: 22.84702608 | E167: 1.006510717 | F167: 0.0002879648127 | G167: 0.008249584209 | H167: 6.805563962e-05 | I167: 2 | J167: 0.0001361112792
B168: 139 | C168: 61.015 | D168: 22.84629128 | E168: 1.005775915 | F168: 0.0002877309606 | G168: 0.008242884838 | H168: 6.794515045e-05 | I168: 2 | J168: 0.0001358903009
B169: 140 | C169: 61.02 | D169: 22.8455567 | E169: 1.00504134 | F169: 0.0002874972116 | G169: 0.008236188423 | H169: 6.783479973e-05 | I169: 2 | J169: 0.0001356695995
B170: 141 | C170: 61.025 | D170: 22.84482235 | E170: 1.004306991 | F170: 0.0002872635657 | G170: 0.008229494961 | H170: 6.772458732e-05 | I170: 2 | J170: 0.0001354491746
B171: 142 | C171: 61.03 | D171: 22.84408823 | E171: 1.003572868 | F171: 0.0002870300229 | G171: 0.008222804453 | H171: 6.761451307e-05 | I171: 2 | J171: 0.0001352290261
B172: 143 | C172: 61.035 | D172: 22.84335433 | E172: 1.002838971 | F172: 0.0002867965831 | G172: 0.008216116896 | H172: 6.750457685e-05 | I172: 2 | J172: 0.0001350091537
B173: 144 | C173: 61.04 | D173: 22.84262066 | E173: 1.0021053 | F173: 0.0002865632464 | G173: 0.00820943229 | H173: 6.739477852e-05 | I173: 2 | J173: 0.000134789557
B174: 145 | C174: 61.045 | D174: 22.84188722 | E174: 1.001371855 | F174: 0.0002863300125 | G174: 0.008202750633 | H174: 6.728511795e-05 | I174: 2 | J174: 0.0001345702359
B175: 146 | C175: 61.05 | D175: 22.841154 | E175: 1.000638636 | F175: 0.0002860968816 | G175: 0.008196071924 | H175: 6.717559499e-05 | I175: 2 | J175: 0.00013435119
B176: 147 | C176: 61.055 | D176: 22.840421 | E176: 0.9999056426 | F176: 0.0002858638536 | G176: 0.008189396162 | H176: 6.70662095e-05 | I176: 2 | J176: 0.000134132419
B177: 148 | C177: 61.06 | D177: 22.83968824 | E177: 0.9991728753 | F177: 0.0002856309283 | G177: 0.008182723346 | H177: 6.695696135e-05 | I177: 2 | J177: 0.0001339139227
B178: 149 | C178: 61.065 | D178: 22.83895569 | E178: 0.9984403337 | F178: 0.0002853981059 | G178: 0.008176053474 | H178: 6.68478504e-05 | I178: 2 | J178: 0.0001336957008
B179: 150 | C179: 61.07 | D179: 22.83822338 | E179: 0.9977080178 | F179: 0.0002851653862 | G179: 0.008169386545 | H179: 6.673887652e-05 | I179: 2 | J179: 0.000133477753
B180: 151 | C180: 61.075 | D180: 22.83749129 | E180: 0.9969759276 | F180: 0.0002849327691 | G180: 0.008162722558 | H180: 6.663003956e-05 | I180: 2 | J180: 0.0001332600791
B181: 152 | C181: 61.08 | D181: 22.83675942 | E181: 0.9962440629 | F181: 0.0002847002548 | G181: 0.008156061512 | H181: 6.65213394e-05 | I181: 2 | J181: 0.0001330426788
B182: 153 | C182: 61.085 | D182: 22.83602778 | E182: 0.9955124238 | F182: 0.000284467843 | G182: 0.008149403406 | H182: 6.641277588e-05 | I182: 2 | J182: 0.0001328255518
B183: 154 | C183: 61.09 | D183: 22.83529637 | E183: 0.9947810101 | F183: 0.0002842355338 | G183: 0.008142748238 | H183: 6.630434888e-05 | I183: 2 | J183: 0.0001326086978
B184: 155 | C184: 61.095 | D184: 22.83456518 | E184: 0.9940498218 | F184: 0.0002840033272 | G184: 0.008136096008 | H184: 6.619605825e-05 | I184: 2 | J184: 0.0001323921165
B185: 156 | C185: 61.1 | D185: 22.83383422 | E185: 0.9933188589 | F185: 0.000283771223 | G185: 0.008129446713 | H185: 6.608790387e-05 | I185: 2 | J185: 0.0001321758077
B186: 157 | C186: 61.105 | D186: 22.83310348 | E186: 0.9925881213 | F186: 0.0002835392213 | G186: 0.008122800354 | H186: 6.597988559e-05 | I186: 2 | J186: 0.0001319597712
B187: 158 | C187: 61.11 | D187: 22.83237297 | E187: 0.9918576089 | F187: 0.000283307322 | G187: 0.008116156928 | H187: 6.587200327e-05 | I187: 2 | J187: 0.0001317440065
B188: 159 | C188: 61.115 | D188: 22.83164268 | E188: 0.9911273216 | F188: 0.000283075525 | G188: 0.008109516434 | H188: 6.576425679e-05 | I188: 2 | J188: 0.0001315285136
B189: 160 | C189: 61.12 | D189: 22.83091262 | E189: 0.9903972595 | F189: 0.0002828438304 | G189: 0.008102878872 | H189: 6.565664601e-05 | I189: 2 | J189: 0.000131313292
B190: 161 | C190: 61.125 | D190: 22.83018278 | E190: 0.9896674224 | F190: 0.000282612238 | G190: 0.008096244239 | H190: 6.554917078e-05 | I190: 2 | J190: 0.0001310983416
B191: 162 | C191: 61.13 | D191: 22.82945317 | E191: 0.9889378104 | F191: 0.0002823807479 | G191: 0.008089612536 | H191: 6.544183098e-05 | I191: 2 | J191: 0.000130883662
B192: 163 | C192: 61.135 | D192: 22.82872378 | E192: 0.9882084232 | F192: 0.00028214936 | G192: 0.00808298376 | H192: 6.533462646e-05 | I192: 2 | J192: 0.0001306692529
B193: 164 | C193: 61.14 | D193: 22.82799462 | E193: 0.987479261 | F193: 0.0002819180742 | G193: 0.00807635791 | H193: 6.522755709e-05 | I193: 2 | J193: 0.0001304551142
B194: 165 | C194: 61.145 | D194: 22.82726568 | E194: 0.9867503236 | F194: 0.0002816868905 | G194: 0.008069734986 | H194: 6.512062274e-05 | I194: 2 | J194: 0.0001302412455
B195: 166 | C195: 61.15 | D195: 22.82653697 | E195: 0.9860216109 | F195: 0.0002814558089 | G195: 0.008063114986 | H195: 6.501382327e-05 | I195: 2 | J195: 0.0001300276465
B196: 167 | C196: 61.155 | D196: 22.82580848 | E196: 0.985293123 | F196: 0.0002812248294 | G196: 0.008056497908 | H196: 6.490715855e-05 | I196: 2 | J196: 0.0001298143171
B197: 168 | C197: 61.16 | D197: 22.82508022 | E197: 0.9845648597 | F197: 0.0002809939518 | G197: 0.008049883753 | H197: 6.480062843e-05 | I197: 2 | J197: 0.0001296012569
B198: 169 | C198: 61.165 | D198: 22.82435218 | E198: 0.9838368209 | F198: 0.0002807631761 | G198: 0.008043272517 | H198: 6.469423279e-05 | I198: 2 | J198: 0.0001293884656
B199: 170 | C199: 61.17 | D199: 22.82362437 | E199: 0.9831090068 | F199: 0.0002805325024 | G199: 0.008036664201 | H199: 6.458797149e-05 | I199: 2 | J199: 0.000129175943
B200: 171 | C200: 61.175 | D200: 22.82289678 | E200: 0.9823814171 | F200: 0.0002803019305 | G200: 0.008030058804 | H200: 6.448184439e-05 | I200: 2 | J200: 0.0001289636888
B201: 172 | C201: 61.18 | D201: 22.82216941 | E201: 0.9816540518 | F201: 0.0002800714604 | G201: 0.008023456323 | H201: 6.437585136e-05 | I201: 2 | J201: 0.0001287517027
B202: 173 | C202: 61.185 | D202: 22.82144227 | E202: 0.9809269109 | F202: 0.0002798410921 | G202: 0.008016856757 | H202: 6.426999227e-05 | I202: 2 | J202: 0.0001285399845
... 4298 more rows

Sheet STEV A
B2: INPUT | C2: Inner groove (null) radius R01 = | D2: 60.325 | E2: mm | H2: QUICK CALCULATOR
B3: INPUT | C3: Outer groove radius R2 = | D3: 146.05 | E3: mm | F3: 'STEVENSON A' CALCULATOR | H3: Enter radius in mm:
B4: INPUT | C4: Tonearm length L = | D4: 250 | E4: mm | F4: USING LÖFGREN'S AND STEVENSON'S EQUATIONS | H4: 146.05
B6: OUTPUT | C6: Offset angle β = | D6: =DEGREES(ASIN($D$16)) -> 20.8236114 | E6: degrees | H6: WTE: TAN(TE) per mm
B7: OUTPUT | C7: Overhang d = | D7: =$D$4-SQRT($D$4^2-$D$13) -> 14.5927507 | E7: mm | F7: INSTRUCTIONS | H7: =TAN(ASIN(($H$4^2+2*$D$4*$D$7-$D$7^2)/(2*$D$4*$H$4))-$D$6*PI()/180)/$H$4 -> 0.0002480635877
F8: 1. Enter R01 into D2, R2 into D3, L into D4. | H8: Tracking Angle (degrees)
B9: OUTPUT | C9: Radius Rw = | D9: =(2*$D$2*$D$13)/($D$2^2+$D$13) -> 79.70276207 | E9: mm | F9: 2. The optimum offset angle β is shown in D6, | H9: =((DEGREES(ASIN((($H$4^2)+(2*$D$4*$D$7)-($D$7^2))/(2*$D$4*$H$4))))) -> 22.89851204
B10: OUTPUT | C10: Derivative of WTE (Rw) = | D10: =((1/$D$4-($D$4^2-$D$18^2+$D$9^2)/(2*$D$4*$D$9^2))*_xlfn.SEC($D$6*PI()/180-ASIN(($D$4^2-$D$18^2+$D$9^2)/(2*$D$4*$D$9)))^2)/($D$9*SQRT(1-($D$4^2-$D$18^2+$D$9^2)^2/(4*$D$4^2*$D$9^2)))+TAN($D$6*PI()/180-ASIN(($D$4^2-$D$18^2+$D$9^2)/(2*$D$4*$D$9)))/$D$9^2 -> 1.018956109e-08 | E10: TAN(TE) per mm2 | F10: and the optimum overhang d is shown in D7. | H10: Tracking Error (degrees)
B11: OUTPUT | C11: Radius Ra = | D11: =SQRT($D$13) -> 84.16309748 | E11: mm | F11: 3. The %RMS tracking distortion is shown in D26. | H11: =((DEGREES(ASIN((($H$4^2)+(2*$D$4*$D$7)-($D$7^2))/(2*$D$4*$H$4))))-$D$6) -> 2.074900644
B12: OUTPUT | C12: Derivative of TE (Ra) = | D12: =($D$13-$D$4^2+$D$18^2)/(2*$D$4*$D$13)/SQRT(1-($D$13+$D$4^2-$D$18^2)^2/(4*$D$4^2*$D$13)) -> -2.181709441e-18 | E12: TAN(TE) per mm | H12: %Tracking Distortion (includes RIAA term)
B13: OUTPUT | C13: Radius Ra2 = | D13: =($D$2^2*$D$3)/((2*SQRT(2)-2)*$D$2-(2*SQRT(2)-3)*$D$3) -> 7083.426977 | E13: mm2 | H13: =ABS($H$7)*90/PI()*0.742288880049004*100 -> 0.5275074674
B14: OUTPUT | C14: (Information only) Radius R1 = | D14: =$D$13/($D$2+$D$15-$D$13/$D$3) -> 54.80574283 | E14: mm
B15: OUTPUT | C15: Outer null radius R02 = | D15: =IF($D$17^2-$D$13<0, "No solution possible",IF($D$17+SQRT($D$17^2-$D$13)>$D$3,"No solution possible",$D$17+SQRT($D$17^2-$D$13))) -> 117.4210854 | E15: mm | H15: Stevenson's Alignment Strategy:
B16: OUTPUT | C16: sin β = | D16: =$D$13/($D$4*$D$9) -> 0.3554921708 | H16: Sets the WTE at the inner groove equal to zero
B17: OUTPUT | C17: Linear offset p = | D17: =$D$4*$D$16 -> 88.8730427 | E17: mm | H17: by placing the inner null radius
B18: OUTPUT | C18: Mounting distance M = | D18: =$D$4-$D$7 -> 235.4072493 | E18: mm | H18: at the inner groove radius.
B19: OUTPUT | C19: WTE at R01 = | D19: =TAN(ASIN(($D$2^2+2*$D$4*$D$7-$D$7^2)/(2*$D$4*$D$2))-$D$6*PI()/180)/$D$2 -> 4.601007147e-18 | E19: TAN(TE) per mm | H19: The R1 figure calculated is for information only.
B20: OUTPUT | C20: WTE at RW = | D20: =TAN(ASIN(($D$9^2+2*$D$4*$D$7-$D$7^2)/(2*$D$4*$D$9))-$D$6*PI()/180)/$D$9 -> -0.0002453284471 | E20: TAN(TE) per mm
B21: OUTPUT | C21: WTE at R2 = | D21: =TAN(ASIN(($D$3^2+2*$D$4*$D$7-$D$7^2)/(2*$D$4*$D$3))-$D$6*PI()/180)/$D$3 -> 0.0002480635877 | E21: TAN(TE) per mm
B22: OUTPUT | C22: %Tracking Distortion at R01 = | D22: =ABS($D$19)*90/PI()*0.742288880049004*100 -> 9.784046301e-15 | E22: (Includes RIAA term)
B23: OUTPUT | C23: %Tracking Distortion at RW = | D23: =ABS($D$20)*90/PI()*0.742288880049004*100 -> 0.5216911881 | E23: (Includes RIAA term)
B24: OUTPUT | C24: %Tracking Distortion at R2 = | D24: =ABS($D$21)*90/PI()*0.742288880049004*100 -> 0.5275074674 | E24: (Includes RIAA term)
B25: OUTPUT | C25: WTE at Rw + WTE at R2 = | D25: =$D$20+$D$21 -> 2.735140658e-06 | E25: TAN(TE) per mm
B26: OUTPUT | C26: %RMS Tracking Distortion = | D26: =RMS_DISTORTION($D$2,$D$3,$D$4,$D$6,$D$7)*100 -> 0.349943776 | E26: (Includes RIAA term)
E43: =RIGHT(CELL("filename",B1),LEN(CELL("filename",B1))-FIND("]",CELL("filename",B1))) -> STEV A

Sheet PERFECT STEV A
B2: INPUT | C2: Inner groove (null) radius R01 = | D2: 60.325 | E2: mm | H2: QUICK CALCULATOR
B3: INPUT | C3: Outer groove radius R2 = | D3: 146.05 | E3: mm | F3: 'PERFECT STEVENSON A' CALCULATOR | H3: Enter radius in mm:
B4: INPUT | C4: Tonearm length L = | D4: 250 | E4: mm | F4: USING THE SOLVER TOOL | H4: 146.05
B6: INPUT/OUTPUT | C6: Offset angle β = | D6: 20.84567227 | E6: degrees | F6: INSTRUCTIONS | H6: WTE: TAN(TE) per mm
B7: INPUT/OUTPUT | C7: Overhang d = | D7: 14.61580594 | E7: mm | F7: 1. Enter R01 into D2, R2 into D3, L into D4. | H7: =TAN(ASIN(($H$4^2+2*$D$4*$D$7-$D$7^2)/(2*$D$4*$H$4))-$D$6*PI()/180)/$H$4 -> 0.0002465300789
F8: 2. Click the orange button to run the Solver. | H8: Tracking Angle (degrees)
B9: OUTPUT | C9: Radius Rw = | D9: 79.73037069 | E9: mm | F9: 3. The "perfect" offset angle β is shown in D6 and | H9: =((DEGREES(ASIN((($H$4^2)+(2*$D$4*$D$7)-($D$7^2))/(2*$D$4*$H$4))))) -> 22.90775716
B10: OUTPUT | C10: Derivative of WTE (Rw) = | D10: =((1/$D$4-($D$4^2-$D$18^2+$D$9^2)/(2*$D$4*$D$9^2))*_xlfn.SEC($D$6*PI()/180-ASIN(($D$4^2-$D$18^2+$D$9^2)/(2*$D$4*$D$9)))^2)/($D$9*SQRT(1-($D$4^2-$D$18^2+$D$9^2)^2/(4*$D$4^2*$D$9^2)))+TAN($D$6*PI()/180-ASIN(($D$4^2-$D$18^2+$D$9^2)/(2*$D$4*$D$9)))/$D$9^2 -> -2.286988958e-20 | E10: TAN(TE) per mm2 | F10: the "perfect" overhang d is shown in D7. | H10: Tracking Error (degrees)
B11: OUTPUT | C11: Radius Ra = | D11: =SQRT($D$13) -> 84.22755597 | E11: mm | F11: 4. The %RMS tracking distortion is shown in D26. | H11: =((DEGREES(ASIN((($H$4^2)+(2*$D$4*$D$7)-($D$7^2))/(2*$D$4*$H$4))))-$D$6) -> 2.062084885
B12: OUTPUT | C12: Derivative of TE (Ra) = | D12: =($D$13-$D$4^2+$D$18^2)/(2*$D$4*$D$13)/SQRT(1-($D$13+$D$4^2-$D$18^2)^2/(4*$D$4^2*$D$13)) -> 0 | E12: TAN(TE) per mm | H12: %Tracking Distortion (includes RIAA term)
B13: OUTPUT | C13: Radius Ra2 = | D13: =$D$4^2-$D$18^2 -> 7094.281185 | E13: mm2 | F13: %RMS Distortion Calculator | H13: =ABS($H$7)*90/PI()*0.742288880049004*100 -> 0.5242464593
B14: OUTPUT | C14: (Information only) Radius R1 = | D14: =$D$13/($D$2+$D$15-$D$13/$D$3) -> 54.84490855 | E14: mm | F14: 1. Enter arm length L in D4, offset angle β in D6 and overhang d in D7.
B15: OUTPUT | C15: Outer null radius R02 = | D15: =IF($D$17^2-$D$13<0, "No solution possible",IF($D$17+SQRT($D$17^2-$D$13)>$D$3,"No solution possible",$D$17+SQRT($D$17^2-$D$13))) -> 117.6010143 | E15: mm | F15: 2. Read the resulting %RMS tracking distortion in D26. | H15: Stevenson's Alignment Strategy:
B16: OUTPUT | C16: sin β = | D16: =SIN($D$6*PI()/180) -> 0.3558520285 | H16: Sets the WTE at the inner groove radius equal
B17: OUTPUT | C17: Linear offset p = | D17: =$D$4*$D$16 -> 88.96300713 | E17: mm | F17: SOLVER SETTINGS | H17: to zero by placing the inner null radius
B18: OUTPUT | C18: Mounting distance M = | D18: =$D$4-$D$7 -> 235.3841941 | E18: mm | F18: Objective Cell = D19 (WTE at R01) Equal to Value of: 0 | H18: at the inner groove radius.
B19: OUTPUT | C19: WTE at R01 = | D19: =TAN(ASIN(($D$2^2+2*$D$4*$D$7-$D$7^2)/(2*$D$4*$D$2))-$D$6*PI()/180)/$D$2 -> 9.202014294e-19 | E19: TAN(TE) per mm | F19: Changing Cells = D6 (β), D7 (d), D9 (Rw) | H19: The R1 figure calculated is for information only.
B20: OUTPUT | C20: WTE at RW = | D20: =TAN(ASIN(($D$9^2+2*$D$4*$D$7-$D$7^2)/(2*$D$4*$D$9))-$D$6*PI()/180)/$D$9 -> -0.0002465300789 | E20: TAN(TE) per mm | F20: Constraints: D10 = 0 (Derivative of WTE function = 0 at Rw)
B21: OUTPUT | C21: WTE at R2 = | D21: =TAN(ASIN(($D$3^2+2*$D$4*$D$7-$D$7^2)/(2*$D$4*$D$3))-$D$6*PI()/180)/$D$3 -> 0.0002465300789 | E21: TAN(TE) per mm | F21: D25 = 0 (WTE Rw + WTE R2 = 0)
B22: OUTPUT | C22: %Tracking Distortion at R01 = | D22: =ABS($D$19)*90/PI()*0.742288880049004*100 -> 1.95680926e-15 | E22: (Includes RIAA term) | F22: Make Unconstrained Variables Non-Negative.
B23: OUTPUT | C23: %Tracking Distortion at RW = | D23: =ABS($D$20)*90/PI()*0.742288880049004*100 -> 0.5242464593 | E23: (Includes RIAA term) | F23: Solving Method: GRG Nonlinear. Constraint Precision: 1E-14
B24: OUTPUT | C24: %Tracking Distortion at R2 = | D24: =ABS($D$21)*90/PI()*0.742288880049004*100 -> 0.5242464593 | E24: (Includes RIAA term) | F24: Use Automatic Scaling. Max Time: 100 seconds.
B25: OUTPUT | C25: WTE at Rw + WTE at R2 = | D25: =$D$20+$D$21 -> 4.878909776e-19 | E25: TAN(TE) per mm | F25: Iterations: 10000. Convergence: 1E-14 Derivatives: Central.
B26: OUTPUT | C26: %RMS Tracking Distortion = | D26: =RMS_DISTORTION($D$2,$D$3,$D$4,$D$6,$D$7)*100 -> 0.3507518166 | E26: (Includes RIAA term) | F26: Require Bounds on Variables.
E43: =RIGHT(CELL("filename",B1),LEN(CELL("filename",B1))-FIND("]",CELL("filename",B1))) -> PERFECT STEV A

Sheet LÖF EQN (46)
D2: MEAN AND RMS TRACKING DISTORTION CALCULATOR
D4: USING LÖFGREN'S EQN (46)
B8: INPUT PARAMETERS | F8: THE SEVEN TERMS IN EQN (46) | I8: WITHOUT RIAA CORRECTION (PER LÖFGREN)
B9: INPUT | C9: Inner radius R1 = | D9: 60.325 | E9: mm | F9: Term 1 = | G9: =$D$14^2/($D$15/60*2*PI())^2*(1/($D$10-$D$9))*(1/($D$11^2-(($D$11*SIN($D$12*PI()/180))^2))) -> 0.0001781829076 | I9: MEAN Tracking Distortion = | J9: =$G$9*($G$10-$G$11+$G$12+$G$13-$G$14+$G$15) -> 2.689952102e-05
B10: INPUT | C10: Outer radius R2 = | D10: 146.05 | E10: mm | F10: Term 2 = | G10: =($D$10-$D$9)/4 -> 21.43125 | I10: RMS Tracking Distortion = | J10: =SQRT($J$9) -> 0.005186474816
B11: INPUT | C11: Arm length L = | D11: 250 | E11: mm | F11: Term 3 = | G11: =$D$11*SIN($D$12*PI()/180)*LN($D$10/$D$9) -> 82.80701386 | I11: %RMS Tracking Distortion = | J11: =$J$10*100 -> 0.5186474816
B12: INPUT | C12: Offset angle β = | D12: 22 | E12: degrees | F12: Term 4 = | G12: =(2*$D$11*$D$13-$D$13^2)/2*(1/$D$9-1/$D$10) -> 37.67419233 | I12: WITH RIAA CORRECTION
B13: INPUT | C13: Overhang d = | D13: 16 | E13: mm | F13: Term 5 = | G13: =($D$11*SIN($D$12*PI()/180))^2*(1/$D$9-1/$D$10) -> 85.33740913 | I13: %RMS Tracking Distortion = | J13: =$J$11* 0.742288880049004 -> 0.3849862583
B14: INPUT | C14: Maximum peak recorded velocity V = | D14: 100 | E14: mm/sec | F14: Term 6 = | G14: =($D$11*SIN($D$12*PI()/180))*(2*$D$11*$D$13-$D$13^2)/2*(1/$D$9^2-1/$D$10^2) -> 82.64518776
B15: INPUT | C15: Turntable speed Ω = | D15: =100/3 -> 33.33333333 | E15: RPM | F15: Term 7 = | G15: =(2*$D$11*$D$13-$D$13^2)^2/12*(1/$D$9^3-1/$D$10^3) -> 21.16031594
F19: This sheet is included for historical purposes and to
F20: act as a reference for the distortion calculations
F21: based on Löfgren's EQN (46) as described
F22: in the writer's tonearm alignment book.

Sheet TESTS
B2: INPUT PARAMETERS | D2: SETTINGS | F2: PARAMETER SLIDERS | H2: QUICK CALCULATOR
B3: INPUT | C3: Inner groove radius R1 = | D3: =($F$3/1000) -> 60.325 | E3: mm << | F3: 60325 | H3: Enter radius in mm:
B4: INPUT | C4: Outer groove radius R2 = | D4: =$F$4/1000 -> 146.05 | E4: mm << | F4: 146050 | H4: 146.05
B5: INPUT | C5: Tonearm length L = | D5: =$F$5/100 -> 250 | E5: mm << | F5: 25000
B6: INPUT | C6: Offset angle β = | D6: =$F$6/100 -> 21.96 | E6: degrees << | F6: 2196 | H6: WTE: TAN(TE) per mm
B7: INPUT | C7: Overhang d = | D7: =$F$7/100 -> 16.51 | E7: mm << | F7: 1651 | H7: =IFERROR(TAN(ASIN(($H$4^2+2*$D$5*$D$7-$D$7^2)/(2*$D$5*$H$4))-$D$6*PI()/180)/$H$4,"No solution possible") -> 0.0002039791785
H8: Tracking Angle (degrees)
B9: OUTPUT | C9: Radius RW = | D9: 85.37096047 | E9: mm | H9: =IFERROR(((DEGREES(ASIN((($H$4^2)+(2*$D$5*$D$7)-($D$7^2))/(2*$D$5*$H$4))))),"No solution possible") -> 23.66640298
B10: OUTPUT | C10: Derivative of WTE at Rw = | D10: =IFERROR(((1/$D$5-($D$5^2-$D$18^2+$D$9^2)/(2*$D$5*$D$9^2))*_xlfn.SEC($D$6*PI()/180-ASIN(($D$5^2-$D$18^2+$D$9^2)/(2*$D$5*$D$9)))^2)/($D$9*SQRT(1-($D$5^2-$D$18^2+$D$9^2)^2/(4*$D$5^2*$D$9^2)))+TAN($D$6*PI()/180-ASIN(($D$5^2-$D$18^2+$D$9^2)/(2*$D$5*$D$9)))/$D$9^2,"No solution possible") -> -2.320711033e-15 | E10: TAN(TE) per mm2 | H10: Tracking Error (degrees)
B11: OUTPUT | C11: Radius Ra = | D11: =IFERROR(SQRT($D$13),"No solution possible") -> 89.3443893 | E11: mm | H11: =IFERROR(((DEGREES(ASIN((($H$4^2)+(2*$D$5*$D$7)-($D$7^2))/(2*$D$5*$H$4))))-$D$6),"No solution possible") -> 1.706402979
B12: OUTPUT | C12: Derivative of TE at Ra = | D12: =IFERROR(($D$13-$D$5^2+$D$18^2)/(2*$D$5*$D$13)/SQRT(1-($D$13+$D$5^2-$D$18^2)^2/(4*$D$5^2*$D$13)),"No solution possible") -> 0 | E12: TAN(TE) per mm | H12: %Tracking Distortion
B13: OUTPUT | C13: Radius Ra2 = | D13: =IFERROR($D$5^2-$D$18^2,"No solution possible") -> 7982.4199 | E13: mm2 | H13: =IFERROR(ABS($H$7)*90/PI()*0.742288880049004*100,"No solution possible") -> 0.4337619271
B14: OUTPUT | C14: Inner null radius R01 = | D14: =IFERROR(IF($D$17^2-$D$13<0, "No solution possible",IF($D$17-SQRT($D$17^2-$D$13)<$D$3,"No solution possible",$D$17-SQRT($D$17^2-$D$13))),"No solution possible") -> 65.95939874 | E14: mm
B15: OUTPUT | C15: Outer null radius R02 = | D15: =IFERROR(IF($D$17^2-$D$13<0, "No solution possible",IF($D$17+SQRT($D$17^2-$D$13)>$D$4,"No solution possible",$D$17+SQRT($D$17^2-$D$13))),"No solution possible") -> 121.0202041 | E15: mm
B16: OUTPUT | C16: sin β = | D16: =IFERROR(SIN($D$6*PI()/180),"No solution possible") -> 0.3739592057 | G16: Adjust the five input sliders as required
B17: OUTPUT | C17: Linear offset p = | D17: =IFERROR($D$5*$D$16,"No solution possible") -> 93.48980143 | E17: mm | G17: to change the parameters.
B18: OUTPUT | C18: Mounting distance M = | D18: =IFERROR($D$5-$D$7,"No solution possible") -> 233.49 | E18: mm | G18: The data and the plots will update accordingly.
B19: OUTPUT | C19: WTE at R1 = | D19: =IFERROR(TAN(ASIN(($D$3^2+2*$D$5*$D$7-$D$7^2)/(2*$D$5*$D$3))-$D$6*PI()/180)/$D$3,"No solution possible") -> 0.0002031683556 | E19: TAN(TE) per mm | G19: Distortion figures are based on a
B20: OUTPUT | C20: WTE at RW = | D20: =IFERROR(TAN(ASIN(($D$9^2+2*$D$5*$D$7-$D$7^2)/(2*$D$5*$D$9))-$D$6*PI()/180)/$D$9,"No solution possible") -> -0.0002040682937 | E20: TAN(TE) per mm | G20: 1 KHz tone with RIAA de-emphasis applied.
B21: OUTPUT | C21: WTE at R2 = | D21: =IFERROR(TAN(ASIN(($D$4^2+2*$D$5*$D$7-$D$7^2)/(2*$D$5*$D$4))-$D$6*PI()/180)/$D$4,"No solution possible") -> 0.0002039791785 | E21: TAN(TE) per mm
B22: OUTPUT | C22: %Tracking Distortion at R1 = | D22: =IFERROR(ABS($D$19)*90/PI()*0.742288880049004*100,"No solution possible") -> 0.4320377114 | E22: (Includes RIAA term) | G22: PLEASE NOTE:
B23: OUTPUT | C23: %Tracking Distortion at RW = | D23: =IFERROR(ABS($D$20)*90/PI()*0.742288880049004*100,"No solution possible") -> 0.4339514307 | E23: (Includes RIAA term) | G23: Cell H4 (Quick Calculator radius input)
B24: OUTPUT | C24: %Tracking Distortion at R2 = | D24: =IFERROR(ABS($D$21)*90/PI()*0.742288880049004*100,"No solution possible") -> 0.4337619271 | E24: (Includes RIAA term) | G24: is the only data input cell on this sheet.
B25: OUTPUT | C25: %RMS Tracking Distortion = | D25: =IFERROR(RMS_DISTORTION($D$3,$D$4,$D$5,$D$6,$D$7)*100,"No solution possible") -> 0.2885732014 | E25: (Includes RIAA term) | G25: All other cells are protected.
F27: SOLVER SETTINGS
A28: EXPERIMENTER'S | F28: Objective Cell: D10 (Derivative of WTE) Equal to: Value = 0
A29: TONEARM ALIGNMENT WORKSHOP | F29: Changing Cell: D9 (Rw)
F30: Constraints: D9 (Rw) >= D3 (R1)
F31: D9 (Rw) <= D4 (R2)
F32: Make Unconstrained Variables Non-Negative.
F33: Solving Method: GRG Nonlinear. Constraint Precision: 1E-14
F34: Use Automatic Scaling. Max Time: 100 seconds.
F35: Iterations: 10000. Convergence: 1E-14 Derivatives: Central.
F36: Require Bounds on Variables.
B200: TAN(ASIN((x^2+2*$D$5*$D$7-$D$7^2)/(2*$D$5*x))-$D$6*PI()/180)/x
B201: DEGREES(ASIN((x^2+2*$D$5*$D$7-$D$7^2)/(2*$D$5*x)))-$D$6
B202: ABS(TAN(ASIN((x^2+2*$D$5*$D$7-$D$7^2)/(2*$D$5*x))-$D$6*PI()/180)/x)*90/PI()*0.742288880049004

Sheet PLOTS
B3: TRACKING DISTORTION AND WTE PLOTS FOR
B4: THE EIGHT ALIGNMENT SHEETS
B7: SELECT THE DESIRED RECORDING PARAMETERS:
D9: Record speed: | E9: 33⅓ | F9: RPM
D11: Maximum peak recorded velocity: | E11: 100 | F11: mm / sec
D13: Equalisation: | E13: RIAA
D15: =IF(E13="No Eq.","", "Frequency:") -> Frequency: | E15: 1000 | F15: =IF(E13="No Eq.", "", " Hz") -> Hz
B19: 1. Select record speed from drop-down list.
B20: 2. Enter maximum peak recorded velocity in mm/sec
B21: 3. Select equalisation type from drop-down list.
B22: 4. Enter Frequency in Hz (if requested).
B23: 5. The tracking distortion plots are shown in the upper graph.
B24: 6. The WTE plots are shown in the lower graph.
B26: Plots are based on radius R1 = 60.325 mm and radius R2 = 146.05 mm.
B28: The plots use the arm length, offset angle and overhang figures
B29: showing on the respective alignment sheets.
B30: When data on the alignment sheets is changed, the respective plots
B31: are automatically updated.

Sheet PLOT DATA (hidden)
A1: L = | B1: ='LÖF A'!D4 -> 250 | C1: mm | D1: ='PERFECT LÖF A'!D4 -> 250 | E1: mm | F1: ='LÖF B'!D4 -> 250 | G1: mm | H1: ='PERFECT LÖF B'!D4 -> 250 | I1: mm | J1: ='LÖF C'!D4 -> 250 | K1: mm | L1: ='PERFECT LÖF C'!D4 -> 250 | M1: mm | N1: ='STEV A'!D4 -> 250 | O1: mm | P1: ='PERFECT STEV A'!D4 -> 250 | Q1: mm
A2: d = | B2: ='LÖF A'!D7 -> 16.50182275 | C2: mm | D2: ='PERFECT LÖF A'!D7 -> 16.5157297 | E2: mm | F2: ='LÖF B'!D7 -> 15.63580753 | G2: mm | H2: ='PERFECT LÖF B'!D7 -> 15.63038032 | I2: mm | J2: ='LÖF C'!D7 -> 16.79798797 | K2: mm | L2: ='PERFECT LÖF C'!D7 -> 16.80913371 | M2: mm | N2: ='STEV A'!D7 -> 14.5927507 | O2: mm | P2: ='PERFECT STEV A'!D7 -> 14.61580594 | Q2: mm
A3: β = | B3: ='LÖF A'!D6 -> 21.9488704 | C3: degrees | D3: ='PERFECT LÖF A'!D6 -> 21.96299731 | E3: degrees | F3: ='LÖF B'!D5 -> 21 | G3: degrees | H3: ='PERFECT LÖF B'!D5 -> 21 | I3: degrees | J3: ='LÖF C'!D6 -> 21.82842702 | K3: degrees | L3: ='PERFECT LÖF C'!D6 -> 21.84051542 | M3: degrees | N3: ='STEV A'!D6 -> 20.8236114 | O3: degrees | P3: ='PERFECT STEV A'!D6 -> 20.84567227 | Q3: degrees
B4: ='LÖF A'!F45 -> LÖF A | D4: ='PERFECT LÖF A'!E43 -> PERFECT LÖF A | F4: ='LÖF B'!E45 -> LÖF B | H4: ='PERFECT LÖF B'!E43 -> PERFECT LÖF B | J4: ='LÖF C'!E45 -> LÖF C | L4: ='PERFECT LÖF C'!E43 -> PERFECT LÖF C | N4: ='STEV A'!E43 -> STEV A | P4: ='PERFECT STEV A'!E43 -> PERFECT STEV A | S4: DO NOT CHANGE THIS SHEET!
A5: Radius | B5: WTE | C5: Distortion | D5: WTE | E5: Distortion | F5: WTE | G5: Distortion | H5: WTE | I5: Distortion | J5: WTE | K5: Distortion | L5: WTE | M5: Distortion | N5: WTE | O5: Distortion | P5: WTE | Q5: Distortion
A6: 60.325 | B6: =TAN(ASIN(($A6^2+2*B$1*B$2-B$2^2)/2/B$1/$A6)-B$3*PI()/180)/$A6 -> 0.000204114308 | C6: =PLOTS!$E$11/($T$9/60*2*PI())*ABS(B6)*$T$12 -> 0.004340492802 | D6: =TAN(ASIN(($A6^2+2*D$1*D$2-D$2^2)/2/D$1/$A6)-D$3*PI()/180)/$A6 -> 0.0002038948297 | E6: =PLOTS!$E$11/($T$9/60*2*PI())*ABS(D6)*$T$12 -> 0.004335825594 | F6: =TAN(ASIN(($A6^2+2*F$1*F$2-F$2^2)/2/F$1/$A6)-F$3*PI()/180)/$A6 -> 0.0002380727536 | G6: =PLOTS!$E$11/($T$9/60*2*PI())*ABS(F6)*$T$12 -> 0.005062619487 | H6: =TAN(ASIN(($A6^2+2*H$1*H$2-H$2^2)/2/H$1/$A6)-H$3*PI()/180)/$A6 -> 0.0002365664464 | I6: =PLOTS!$E$11/($T$9/60*2*PI())*ABS(H6)*$T$12 -> 0.00503058785 | J6: =TAN(ASIN(($A6^2+2*J$1*J$2-J$2^2)/2/J$1/$A6)-J$3*PI()/180)/$A6 -> 0.00032139177 | K6: =PLOTS!$E$11/($T$9/60*2*PI())*ABS(J6)*$T$12 -> 0.006834399204 | L6: =TAN(ASIN(($A6^2+2*L$1*L$2-L$2^2)/2/L$1/$A6)-L$3*PI()/180)/$A6 -> 0.0003209965483 | M6: =PLOTS!$E$11/($T$9/60*2*PI())*ABS(L6)*$T$12 -> 0.006825994811 | N6: =TAN(ASIN(($A6^2+2*N$1*N$2-N$2^2)/2/N$1/$A6)-N$3*PI()/180)/$A6 -> 3.680805718e-18 | O6: =PLOTS!$E$11/($T$9/60*2*PI())*ABS(N6)*$T$12 -> 7.827237041e-17 | P6: =TAN(ASIN(($A6^2+2*P$1*P$2-P$2^2)/2/P$1/$A6)-P$3*PI()/180)/$A6 -> 0 | Q6: =PLOTS!$E$11/($T$9/60*2*PI())*ABS(P6)*$T$12 -> 0
A7: 60.4 | B7: =TAN(ASIN(($A7^2+2*B$1*B$2-B$2^2)/2/B$1/$A7)-B$3*PI()/180)/$A7 -> 0.0002006588307 | C7: =PLOTS!$E$11/($T$9/60*2*PI())*ABS(B7)*$T$12 -> 0.004267012041 | D7: 0.0002004345168 | E7: =PLOTS!$E$11/($T$9/60*2*PI())*ABS(D7)*$T$12 -> 0.004262242006 | F7: 0.0002348913932 | G7: =PLOTS!$E$11/($T$9/60*2*PI())*ABS(F7)*$T$12 -> 0.004994967827 | H7: 0.0002333889368 | I7: =PLOTS!$E$11/($T$9/60*2*PI())*ABS(H7)*$T$12 -> 0.004963018076 | J7: =TAN(ASIN(($A7^2+2*J$1*J$2-J$2^2)/2/J$1/$A7)-J$3*PI()/180)/$A7 -> 0.000317680929 | K7: =PLOTS!$E$11/($T$9/60*2*PI())*ABS(J7)*$T$12 -> 0.006755488132 | L7: =TAN(ASIN(($A7^2+2*L$1*L$2-L$2^2)/2/L$1/$A7)-L$3*PI()/180)/$A7 -> 0.0003172820901 | M7: =PLOTS!$E$11/($T$9/60*2*PI())*ABS(L7)*$T$12 -> 0.00674700682 | N7: =TAN(ASIN(($A7^2+2*N$1*N$2-N$2^2)/2/N$1/$A7)-N$3*PI()/180)/$A7 -> -2.508290014e-06 | O7: =PLOTS!$E$11/($T$9/60*2*PI())*ABS(N7)*$T$12 -> 5.333881224e-05 | P7: =TAN(ASIN(($A7^2+2*P$1*P$2-P$2^2)/2/P$1/$A7)-P$3*PI()/180)/$A7 -> -2.516573268e-06 | Q7: =PLOTS!$E$11/($T$9/60*2*PI())*ABS(P7)*$T$12 -> 5.351495572e-05
A8: 60.5 | B8: 0.000196087967 | C8: =PLOTS!$E$11/($T$9/60*2*PI())*ABS(B8)*$T$12 -> 0.004169812579 | D8: 0.0001958572467 | E8: =PLOTS!$E$11/($T$9/60*2*PI())*ABS(D8)*$T$12 -> 0.004164906309 | F8: 0.0002306835941 | G8: =PLOTS!$E$11/($T$9/60*2*PI())*ABS(F8)*$T$12 -> 0.004905488937 | H8: 0.0002291862484 | I8: =PLOTS!$E$11/($T$9/60*2*PI())*ABS(H8)*$T$12 -> 0.004873647866 | J8: 0.0003127710614 | K8: =PLOTS!$E$11/($T$9/60*2*PI())*ABS(J8)*$T$12 -> 0.00665107975 | L8: 0.0003123674315 | M8: =PLOTS!$E$11/($T$9/60*2*PI())*ABS(L8)*$T$12 -> 0.006642496556 | N8: -5.82289281e-06 | O8: =PLOTS!$E$11/($T$9/60*2*PI())*ABS(N8)*$T$12 -> 0.0001238238739 | P8: -5.842153335e-06 | Q8: =PLOTS!$E$11/($T$9/60*2*PI())*ABS(P8)*$T$12 -> 0.0001242334491
A9: 60.6 | B9: 0.000191558433 | C9: =PLOTS!$E$11/($T$9/60*2*PI())*ABS(B9)*$T$12 -> 0.004073491993 | D9: 0.0001913213526 | E9: =PLOTS!$E$11/($T$9/60*2*PI())*ABS(D9)*$T$12 -> 0.004068450476 | F9: 0.0002265143744 | G9: =PLOTS!$E$11/($T$9/60*2*PI())*ABS(F9)*$T$12 -> 0.004816830437 | H9: 0.0002250221127 | I9: =PLOTS!$E$11/($T$9/60*2*PI())*ABS(H9)*$T$12 -> 0.004785097478 | J9: 0.0003079042052 | K9: =PLOTS!$E$11/($T$9/60*2*PI())*ABS(J9)*$T$12 -> 0.006547586004 | L9: 0.0003074958205 | M9: =PLOTS!$E$11/($T$9/60*2*PI())*ABS(L9)*$T$12 -> 0.006538901699 | N9: -9.10371947e-06 | O9: =PLOTS!$E$11/($T$9/60*2*PI())*ABS(N9)*$T$12 -> 0.0001935906856 | P9: -9.133881169e-06 | Q9: =PLOTS!$E$11/($T$9/60*2*PI())*ABS(P9)*$T$12 -> 0.0001942320744 | S9: RPM = | T9: =IF(ISNUMBER(PLOTS!E9),PLOTS!E9, 100/3) -> 33.33333333
A10: 60.7 | B10: 0.0001870698876 | C10: =PLOTS!$E$11/($T$9/60*2*PI())*ABS(B10)*$T$12 -> 0.003978043032 | D10: 0.0001868264932 | E10: =PLOTS!$E$11/($T$9/60*2*PI())*ABS(D10)*$T$12 -> 0.003972867246 | F10: 0.0002223834155 | G10: =PLOTS!$E$11/($T$9/60*2*PI())*ABS(F10)*$T$12 -> 0.004728985556 | H10: 0.0002208962113 | I10: =PLOTS!$E$11/($T$9/60*2*PI())*ABS(H10)*$T$12 -> 0.004697360143 | J10: 0.0003030800076 | K10: =PLOTS!$E$11/($T$9/60*2*PI())*ABS(J10)*$T$12 -> 0.006444999394 | L10: 0.000302666904 | M10: =PLOTS!$E$11/($T$9/60*2*PI())*ABS(L10)*$T$12 -> 0.006436214741 | N10: -1.235105391e-05 | O10: =PLOTS!$E$11/($T$9/60*2*PI())*ABS(N10)*$T$12 -> 0.000262645285 | P10: -1.239204129e-05 | Q10: =PLOTS!$E$11/($T$9/60*2*PI())*ABS(P10)*$T$12 -> 0.000263516882
A11: 60.8 | B11: 0.0001826219932 | C11: =PLOTS!$E$11/($T$9/60*2*PI())*ABS(B11)*$T$12 -> 0.003883458512 | D11: 0.0001823723303 | E11: =PLOTS!$E$11/($T$9/60*2*PI())*ABS(D11)*$T$12 -> 0.003878149428 | F11: 0.0002182904021 | G11: =PLOTS!$E$11/($T$9/60*2*PI())*ABS(F11)*$T$12 -> 0.004641947584 | H11: 0.000216808229 | I11: =PLOTS!$E$11/($T$9/60*2*PI())*ABS(H11)*$T$12 -> 0.004610429158 | J11: 0.0002982981191 | K11: =PLOTS!$E$11/($T$9/60*2*PI())*ABS(J11)*$T$12 -> 0.006343312486 | L11: 0.0002978803321 | M11: =PLOTS!$E$11/($T$9/60*2*PI())*ABS(L11)*$T$12 -> 0.006334428242 | N11: -1.556517738e-05 | O11: =PLOTS!$E$11/($T$9/60*2*PI())*ABS(N11)*$T$12 -> 0.0003309936526 | P11: -1.561691553e-05 | Q11: =PLOTS!$E$11/($T$9/60*2*PI())*ABS(P11)*$T$12 -> 0.000332093865
A12: 60.9 | B12: 0.000178214415 | C12: =PLOTS!$E$11/($T$9/60*2*PI())*ABS(B12)*$T$12 -> 0.003789731318 | D12: 0.000177958529 | E12: =PLOTS!$E$11/($T$9/60*2*PI())*ABS(D12)*$T$12 -> 0.003784289899 | F12: 0.0002142350215 | G12: =PLOTS!$E$11/($T$9/60*2*PI())*ABS(F12)*$T$12 -> 0.004555709876 | H12: 0.0002127578533 | I12: =PLOTS!$E$11/($T$9/60*2*PI())*ABS(H12)*$T$12 -> 0.004524297879 | J12: 0.0002935581934 | K12: =PLOTS!$E$11/($T$9/60*2*PI())*ABS(J12)*$T$12 -> 0.006242517918 | L12: 0.0002931357584 | M12: =PLOTS!$E$11/($T$9/60*2*PI())*ABS(L12)*$T$12 -> 0.006233534836 | N12: -1.874636843e-05 | O12: =PLOTS!$E$11/($T$9/60*2*PI())*ABS(N12)*$T$12 -> 0.0003986417123 | P12: -1.880878305e-05 | Q12: =PLOTS!$E$11/($T$9/60*2*PI())*ABS(P12)*$T$12 -> 0.0003999689597 | S12: Eq. Factor = | T12: =EQUALISATION(2*PLOTS!E15,PLOTS!E13,0)/EQUALISATION(PLOTS!E15,PLOTS!E13,0) -> 0.74228888
A13: 61 | B13: 0.0001738468217 | C13: =PLOTS!$E$11/($T$9/60*2*PI())*ABS(B13)*$T$12 -> 0.003696854403 | D13: 0.0001735847574 | E13: =PLOTS!$E$11/($T$9/60*2*PI())*ABS(D13)*$T$12 -> 0.003691281603 | F13: 0.0002102169643 | G13: =PLOTS!$E$11/($T$9/60*2*PI())*ABS(F13)*$T$12 -> 0.004470265849 | H13: 0.000208744775 | I13: =PLOTS!$E$11/($T$9/60*2*PI())*ABS(H13)*$T$12 -> 0.004438959729 | J13: 0.0002888598876 | K13: =PLOTS!$E$11/($T$9/60*2*PI())*ABS(J13)*$T$12 -> 0.006142608399 | L13: 0.0002884328397 | M13: =PLOTS!$E$11/($T$9/60*2*PI())*ABS(L13)*$T$12 -> 0.006133527222 | N13: -2.189490304e-05 | O13: =PLOTS!$E$11/($T$9/60*2*PI())*ABS(N13)*$T$12 -> 0.0004655953321 | P13: -2.196792038e-05 | Q13: =PLOTS!$E$11/($T$9/60*2*PI())*ABS(P13)*$T$12 -> 0.0004671480466
A14: 61.1 | B14: 0.0001695188849 | C14: =PLOTS!$E$11/($T$9/60*2*PI())*ABS(B14)*$T$12 -> 0.003604820783 | D14: 0.0001692506869 | E14: =PLOTS!$E$11/($T$9/60*2*PI())*ABS(D14)*$T$12 -> 0.003599117551 | F14: 0.0002062359237 | G14: =PLOTS!$E$11/($T$9/60*2*PI())*ABS(F14)*$T$12 -> 0.004385608981 | H14: 0.0002047686876 | I14: =PLOTS!$E$11/($T$9/60*2*PI())*ABS(H14)*$T$12 -> 0.004354408189 | J14: 0.0002842028621 | K14: =PLOTS!$E$11/($T$9/60*2*PI())*ABS(J14)*$T$12 -> 0.006043576705 | L14: 0.000283771236 | M14: =PLOTS!$E$11/($T$9/60*2*PI())*ABS(L14)*$T$12 -> 0.006034398172 | N14: -2.501105454e-05 | O14: =PLOTS!$E$11/($T$9/60*2*PI())*ABS(N14)*$T$12 -> 0.0005318603249 | P14: -2.509460145e-05 | Q14: =PLOTS!$E$11/($T$9/60*2*PI())*ABS(P14)*$T$12 -> 0.0005336369509
A15: 61.2 | B15: 0.0001652302793 | C15: =PLOTS!$E$11/($T$9/60*2*PI())*ABS(B15)*$T$12 -> 0.003513623543 | D15: 0.0001649559919 | E15: =PLOTS!$E$11/($T$9/60*2*PI())*ABS(D15)*$T$12 -> 0.003507790818 | F15: 0.000202291596 | G15: =PLOTS!$E$11/($T$9/60*2*PI())*ABS(F15)*$T$12 -> 0.004301732812 | H15: 0.0002008292873 | I15: =PLOTS!$E$11/($T$9/60*2*PI())*ABS(H15)*$T$12 -> 0.004270636804 | J15: 0.0002795867802 | K15: =PLOTS!$E$11/($T$9/60*2*PI())*ABS(J15)*$T$12 -> 0.005945415678 | L15: 0.0002791506104 | M15: =PLOTS!$E$11/($T$9/60*2*PI())*ABS(L15)*$T$12 -> 0.005936140523 | N15: -2.809509371e-05 | O15: =PLOTS!$E$11/($T$9/60*2*PI())*ABS(N15)*$T$12 -> 0.0005974424489 | P15: -2.818909762e-05 | Q15: =PLOTS!$E$11/($T$9/60*2*PI())*ABS(P15)*$T$12 -> 0.0005994414428
A16: 61.3 | B16: 0.0001609806828 | C16: =PLOTS!$E$11/($T$9/60*2*PI())*ABS(B16)*$T$12 -> 0.003423255831 | D16: 0.0001607003498 | E16: =PLOTS!$E$11/($T$9/60*2*PI())*ABS(D16)*$T$12 -> 0.003417294546 | F16: 0.0001983836801 | G16: =PLOTS!$E$11/($T$9/60*2*PI())*ABS(F16)*$T$12 -> 0.004218630943 | H16: 0.0001969262735 | I16: =PLOTS!$E$11/($T$9/60*2*PI())*ABS(H16)*$T$12 -> 0.004187639177 | J16: 0.0002750113087 | K16: =PLOTS!$E$11/($T$9/60*2*PI())*ABS(J16)*$T$12 -> 0.00584811823 | L16: 0.0002745706294 | M16: =PLOTS!$E$11/($T$9/60*2*PI())*ABS(L16)*$T$12 -> 0.00583874718 | N16: -3.11472888e-05 | O16: =PLOTS!$E$11/($T$9/60*2*PI())*ABS(N16)*$T$12 -> 0.000662347408 | P16: -3.125167768e-05 | Q16: =PLOTS!$E$11/($T$9/60*2*PI())*ABS(P16)*$T$12 -> 0.0006645672384
A17: 61.4 | B17: 0.0001567697762 | C17: =PLOTS!$E$11/($T$9/60*2*PI())*ABS(B17)*$T$12 -> 0.003333710859 | D17: 0.000156483441 | E17: =PLOTS!$E$11/($T$9/60*2*PI())*ABS(D17)*$T$12 -> 0.003327621939 | F17: 0.0001945118781 | G17: =PLOTS!$E$11/($T$9/60*2*PI())*ABS(F17)*$T$12 -> 0.004136297033 | H17: 0.0001930593482 | I17: =PLOTS!$E$11/($T$9/60*2*PI())*ABS(H17)*$T$12 -> 0.004105408972 | J17: 0.0002704761172 | K17: =PLOTS!$E$11/($T$9/60*2*PI())*ABS(J17)*$T$12 -> 0.005751677338 | L17: 0.0002700309623 | M17: =PLOTS!$E$11/($T$9/60*2*PI())*ABS(L17)*$T$12 -> 0.005742211114 | N17: -3.416790552e-05 | O17: =PLOTS!$E$11/($T$9/60*2*PI())*ABS(N17)*$T$12 -> 0.0007265808528 | P17: -3.428260791e-05 | Q17: =PLOTS!$E$11/($T$9/60*2*PI())*ABS(P17)*$T$12 -> 0.0007290200001
A18: 61.5 | B18: 0.0001525972433 | C18: =PLOTS!$E$11/($T$9/60*2*PI())*ABS(B18)*$T$12 -> 0.003244981905 | D18: 0.0001523049491 | E18: =PLOTS!$E$11/($T$9/60*2*PI())*ABS(D18)*$T$12 -> 0.003238766266 | F18: 0.0001906758943 | G18: =PLOTS!$E$11/($T$9/60*2*PI())*ABS(F18)*$T$12 -> 0.004054724801 | H18: 0.0001892282162 | I18: =PLOTS!$E$11/($T$9/60*2*PI())*ABS(H18)*$T$12 -> 0.004023939911 | J18: 0.0002659808787 | K18: =PLOTS!$E$11/($T$9/60*2*PI())*ABS(J18)*$T$12 -> 0.005656086045 | L18: 0.0002655312817 | M18: =PLOTS!$E$11/($T$9/60*2*PI())*ABS(L18)*$T$12 -> 0.005646525361 | N18: -3.715720711e-05 | O18: =PLOTS!$E$11/($T$9/60*2*PI())*ABS(N18)*$T$12 -> 0.0007901483809 | P18: -3.72821521e-05 | Q18: =PLOTS!$E$11/($T$9/60*2*PI())*ABS(P18)*$T$12 -> 0.0007928053374
A19: 61.6 | B19: 0.0001484627708 | C19: =PLOTS!$E$11/($T$9/60*2*PI())*ABS(B19)*$T$12 -> 0.003157062306 | D19: 0.0001481645604 | E19: =PLOTS!$E$11/($T$9/60*2*PI())*ABS(D19)*$T$12 -> 0.003150720859 | F19: 0.0001868754364 | G19: =PLOTS!$E$11/($T$9/60*2*PI())*ABS(F19)*$T$12 -> 0.003973908025 | H19: 0.0001854325851 | I19: =PLOTS!$E$11/($T$9/60*2*PI())*ABS(H19)*$T$12 -> 0.003943225777 | J19: 0.0002615252689 | K19: =PLOTS!$E$11/($T$9/60*2*PI())*ABS(J19)*$T$12 -> 0.005561337458 | L19: 0.0002610712632 | M19: =PLOTS!$E$11/($T$9/60*2*PI())*ABS(L19)*$T$12 -> 0.005551683024 | N19: -4.011545433e-05 | O19: =PLOTS!$E$11/($T$9/60*2*PI())*ABS(N19)*$T$12 -> 0.0008530555377 | P19: -4.025057158e-05 | Q19: =PLOTS!$E$11/($T$9/60*2*PI())*ABS(P19)*$T$12 -> 0.0008559288073 | S19: No Eq. Flag = | T19: =IF(PLOTS!E13="No Eq.",1,0) -> 0
A20: 61.7 | B20: 0.0001443660485 | C20: =PLOTS!$E$11/($T$9/60*2*PI())*ABS(B20)*$T$12 -> 0.003069945464 | D20: 0.0001440619643 | E20: =PLOTS!$E$11/($T$9/60*2*PI())*ABS(D20)*$T$12 -> 0.003063479112 | F20: 0.0001831102143 | G20: =PLOTS!$E$11/($T$9/60*2*PI())*ABS(F20)*$T$12 -> 0.00389384054 | H20: 0.0001816721651 | I20: =PLOTS!$E$11/($T$9/60*2*PI())*ABS(H20)*$T$12 -> 0.003863260409 | J20: 0.0002571089667 | K20: =PLOTS!$E$11/($T$9/60*2*PI())*ABS(J20)*$T$12 -> 0.00546742475 | L20: 0.0002566505855 | M20: =PLOTS!$E$11/($T$9/60*2*PI())*ABS(L20)*$T$12 -> 0.005457677269 | N20: -4.304290553e-05 | O20: =PLOTS!$E$11/($T$9/60*2*PI())*ABS(N20)*$T$12 -> 0.0009153078167 | P20: -4.318812523e-05 | Q20: =PLOTS!$E$11/($T$9/60*2*PI())*ABS(P20)*$T$12 -> 0.000918395915
A21: 61.8 | B21: 0.0001403067688 | C21: =PLOTS!$E$11/($T$9/60*2*PI())*ABS(B21)*$T$12 -> 0.002983624842 | D21: 0.000139996853 | E21: =PLOTS!$E$11/($T$9/60*2*PI())*ABS(D21)*$T$12 -> 0.002977034479 | F21: 0.000179379941 | G21: =PLOTS!$E$11/($T$9/60*2*PI())*ABS(F21)*$T$12 -> 0.003814516239 | H21: 0.0001779466692 | I21: =PLOTS!$E$11/($T$9/60*2*PI())*ABS(H21)*$T$12 -> 0.003784037702 | J21: 0.0002527316542 | K21: =PLOTS!$E$11/($T$9/60*2*PI())*ABS(J21)*$T$12 -> 0.005374341154 | L21: 0.0002522689302 | M21: =PLOTS!$E$11/($T$9/60*2*PI())*ABS(L21)*$T$12 -> 0.005364501324 | N21: -4.593981663e-05 | O21: =PLOTS!$E$11/($T$9/60*2*PI())*ABS(N21)*$T$12 -> 0.0009769106601 | P21: -4.60950695e-05 | Q21: =PLOTS!$E$11/($T$9/60*2*PI())*ABS(P21)*$T$12 -> 0.0009802121141
A22: 61.9 | B22: 0.0001362846272 | C22: =PLOTS!$E$11/($T$9/60*2*PI())*ABS(B22)*$T$12 -> 0.002898093961 | D22: 0.0001359689215 | E22: =PLOTS!$E$11/($T$9/60*2*PI())*ABS(D22)*$T$12 -> 0.002891380477 | F22: 0.0001756843317 | G22: =PLOTS!$E$11/($T$9/60*2*PI())*ABS(F22)*$T$12 -> 0.003735929071 | H22: 0.0001742558131 | I22: =PLOTS!$E$11/($T$9/60*2*PI())*ABS(H22)*$T$12 -> 0.003705551609 | J22: 0.000248393016 | K22: =PLOTS!$E$11/($T$9/60*2*PI())*ABS(J22)*$T$12 -> 0.005282079969 | L22: 0.0002479259818 | M22: =PLOTS!$E$11/($T$9/60*2*PI())*ABS(L22)*$T$12 -> 0.005272148483 | N22: -4.880644117e-05 | O22: =PLOTS!$E$11/($T$9/60*2*PI())*ABS(N22)*$T$12 -> 0.00103786946 | P22: -4.89716585e-05 | Q22: =PLOTS!$E$11/($T$9/60*2*PI())*ABS(P22)*$T$12 -> 0.001041382808
A23: 62 | B23: 0.000132299322 | C23: =PLOTS!$E$11/($T$9/60*2*PI())*ABS(B23)*$T$12 -> 0.002813346406 | D23: 0.0001319778679 | E23: =PLOTS!$E$11/($T$9/60*2*PI())*ABS(D23)*$T$12 -> 0.002806510682 | F23: 0.0001720231047 | G23: =PLOTS!$E$11/($T$9/60*2*PI())*ABS(F23)*$T$12 -> 0.003658073042 | H23: 0.000170599315 | I23: =PLOTS!$E$11/($T$9/60*2*PI())*ABS(H23)*$T$12 -> 0.00362779614 | J23: 0.0002440927399 | K23: =PLOTS!$E$11/($T$9/60*2*PI())*ABS(J23)*$T$12 -> 0.005190634556 | L23: 0.0002436214278 | M23: =PLOTS!$E$11/($T$9/60*2*PI())*ABS(L23)*$T$12 -> 0.0051806121 | N23: -5.164303035e-05 | O23: =PLOTS!$E$11/($T$9/60*2*PI())*ABS(N23)*$T$12 -> 0.001098189557 | P23: -5.181814392e-05 | Q23: =PLOTS!$E$11/($T$9/60*2*PI())*ABS(P23)*$T$12 -> 0.001101913349
A24: 62.1 | B24: 0.0001283505542 | C24: =PLOTS!$E$11/($T$9/60*2*PI())*ABS(B24)*$T$12 -> 0.002729375819 | D24: 0.0001280233928 | E24: =PLOTS!$E$11/($T$9/60*2*PI())*ABS(D24)*$T$12 -> 0.002722418729 | F24: 0.0001683959806 | G24: =PLOTS!$E$11/($T$9/60*2*PI())*ABS(F24)*$T$12 -> 0.003580942213 | H24: 0.0001669768958 | I24: =PLOTS!$E$11/($T$9/60*2*PI())*ABS(H24)*$T$12 -> 0.003550765359 | J24: 0.0002398305166 | K24: =PLOTS!$E$11/($T$9/60*2*PI())*ABS(J24)*$T$12 -> 0.005099998335 | L24: 0.0002393549587 | M24: =PLOTS!$E$11/($T$9/60*2*PI())*ABS(L24)*$T$12 -> 0.00508988559 | N24: -5.444983301e-05 | O24: =PLOTS!$E$11/($T$9/60*2*PI())*ABS(N24)*$T$12 -> 0.001157876244 | P24: -5.463477515e-05 | Q24: =PLOTS!$E$11/($T$9/60*2*PI())*ABS(P24)*$T$12 -> 0.00116180904
A25: 62.2 | B25: 0.0001244380276 | C25: =PLOTS!$E$11/($T$9/60*2*PI())*ABS(B25)*$T$12 -> 0.002646175901 | D25: 0.0001241051997 | E25: =PLOTS!$E$11/($T$9/60*2*PI())*ABS(D25)*$T$12 -> 0.002639098313 | F25: 0.0001648026828 | G25: =PLOTS!$E$11/($T$9/60*2*PI())*ABS(F25)*$T$12 -> 0.003504530697 | H25: 0.0001633882789 | I25: =PLOTS!$E$11/($T$9/60*2*PI())*ABS(H25)*$T$12 -> 0.003474453384 | J25: 0.0002356060396 | K25: =PLOTS!$E$11/($T$9/60*2*PI())*ABS(J25)*$T$12 -> 0.00501016479 | L25: 0.0002351262675 | M25: =PLOTS!$E$11/($T$9/60*2*PI())*ABS(L25)*$T$12 -> 0.004999962431 | N25: -5.722709572e-05 | O25: =PLOTS!$E$11/($T$9/60*2*PI())*ABS(N25)*$T$12 -> 0.001216934763 | P25: -5.742179927e-05 | Q25: =PLOTS!$E$11/($T$9/60*2*PI())*ABS(P25)*$T$12 -> 0.001221075136
A26: 62.3 | B26: 0.0001205614487 | C26: =PLOTS!$E$11/($T$9/60*2*PI())*ABS(B26)*$T$12 -> 0.002563740412 | D26: 0.0001202229948 | E26: =PLOTS!$E$11/($T$9/60*2*PI())*ABS(D26)*$T$12 -> 0.002556543187 | F26: 0.0001612429369 | G26: =PLOTS!$E$11/($T$9/60*2*PI())*ABS(F26)*$T$12 -> 0.003428832667 | H26: 0.0001598331903 | I26: =PLOTS!$E$11/($T$9/60*2*PI())*ABS(H26)*$T$12 -> 0.00339885439 | J26: 0.0002314190052 | K26: =PLOTS!$E$11/($T$9/60*2*PI())*ABS(J26)*$T$12 -> 0.004921127461 | L26: 0.0002309350505 | M26: =PLOTS!$E$11/($T$9/60*2*PI())*ABS(L26)*$T$12 -> 0.00491083616 | N26: -5.997506272e-05 | O26: =PLOTS!$E$11/($T$9/60*2*PI())*ABS(N26)*$T$12 -> 0.001275370309 | P26: -6.017946105e-05 | Q26: =PLOTS!$E$11/($T$9/60*2*PI())*ABS(P26)*$T$12 -> 0.001279716841
A27: 62.4 | B27: 0.0001167205268 | C27: =PLOTS!$E$11/($T$9/60*2*PI())*ABS(B27)*$T$12 -> 0.00248206317 | D27: 0.0001163764871 | E27: =PLOTS!$E$11/($T$9/60*2*PI())*ABS(D27)*$T$12 -> 0.002474747162 | F27: 0.0001577164715 | G27: =PLOTS!$E$11/($T$9/60*2*PI())*ABS(F27)*$T$12 -> 0.003353842344 | H27: 0.0001563113585 | I27: =PLOTS!$E$11/($T$9/60*2*PI())*ABS(H27)*$T$12 -> 0.003323962602 | J27: 0.0002272691126 | K27: =PLOTS!$E$11/($T$9/60*2*PI())*ABS(J27)*$T$12 -> 0.004832879952 | L27: 0.0002267810065 | M27: =PLOTS!$E$11/($T$9/60*2*PI())*ABS(L27)*$T$12 -> 0.004822500372 | N27: -6.269397605e-05 | O27: =PLOTS!$E$11/($T$9/60*2*PI())*ABS(N27)*$T$12 -> 0.001333188028 | P27: -6.290800301e-05 | Q27: =PLOTS!$E$11/($T$9/60*2*PI())*ABS(P27)*$T$12 -> 0.001337739313
A28: 62.5 | B28: 0.0001129149739 | C28: =PLOTS!$E$11/($T$9/60*2*PI())*ABS(B28)*$T$12 -> 0.002401138048 | D28: 0.0001125653881 | E28: =PLOTS!$E$11/($T$9/60*2*PI())*ABS(D28)*$T$12 -> 0.002393704104 | F28: 0.0001542230173 | G28: =PLOTS!$E$11/($T$9/60*2*PI())*ABS(F28)*$T$12 -> 0.003279554005 | H28: 0.0001528225146 | I28: =PLOTS!$E$11/($T$9/60*2*PI())*ABS(H28)*$T$12 -> 0.003249772301 | J28: 0.0002231560635 | K28: =PLOTS!$E$11/($T$9/60*2*PI())*ABS(J28)*$T$12 -> 0.004745415923 | L28: 0.0002226638372 | M28: =PLOTS!$E$11/($T$9/60*2*PI())*ABS(L28)*$T$12 -> 0.004734948724 | N28: -6.538407546e-05 | O28: =PLOTS!$E$11/($T$9/60*2*PI())*ABS(N28)*$T$12 -> 0.001390393019 | P28: -6.560766543e-05 | Q28: =PLOTS!$E$11/($T$9/60*2*PI())*ABS(P28)*$T$12 -> 0.001395147662
A29: 62.6 | B29: 0.0001091445044 | C29: =PLOTS!$E$11/($T$9/60*2*PI())*ABS(B29)*$T$12 -> 0.002320958978 | D29: 0.0001087894121 | E29: =PLOTS!$E$11/($T$9/60*2*PI())*ABS(D29)*$T$12 -> 0.002313407937 | F29: 0.0001507623076 | G29: =PLOTS!$E$11/($T$9/60*2*PI())*ABS(F29)*$T$12 -> 0.003205961979 | H29: 0.000149366392 | I29: =PLOTS!$E$11/($T$9/60*2*PI())*ABS(H29)*$T$12 -> 0.003176277819 | J29: 0.0002190795627 | K29: =PLOTS!$E$11/($T$9/60*2*PI())*ABS(J29)*$T$12 -> 0.004658729093 | L29: 0.0002185832468 | M29: =PLOTS!$E$11/($T$9/60*2*PI())*ABS(L29)*$T$12 -> 0.004648174929 | N29: -6.804559853e-05 | O29: =PLOTS!$E$11/($T$9/60*2*PI())*ABS(N29)*$T$12 -> 0.001446990333 | P29: -6.827868639e-05 | Q29: =PLOTS!$E$11/($T$9/60*2*PI())*ABS(P29)*$T$12 -> 0.001451946949
A30: 62.7 | B30: 0.0001054088356 | C30: =PLOTS!$E$11/($T$9/60*2*PI())*ABS(B30)*$T$12 -> 0.002241519944 | D30: 0.0001050482761 | E30: =PLOTS!$E$11/($T$9/60*2*PI())*ABS(D30)*$T$12 -> 0.002233852641 | F30: 0.0001473340782 | G30: =PLOTS!$E$11/($T$9/60*2*PI())*ABS(F30)*$T$12 -> 0.003133060647 | H30: 0.0001459427266 | I30: =PLOTS!$E$11/($T$9/60*2*PI())*ABS(H30)*$T$12 -> 0.00310347354 | J30: 0.0002150393175 | K30: =PLOTS!$E$11/($T$9/60*2*PI())*ABS(J30)*$T$12 -> 0.004572813237 | L30: 0.0002145389425 | M30: =PLOTS!$E$11/($T$9/60*2*PI())*ABS(L30)*$T$12 -> 0.004562172759 | N30: -7.067878063e-05 | O30: =PLOTS!$E$11/($T$9/60*2*PI())*ABS(N30)*$T$12 -> 0.001502984977 | P30: -7.092130175e-05 | Q30: =PLOTS!$E$11/($T$9/60*2*PI())*ABS(P30)*$T$12 -> 0.001508142191
A31: 62.8 | B31: 0.0001017076873 | C31: =PLOTS!$E$11/($T$9/60*2*PI())*ABS(B31)*$T$12 -> 0.002162814988 | D31: 0.0001013416994 | E31: =PLOTS!$E$11/($T$9/60*2*PI())*ABS(D31)*$T$12 -> 0.002155032251 | F31: 0.0001439380674 | G31: =PLOTS!$E$11/($T$9/60*2*PI())*ABS(F31)*$T$12 -> 0.003060844442 | H31: 0.0001425512568 | I31: =PLOTS!$E$11/($T$9/60*2*PI())*ABS(H31)*$T$12 -> 0.003031353901 | J31: 0.0002110350379 | K31: =PLOTS!$E$11/($T$9/60*2*PI())*ABS(J31)*$T$12 -> 0.004487662191 | L31: 0.0002105306341 | M31: =PLOTS!$E$11/($T$9/60*2*PI())*ABS(L31)*$T$12 -> 0.00447693604 | N31: -7.328385498e-05 | O31: =PLOTS!$E$11/($T$9/60*2*PI())*ABS(N31)*$T$12 -> 0.001558381909 | P31: -7.353574523e-05 | Q31: =PLOTS!$E$11/($T$9/60*2*PI())*ABS(P31)*$T$12 -> 0.001563738358
A32: 62.9 | B32: 9.804078186e-05 | C32: =PLOTS!$E$11/($T$9/60*2*PI())*ABS(B32)*$T$12 -> 0.002084838207 | D32: 9.766940415e-05 | E32: =PLOTS!$E$11/($T$9/60*2*PI())*ABS(D32)*$T$12 -> 0.002076940856 | F32: 0.0001405740155 | G32: =PLOTS!$E$11/($T$9/60*2*PI())*ABS(F32)*$T$12 -> 0.002989307846 | H32: 0.0001391917232 | I32: =PLOTS!$E$11/($T$9/60*2*PI())*ABS(H32)*$T$12 -> 0.002959913387 | J32: 0.0002070664365 | K32: =PLOTS!$E$11/($T$9/60*2*PI())*ABS(J32)*$T$12 -> 0.004403269843 | L32: 0.000206558034 | M32: =PLOTS!$E$11/($T$9/60*2*PI())*ABS(L32)*$T$12 -> 0.004392458659 | N32: -7.586105265e-05 | O32: =PLOTS!$E$11/($T$9/60*2*PI())*ABS(N32)*$T$12 -> 0.001613186043 | P32: -7.612224837e-05 | Q32: =PLOTS!$E$11/($T$9/60*2*PI())*ABS(P32)*$T$12 -> 0.001618740373
A33: 63 | B33: 9.440784411e-05 | C33: =PLOTS!$E$11/($T$9/60*2*PI())*ABS(B33)*$T$12 -> 0.002007583749 | D33: 9.403111493e-05 | E33: =PLOTS!$E$11/($T$9/60*2*PI())*ABS(D33)*$T$12 -> 0.0019995726 | F33: 0.0001372416657 | G33: =PLOTS!$E$11/($T$9/60*2*PI())*ABS(F33)*$T$12 -> 0.002918445393 | H33: 0.0001358638691 | I33: =PLOTS!$E$11/($T$9/60*2*PI())*ABS(H33)*$T$12 -> 0.002889146535 | J33: 0.0002031332286 | K33: =PLOTS!$E$11/($T$9/60*2*PI())*ABS(J33)*$T$12 -> 0.004319630139 | L33: 0.0002026208572 | M33: =PLOTS!$E$11/($T$9/60*2*PI())*ABS(L33)*$T$12 -> 0.004308734556 | N33: -7.84106026e-05 | O33: =PLOTS!$E$11/($T$9/60*2*PI())*ABS(N33)*$T$12 -> 0.001667402249 | P33: -7.868104064e-05 | Q33: =PLOTS!$E$11/($T$9/60*2*PI())*ABS(P33)*$T$12 -> 0.001673153116
A34: 63.1 | B34: 9.080860148e-05 | C34: =PLOTS!$E$11/($T$9/60*2*PI())*ABS(B34)*$T$12 -> 0.001931045819 | D34: 9.042655883e-05 | E34: =PLOTS!$E$11/($T$9/60*2*PI())*ABS(D34)*$T$12 -> 0.001922921678 | F34: 0.0001339407631 | G34: =PLOTS!$E$11/($T$9/60*2*PI())*ABS(F34)*$T$12 -> 0.002848251666 | H34: 0.0001325674397 | I34: =PLOTS!$E$11/($T$9/60*2*PI())*ABS(H34)*$T$12 -> 0.002819047932 | J34: 0.0001992351322 | K34: =PLOTS!$E$11/($T$9/60*2*PI())*ABS(J34)*$T$12 -> 0.004236737079 | L34: 0.0001987188214 | M34: =PLOTS!$E$11/($T$9/60*2*PI())*ABS(L34)*$T$12 -> 0.004225757725 | N34: -8.093273169e-05 | O34: =PLOTS!$E$11/($T$9/60*2*PI())*ABS(N34)*$T$12 -> 0.001721035349 | P34: -8.121234935e-05 | Q34: =PLOTS!$E$11/($T$9/60*2*PI())*ABS(P34)*$T$12 -> 0.001726981421
A35: 63.2 | B35: 8.724278386e-05 | C35: =PLOTS!$E$11/($T$9/60*2*PI())*ABS(B35)*$T$12 -> 0.001855218671 | D35: 8.685546544e-05 | E35: =PLOTS!$E$11/($T$9/60*2*PI())*ABS(D35)*$T$12 -> 0.001846982341 | F35: 0.0001306710553 | G35: =PLOTS!$E$11/($T$9/60*2*PI())*ABS(F35)*$T$12 -> 0.002778721298 | H35: 0.0001293021829 | I35: =PLOTS!$E$11/($T$9/60*2*PI())*ABS(H35)*$T$12 -> 0.002749612213 | J35: 0.0001953718677 | K35: =PLOTS!$E$11/($T$9/60*2*PI())*ABS(J35)*$T$12 -> 0.00415458472 | L35: 0.0001948516468 | M35: =PLOTS!$E$11/($T$9/60*2*PI())*ABS(L35)*$T$12 -> 0.004143522219 | N35: -8.342766471e-05 | O35: =PLOTS!$E$11/($T$9/60*2*PI())*ABS(N35)*$T$12 -> 0.001774090125 | P35: -8.371639979e-05 | Q35: =PLOTS!$E$11/($T$9/60*2*PI())*ABS(P35)*$T$12 -> 0.001780230079
A36: 63.3 | B36: 8.371012358e-05 | C36: =PLOTS!$E$11/($T$9/60*2*PI())*ABS(B36)*$T$12 -> 0.001780096615 | D36: 8.331756681e-05 | E36: =PLOTS!$E$11/($T$9/60*2*PI())*ABS(D36)*$T$12 -> 0.001771748892 | F36: 0.0001274322923 | G36: =PLOTS!$E$11/($T$9/60*2*PI())*ABS(F36)*$T$12 -> 0.00270984897 | H36: 0.0001260678487 | I36: =PLOTS!$E$11/($T$9/60*2*PI())*ABS(H36)*$T$12 -> 0.002680834063 | J36: 0.0001915431579 | K36: =PLOTS!$E$11/($T$9/60*2*PI())*ABS(J36)*$T$12 -> 0.00407316717 | L36: 0.0001910190562 | M36: =PLOTS!$E$11/($T$9/60*2*PI())*ABS(L36)*$T$12 -> 0.00406202214 | N36: -8.589562439e-05 | O36: =PLOTS!$E$11/($T$9/60*2*PI())*ABS(N36)*$T$12 -> 0.001826571312 | P36: -8.619341514e-05 | Q36: =PLOTS!$E$11/($T$9/60*2*PI())*ABS(P36)*$T$12 -> 0.001832903835
A37: 63.4 | B37: 8.021035541e-05 | C37: =PLOTS!$E$11/($T$9/60*2*PI())*ABS(B37)*$T$12 -> 0.00170567401 | D37: 7.981259742e-05 | E37: =PLOTS!$E$11/($T$9/60*2*PI())*ABS(D37)*$T$12 -> 0.001697215683 | F37: 0.0001242242261 | G37: =PLOTS!$E$11/($T$9/60*2*PI())*ABS(F37)*$T$12 -> 0.002641629411 | H37: 0.0001228641893 | I37: =PLOTS!$E$11/($T$9/60*2*PI())*ABS(H37)*$T$12 -> 0.002612708215 | J37: 0.0001877487286 | K37: =PLOTS!$E$11/($T$9/60*2*PI())*ABS(J37)*$T$12 -> 0.003992478592 | L37: 0.0001872207747 | M37: =PLOTS!$E$11/($T$9/60*2*PI())*ABS(L37)*$T$12 -> 0.003981251647 | N37: -8.833683143e-05 | O37: =PLOTS!$E$11/($T$9/60*2*PI())*ABS(N37)*$T$12 -> 0.001878483604 | P37: -8.864361659e-05 | Q37: =PLOTS!$E$11/($T$9/60*2*PI())*ABS(P37)*$T$12 -> 0.001885007393
A38: 63.5 | B38: 7.674321655e-05 | C38: =PLOTS!$E$11/($T$9/60*2*PI())*ABS(B38)*$T$12 -> 0.001631945268 | D38: 7.634029416e-05 | E38: =PLOTS!$E$11/($T$9/60*2*PI())*ABS(D38)*$T$12 -> 0.001623377119 | F38: 0.0001210466112 | G38: =PLOTS!$E$11/($T$9/60*2*PI())*ABS(F38)*$T$12 -> 0.002574057399 | H38: 0.0001196909594 | I38: =PLOTS!$E$11/($T$9/60*2*PI())*ABS(H38)*$T$12 -> 0.002545229449 | J38: 0.0001839883076 | K38: =PLOTS!$E$11/($T$9/60*2*PI())*ABS(J38)*$T$12 -> 0.003912513201 | L38: 0.0001834565303 | M38: =PLOTS!$E$11/($T$9/60*2*PI())*ABS(L38)*$T$12 -> 0.003901204951 | N38: -9.075150455e-05 | O38: =PLOTS!$E$11/($T$9/60*2*PI())*ABS(N38)*$T$12 -> 0.001929831652 | P38: -9.106722329e-05 | Q38: =PLOTS!$E$11/($T$9/60*2*PI())*ABS(P38)*$T$12 -> 0.001936545414
A39: 63.6 | B39: 7.330844654e-05 | C39: =PLOTS!$E$11/($T$9/60*2*PI())*ABS(B39)*$T$12 -> 0.001558904849 | D39: 7.290039632e-05 | E39: =PLOTS!$E$11/($T$9/60*2*PI())*ABS(D39)*$T$12 -> 0.001550227657 | F39: 0.0001178992042 | G39: =PLOTS!$E$11/($T$9/60*2*PI())*ABS(F39)*$T$12 -> 0.002507127757 | H39: 0.0001165479157 | I39: =PLOTS!$E$11/($T$9/60*2*PI())*ABS(H39)*$T$12 -> 0.002478392592 | J39: 0.0001802616253 | K39: =PLOTS!$E$11/($T$9/60*2*PI())*ABS(J39)*$T$12 -> 0.003833265266 | L39: 0.000179726053 | M39: =PLOTS!$E$11/($T$9/60*2*PI())*ABS(L39)*$T$12 -> 0.003821876314 | N39: -9.313986043e-05 | O39: =PLOTS!$E$11/($T$9/60*2*PI())*ABS(N39)*$T$12 -> 0.001980620064 | P39: -9.34644524e-05 | Q39: =PLOTS!$E$11/($T$9/60*2*PI())*ABS(P39)*$T$12 -> 0.001987522515
A40: 63.7 | B40: 6.990578731e-05 | C40: =PLOTS!$E$11/($T$9/60*2*PI())*ABS(B40)*$T$12 -> 0.001486547267 | D40: 6.949264551e-05 | E40: =PLOTS!$E$11/($T$9/60*2*PI())*ABS(D40)*$T$12 -> 0.001477761802 | F40: 0.0001147817639 | G40: =PLOTS!$E$11/($T$9/60*2*PI())*ABS(F40)*$T$12 -> 0.002440835358 | H40: 0.0001134348171 | I40: =PLOTS!$E$11/($T$9/60*2*PI())*ABS(H40)*$T$12 -> 0.00241219252 | J40: 0.0001765684148 | K40: =PLOTS!$E$11/($T$9/60*2*PI())*ABS(J40)*$T$12 -> 0.003754729106 | L40: 0.0001760290755 | M40: =PLOTS!$E$11/($T$9/60*2*PI())*ABS(L40)*$T$12 -> 0.003743260052 | N40: -9.550211384e-05 | O40: =PLOTS!$E$11/($T$9/60*2*PI())*ABS(N40)*$T$12 -> 0.002030853406 | P40: -9.583551913e-05 | Q40: =PLOTS!$E$11/($T$9/60*2*PI())*ABS(P40)*$T$12 -> 0.002037943273
A41: 63.8 | B41: 6.653498311e-05 | C41: =PLOTS!$E$11/($T$9/60*2*PI())*ABS(B41)*$T$12 -> 0.001414867081 | D41: 6.611678571e-05 | E41: =PLOTS!$E$11/($T$9/60*2*PI())*ABS(D41)*$T$12 -> 0.00140597411 | F41: 0.0001116940513 | G41: =PLOTS!$E$11/($T$9/60*2*PI())*ABS(F41)*$T$12 -> 0.002375175118 | H41: 0.0001103514247 | I41: =PLOTS!$E$11/($T$9/60*2*PI())*ABS(H41)*$T$12 -> 0.002346624151 | J41: 0.0001729084111 | K41: =PLOTS!$E$11/($T$9/60*2*PI())*ABS(J41)*$T$12 -> 0.003676899092 | L41: 0.000172365333 | M41: =PLOTS!$E$11/($T$9/60*2*PI())*ABS(L41)*$T$12 -> 0.003665350531 | N41: -9.783847755e-05 | O41: =PLOTS!$E$11/($T$9/60*2*PI())*ABS(N41)*$T$12 -> 0.002080536204 | P41: -9.818063672e-05 | Q41: =PLOTS!$E$11/($T$9/60*2*PI())*ABS(P41)*$T$12 -> 0.002087812222
A42: 63.9 | B42: 6.319578047e-05 | C42: =PLOTS!$E$11/($T$9/60*2*PI())*ABS(B42)*$T$12 -> 0.001343858904 | D42: 6.277256321e-05 | E42: =PLOTS!$E$11/($T$9/60*2*PI())*ABS(D42)*$T$12 -> 0.001334859184 | F42: 0.0001086358295 | G42: =PLOTS!$E$11/($T$9/60*2*PI())*ABS(F42)*$T$12 -> 0.002310142 | H42: 0.0001072975019 | I42: =PLOTS!$E$11/($T$9/60*2*PI())*ABS(H42)*$T$12 -> 0.002281682452 | J42: 0.0001692813521 | K42: =PLOTS!$E$11/($T$9/60*2*PI())*ABS(J42)*$T$12 -> 0.003599769646 | L42: 0.0001687345629 | M42: =PLOTS!$E$11/($T$9/60*2*PI())*ABS(L42)*$T$12 -> 0.003588142168 | N42: -0.0001001491624 | O42: =PLOTS!$E$11/($T$9/60*2*PI())*ABS(N42)*$T$12 -> 0.002129672941 | P42: -0.0001005000165 | Q42: =PLOTS!$E$11/($T$9/60*2*PI())*ABS(P42)*$T$12 -> 0.002137133856
A43: 64 | B43: 5.988792825e-05 | C43: =PLOTS!$E$11/($T$9/60*2*PI())*ABS(B43)*$T$12 -> 0.001273517393 | D43: 5.945972655e-05 | E43: =PLOTS!$E$11/($T$9/60*2*PI())*ABS(D43)*$T$12 -> 0.00126441168 | F43: 0.0001056068637 | G43: =PLOTS!$E$11/($T$9/60*2*PI())*ABS(F43)*$T$12 -> 0.002245731013 | H43: 0.0001042728141 | I43: =PLOTS!$E$11/($T$9/60*2*PI())*ABS(H43)*$T$12 -> 0.002217362435 | J43: 0.0001656869778 | K43: =PLOTS!$E$11/($T$9/60*2*PI())*ABS(J43)*$T$12 -> 0.00352333524 | L43: 0.0001651365049 | M43: =PLOTS!$E$11/($T$9/60*2*PI())*ABS(L43)*$T$12 -> 0.003511629429 | N43: -0.0001024343775 | O43: =PLOTS!$E$11/($T$9/60*2*PI())*ABS(N43)*$T$12 -> 0.002178268062 | P43: -0.0001027938678 | Q43: =PLOTS!$E$11/($T$9/60*2*PI())*ABS(P43)*$T$12 -> 0.002185912627
A44: 64.1 | B44: 5.661117754e-05 | C44: =PLOTS!$E$11/($T$9/60*2*PI())*ABS(B44)*$T$12 -> 0.001203837257 | D44: 5.617802656e-05 | E44: =PLOTS!$E$11/($T$9/60*2*PI())*ABS(D44)*$T$12 -> 0.001194626297 | F44: 0.0001026069215 | G44: =PLOTS!$E$11/($T$9/60*2*PI())*ABS(F44)*$T$12 -> 0.002181937211 | H44: 0.0001012771288 | I44: =PLOTS!$E$11/($T$9/60*2*PI())*ABS(H44)*$T$12 -> 0.002153659157 | J44: 0.0001621250304 | K44: =PLOTS!$E$11/($T$9/60*2*PI())*ABS(J44)*$T$12 -> 0.003447590394 | L44: 0.0001615709013 | M44: =PLOTS!$E$11/($T$9/60*2*PI())*ABS(L44)*$T$12 -> 0.003435806832 | N44: -0.0001046943297 | O44: =PLOTS!$E$11/($T$9/60*2*PI())*ABS(N44)*$T$12 -> 0.002226325969 | P44: -0.0001050623982 | Q44: =PLOTS!$E$11/($T$9/60*2*PI())*ABS(P44)*$T$12 -> 0.002234152949
A45: 64.2 | B45: 5.336528167e-05 | C45: =PLOTS!$E$11/($T$9/60*2*PI())*ABS(B45)*$T$12 -> 0.001134813248 | D45: 5.29272163e-05 | E45: =PLOTS!$E$11/($T$9/60*2*PI())*ABS(D45)*$T$12 -> 0.001125497784 | F45: 9.96357721e-05 | G45: =PLOTS!$E$11/($T$9/60*2*PI())*ABS(F45)*$T$12 -> 0.00211875569 | H45: 9.831021552e-05 | I45: =PLOTS!$E$11/($T$9/60*2*PI())*ABS(H45)*$T$12 -> 0.002090567716 | J45: 0.0001585952548 | K45: =PLOTS!$E$11/($T$9/60*2*PI())*ABS(J45)*$T$12 -> 0.003372529679 | L45: 0.0001580374964 | M45: =PLOTS!$E$11/($T$9/60*2*PI())*ABS(L45)*$T$12 -> 0.003360668943 | N45: -0.0001069292244 | O45: =PLOTS!$E$11/($T$9/60*2*PI())*ABS(N45)*$T$12 -> 0.002273851027 | P45: -0.0001073058134 | Q45: =PLOTS!$E$11/($T$9/60*2*PI())*ABS(P45)*$T$12 -> 0.002281859195
A46: 64.3 | B46: 5.014999617e-05 | C46: =PLOTS!$E$11/($T$9/60*2*PI())*ABS(B46)*$T$12 -> 0.00106644017 | D46: 4.970705106e-05 | E46: =PLOTS!$E$11/($T$9/60*2*PI())*ABS(D46)*$T$12 -> 0.001057020938 | F46: 9.669318719e-05 | G46: =PLOTS!$E$11/($T$9/60*2*PI())*ABS(F46)*$T$12 -> 0.002056181593 | H46: 9.537184599e-05 | I46: =PLOTS!$E$11/($T$9/60*2*PI())*ABS(H46)*$T$12 -> 0.002028083259 | J46: 0.0001550973978 | K46: =PLOTS!$E$11/($T$9/60*2*PI())*ABS(J46)*$T$12 -> 0.003298147715 | L46: 0.0001545360371 | M46: =PLOTS!$E$11/($T$9/60*2*PI())*ABS(L46)*$T$12 -> 0.003286210375 | N46: -0.0001091392649 | O46: =PLOTS!$E$11/($T$9/60*2*PI())*ABS(N46)*$T$12 -> 0.00232084756 | P46: -0.0001095243171 | Q46: =PLOTS!$E$11/($T$9/60*2*PI())*ABS(P46)*$T$12 -> 0.002329035698
A47: 64.4 | B47: 4.696507879e-05 | C47: =PLOTS!$E$11/($T$9/60*2*PI())*ABS(B47)*$T$12 -> 0.0009987128704 | D47: 4.651728829e-05 | E47: =PLOTS!$E$11/($T$9/60*2*PI())*ABS(D47)*$T$12 -> 0.0009891906007 | F47: 9.377894029e-05 | G47: =PLOTS!$E$11/($T$9/60*2*PI())*ABS(F47)*$T$12 -> 0.001994210103 | H47: 9.246179391e-05 | I47: =PLOTS!$E$11/($T$9/60*2*PI())*ABS(H47)*$T$12 -> 0.001966200972 | J47: 0.0001516312086 | K47: =PLOTS!$E$11/($T$9/60*2*PI())*ABS(J47)*$T$12 -> 0.003224439168 | L47: 0.0001510662724 | M47: =PLOTS!$E$11/($T$9/60*2*PI())*ABS(L47)*$T$12 -> 0.003212425793 | N47: -0.0001113246527 | O47: =PLOTS!$E$11/($T$9/60*2*PI())*ABS(N47)*$T$12 -> 0.002367319853 | P47: -0.0001117181112 | Q47: =PLOTS!$E$11/($T$9/60*2*PI())*ABS(P47)*$T$12 -> 0.002375686753
A48: 64.5 | B48: 4.381028943e-05 | C48: =PLOTS!$E$11/($T$9/60*2*PI())*ABS(B48)*$T$12 -> 0.0009316262429 | D48: 4.335768763e-05 | E48: =PLOTS!$E$11/($T$9/60*2*PI())*ABS(D48)*$T$12 -> 0.0009220016611 | F48: 9.089280698e-05 | G48: =PLOTS!$E$11/($T$9/60*2*PI())*ABS(F48)*$T$12 -> 0.00193283645 | H48: 8.957983499e-05 | I48: =PLOTS!$E$11/($T$9/60*2*PI())*ABS(H48)*$T$12 -> 0.001904916087 | J48: 0.0001481964388 | K48: =PLOTS!$E$11/($T$9/60*2*PI())*ABS(J48)*$T$12 -> 0.003151398753 | L48: 0.0001476279534 | M48: =PLOTS!$E$11/($T$9/60*2*PI())*ABS(L48)*$T$12 -> 0.003139309906 | N48: -0.0001134855876 | O48: =PLOTS!$E$11/($T$9/60*2*PI())*ABS(N48)*$T$12 -> 0.002413272155 | P48: -0.000113887396 | Q48: =PLOTS!$E$11/($T$9/60*2*PI())*ABS(P48)*$T$12 -> 0.002421816616
A49: 64.6 | B49: 4.068539011e-05 | C49: =PLOTS!$E$11/($T$9/60*2*PI())*ABS(B49)*$T$12 -> 0.0008651752276 | D49: 4.022801086e-05 | E49: =PLOTS!$E$11/($T$9/60*2*PI())*ABS(D49)*$T$12 -> 0.0008554490533 | F49: 8.803456486e-05 | G49: =PLOTS!$E$11/($T$9/60*2*PI())*ABS(F49)*$T$12 -> 0.001872055902 | H49: 8.672574696e-05 | I49: =PLOTS!$E$11/($T$9/60*2*PI())*ABS(H49)*$T$12 -> 0.001844223877 | J49: 0.000144792842 | K49: =PLOTS!$E$11/($T$9/60*2*PI())*ABS(J49)*$T$12 -> 0.003079021233 | L49: 0.0001442208337 | M49: =PLOTS!$E$11/($T$9/60*2*PI())*ABS(L49)*$T$12 -> 0.003066857472 | N49: -0.0001156222674 | O49: =PLOTS!$E$11/($T$9/60*2*PI())*ABS(N49)*$T$12 -> 0.002458708673 | P49: -0.0001160323698 | Q49: =PLOTS!$E$11/($T$9/60*2*PI())*ABS(P49)*$T$12 -> 0.002467429505
A50: 64.7 | B50: 3.759014501e-05 | C50: =PLOTS!$E$11/($T$9/60*2*PI())*ABS(B50)*$T$12 -> 0.0007993548096 | D50: 3.712802189e-05 | E50: =PLOTS!$E$11/($T$9/60*2*PI())*ABS(D50)*$T$12 -> 0.0007895277569 | F50: 8.520399348e-05 | G50: =PLOTS!$E$11/($T$9/60*2*PI())*ABS(F50)*$T$12 -> 0.001811863774 | H50: 8.389930952e-05 | I50: =PLOTS!$E$11/($T$9/60*2*PI())*ABS(H50)*$T$12 -> 0.001784119656 | J50: 0.000141420174 | K50: =PLOTS!$E$11/($T$9/60*2*PI())*ABS(J50)*$T$12 -> 0.003007301415 | L50: 0.000140844669 | M50: =PLOTS!$E$11/($T$9/60*2*PI())*ABS(L50)*$T$12 -> 0.002995063295 | N50: -0.0001177348884 | O50: =PLOTS!$E$11/($T$9/60*2*PI())*ABS(N50)*$T$12 -> 0.002503633579 | P50: -0.0001181532291 | Q50: =PLOTS!$E$11/($T$9/60*2*PI())*ABS(P50)*$T$12 -> 0.0025125296
A51: 64.8 | B51: 3.452432038e-05 | C51: =PLOTS!$E$11/($T$9/60*2*PI())*ABS(B51)*$T$12 -> 0.0007341600183 | D51: 3.405748673e-05 | E51: =PLOTS!$E$11/($T$9/60*2*PI())*ABS(D51)*$T$12 -> 0.0007242327959 | F51: 8.240087437e-05 | G51: =PLOTS!$E$11/($T$9/60*2*PI())*ABS(F51)*$T$12 -> 0.001752255418 | H51: 8.110030432e-05 | I51: =PLOTS!$E$11/($T$9/60*2*PI())*ABS(H51)*$T$12 -> 0.001724598783 | J51: 0.000138078193 | K51: =PLOTS!$E$11/($T$9/60*2*PI())*ABS(J51)*$T$12 -> 0.002936234155 | L51: 0.000137499217 | M51: =PLOTS!$E$11/($T$9/60*2*PI())*ABS(L51)*$T$12 -> 0.002923922225 | N51: -0.0001198236449 | O51: =PLOTS!$E$11/($T$9/60*2*PI())*ABS(N51)*$T$12 -> 0.002548051008 | P51: -0.0001202501688 | Q51: =PLOTS!$E$11/($T$9/60*2*PI())*ABS(P51)*$T$12 -> 0.002557121043
A52: 64.9 | B52: 3.148768458e-05 | C52: =PLOTS!$E$11/($T$9/60*2*PI())*ABS(B52)*$T$12 -> 0.0006695859276 | D52: 3.101617346e-05 | E52: =PLOTS!$E$11/($T$9/60*2*PI())*ABS(D52)*$T$12 -> 0.0006595592389 | F52: 7.962499101e-05 | G52: =PLOTS!$E$11/($T$9/60*2*PI())*ABS(F52)*$T$12 -> 0.00169322623 | H52: 7.832851497e-05 | I52: =PLOTS!$E$11/($T$9/60*2*PI())*ABS(H52)*$T$12 -> 0.001665656654 | J52: 0.000134766659 | K52: =PLOTS!$E$11/($T$9/60*2*PI())*ABS(J52)*$T$12 -> 0.002865814352 | L52: 0.0001341842378 | M52: =PLOTS!$E$11/($T$9/60*2*PI())*ABS(L52)*$T$12 -> 0.002853429159 | N52: -0.0001218887297 | O52: =PLOTS!$E$11/($T$9/60*2*PI())*ABS(N52)*$T$12 -> 0.002591965055 | P52: -0.000122323382 | Q52: =PLOTS!$E$11/($T$9/60*2*PI())*ABS(P52)*$T$12 -> 0.002601207942
A53: 65 | B53: 2.8480008e-05 | C53: =PLOTS!$E$11/($T$9/60*2*PI())*ABS(B53)*$T$12 -> 0.0006056276549 | D53: 2.800385223e-05 | E53: =PLOTS!$E$11/($T$9/60*2*PI())*ABS(D53)*$T$12 -> 0.0005955021979 | F53: 7.687612877e-05 | G53: =PLOTS!$E$11/($T$9/60*2*PI())*ABS(F53)*$T$12 -> 0.001634771647 | H53: 7.558372698e-05 | I53: =PLOTS!$E$11/($T$9/60*2*PI())*ABS(H53)*$T$12 -> 0.00160728871 | J53: 0.0001314853345 | K53: =PLOTS!$E$11/($T$9/60*2*PI())*ABS(J53)*$T$12 -> 0.002796036953 | L53: 0.0001308994934 | M53: =PLOTS!$E$11/($T$9/60*2*PI())*ABS(L53)*$T$12 -> 0.002783579037 | N53: -0.0001239303336 | O53: =PLOTS!$E$11/($T$9/60*2*PI())*ABS(N53)*$T$12 -> 0.002635379783 | P53: -0.00012437306 | Q53: =PLOTS!$E$11/($T$9/60*2*PI())*ABS(P53)*$T$12 -> 0.002644794364
A54: 65.1 | B54: 2.550106306e-05 | C54: =PLOTS!$E$11/($T$9/60*2*PI())*ABS(B54)*$T$12 -> 0.0005422803611 | D54: 2.502029523e-05 | E54: =PLOTS!$E$11/($T$9/60*2*PI())*ABS(D54)*$T$12 -> 0.0005320568285 | F54: 7.415407494e-05 | G54: =PLOTS!$E$11/($T$9/60*2*PI())*ABS(F54)*$T$12 -> 0.001576887145 | H54: 7.286572776e-05 | I54: =PLOTS!$E$11/($T$9/60*2*PI())*ABS(H54)*$T$12 -> 0.00154949043 | J54: 0.0001282339837 | K54: =PLOTS!$E$11/($T$9/60*2*PI())*ABS(J54)*$T$12 -> 0.002726896947 | L54: 0.0001276447481 | M54: =PLOTS!$E$11/($T$9/60*2*PI())*ABS(L54)*$T$12 -> 0.002714366846 | N54: -0.0001259486459 | O54: =PLOTS!$E$11/($T$9/60*2*PI())*ABS(N54)*$T$12 -> 0.002678299215 | P54: -0.0001263993924 | Q54: =PLOTS!$E$11/($T$9/60*2*PI())*ABS(P54)*$T$12 -> 0.002687884344
A55: 65.2 | B55: 2.255062423e-05 | C55: =PLOTS!$E$11/($T$9/60*2*PI())*ABS(B55)*$T$12 -> 0.0004795392498 | D55: 2.206527667e-05 | E55: =PLOTS!$E$11/($T$9/60*2*PI())*ABS(D55)*$T$12 -> 0.000469218329 | F55: 7.145861868e-05 | G55: =PLOTS!$E$11/($T$9/60*2*PI())*ABS(F55)*$T$12 -> 0.001519568241 | H55: 7.017430661e-05 | I55: =PLOTS!$E$11/($T$9/60*2*PI())*ABS(H55)*$T$12 -> 0.001492257332 | J55: 0.0001250123733 | K55: =PLOTS!$E$11/($T$9/60*2*PI())*ABS(J55)*$T$12 -> 0.002658389368 | L55: 0.0001244197682 | M55: =PLOTS!$E$11/($T$9/60*2*PI())*ABS(L55)*$T$12 -> 0.002645787616 | N55: -0.0001279438543 | O55: =PLOTS!$E$11/($T$9/60*2*PI())*ABS(N55)*$T$12 -> 0.002720727341 | P55: -0.0001284025672 | Q55: =PLOTS!$E$11/($T$9/60*2*PI())*ABS(P55)*$T$12 -> 0.002730481877
A56: 65.3 | B56: 1.962846794e-05 | C56: =PLOTS!$E$11/($T$9/60*2*PI())*ABS(B56)*$T$12 -> 0.000417399567 | D56: 1.913857273e-05 | E56: =PLOTS!$E$11/($T$9/60*2*PI())*ABS(D56)*$T$12 -> 0.0004069819405 | F56: 6.878955103e-05 | G56: =PLOTS!$E$11/($T$9/60*2*PI())*ABS(F56)*$T$12 -> 0.001462810491 | H56: 6.750925469e-05 | I56: =PLOTS!$E$11/($T$9/60*2*PI())*ABS(H56)*$T$12 -> 0.001435584976 | J56: 0.0001218202717 | K56: =PLOTS!$E$11/($T$9/60*2*PI())*ABS(J56)*$T$12 -> 0.002590509296 | L56: 0.0001212243221 | M56: =PLOTS!$E$11/($T$9/60*2*PI())*ABS(L56)*$T$12 -> 0.002577836422 | N56: -0.0001299161445 | O56: =PLOTS!$E$11/($T$9/60*2*PI())*ABS(N56)*$T$12 -> 0.002762668112 | P56: -0.0001303827708 | Q56: =PLOTS!$E$11/($T$9/60*2*PI())*ABS(P56)*$T$12 -> 0.002772590926
A57: 65.4 | B57: 1.673437261e-05 | C57: =PLOTS!$E$11/($T$9/60*2*PI())*ABS(B57)*$T$12 -> 0.0003558566009 | D57: 1.623996159e-05 | E57: =PLOTS!$E$11/($T$9/60*2*PI())*ABS(D57)*$T$12 -> 0.0003453429457 | F57: 6.614666484e-05 | G57: =PLOTS!$E$11/($T$9/60*2*PI())*ABS(F57)*$T$12 -> 0.001406609489 | H57: 6.487036498e-05 | I57: =PLOTS!$E$11/($T$9/60*2*PI())*ABS(H57)*$T$12 -> 0.00137946896 | J57: 0.0001186574495 | K57: =PLOTS!$E$11/($T$9/60*2*PI())*ABS(J57)*$T$12 -> 0.002523251852 | L57: 0.0001180581801 | M57: =PLOTS!$E$11/($T$9/60*2*PI())*ABS(L57)*$T$12 -> 0.00251050838 | N57: -0.0001318657009 | O57: =PLOTS!$E$11/($T$9/60*2*PI())*ABS(N57)*$T$12 -> 0.002804125448 | P57: -0.0001323401877 | Q57: =PLOTS!$E$11/($T$9/60*2*PI())*ABS(P57)*$T$12 -> 0.002814215416
A58: 65.5 | B58: 1.38681186e-05 | C58: =PLOTS!$E$11/($T$9/60*2*PI())*ABS(B58)*$T$12 -> 0.0002949056808 | D58: 1.336922339e-05 | E58: =PLOTS!$E$11/($T$9/60*2*PI())*ABS(D58)*$T$12 -> 0.0002842966691 | F58: 6.352975481e-05 | G58: =PLOTS!$E$11/($T$9/60*2*PI())*ABS(F58)*$T$12 -> 0.001350960872 | H58: 6.22574323e-05 | I58: =PLOTS!$E$11/($T$9/60*2*PI())*ABS(H58)*$T$12 -> 0.001323904921 | J58: 0.0001155236795 | K58: =PLOTS!$E$11/($T$9/60*2*PI())*ABS(J58)*$T$12 -> 0.002456612199 | L58: 0.0001149211146 | M58: =PLOTS!$E$11/($T$9/60*2*PI())*ABS(L58)*$T$12 -> 0.002443798652 | N58: -0.000133792706 | O58: =PLOTS!$E$11/($T$9/60*2*PI())*ABS(N58)*$T$12 -> 0.002845103232 | P58: -0.000134275001 | Q58: =PLOTS!$E$11/($T$9/60*2*PI())*ABS(P58)*$T$12 -> 0.00285535924
A59: 65.6 | B59: 1.102948823e-05 | C59: =PLOTS!$E$11/($T$9/60*2*PI())*ABS(B59)*$T$12 -> 0.0002345421776 | D59: 1.052614019e-05 | E59: =PLOTS!$E$11/($T$9/60*2*PI())*ABS(D59)*$T$12 -> 0.0002238384764 | F59: 6.093861744e-05 | G59: =PLOTS!$E$11/($T$9/60*2*PI())*ABS(F59)*$T$12 -> 0.00129586031 | H59: 5.967025328e-05 | I59: =PLOTS!$E$11/($T$9/60*2*PI())*ABS(H59)*$T$12 -> 0.001268888533 | J59: 0.0001124187361 | K59: =PLOTS!$E$11/($T$9/60*2*PI())*ABS(J59)*$T$12 -> 0.002390585547 | L59: 0.0001118129002 | M59: =PLOTS!$E$11/($T$9/60*2*PI())*ABS(L59)*$T$12 -> 0.002377702441 | N59: -0.0001356973409 | O59: =PLOTS!$E$11/($T$9/60*2*PI())*ABS(N59)*$T$12 -> 0.002885605312 | P59: -0.0001361873921 | Q59: =PLOTS!$E$11/($T$9/60*2*PI())*ABS(P59)*$T$12 -> 0.002896026255
A60: 65.7 | B60: 8.218265711e-06 | C60: =PLOTS!$E$11/($T$9/60*2*PI())*ABS(B60)*$T$12 -> 0.0001747615025 | D60: 7.710495969e-06 | E60: =PLOTS!$E$11/($T$9/60*2*PI())*ABS(D60)*$T$12 -> 0.0001639637739 | F60: 5.837305102e-05 | G60: =PLOTS!$E$11/($T$9/60*2*PI())*ABS(F60)*$T$12 -> 0.001241303514 | H60: 5.710862632e-05 | I60: =PLOTS!$E$11/($T$9/60*2*PI())*ABS(H60)*$T$12 -> 0.00121441551 | J60: 0.0001093423959 | K60: =PLOTS!$E$11/($T$9/60*2*PI())*ABS(J60)*$T$12 -> 0.002325167143 | L60: 0.0001087333131 | M60: =PLOTS!$E$11/($T$9/60*2*PI())*ABS(L60)*$T$12 -> 0.002312214991 | N60: -0.000137579785 | O60: =PLOTS!$E$11/($T$9/60*2*PI())*ABS(N60)*$T$12 -> 0.002925635505 | P60: -0.0001380775406 | Q60: =PLOTS!$E$11/($T$9/60*2*PI())*ABS(P60)*$T$12 -> 0.002936220283
A61: 65.8 | B61: 5.434237152e-06 | C61: =PLOTS!$E$11/($T$9/60*2*PI())*ABS(B61)*$T$12 -> 0.0001155591074 | D61: 4.922076612e-06 | E61: =PLOTS!$E$11/($T$9/60*2*PI())*ABS(D61)*$T$12 -> 0.0001046680084 | F61: 5.583285558e-05 | G61: =PLOTS!$E$11/($T$9/60*2*PI())*ABS(F61)*$T$12 -> 0.001187286232 | H61: 5.45723516e-05 | I61: =PLOTS!$E$11/($T$9/60*2*PI())*ABS(H61)*$T$12 -> 0.001160481603 | J61: 0.0001062944376 | K61: =PLOTS!$E$11/($T$9/60*2*PI())*ABS(J61)*$T$12 -> 0.002260352278 | L61: 0.0001056821318 | M61: =PLOTS!$E$11/($T$9/60*2*PI())*ABS(L61)*$T$12 -> 0.00224733159 | N61: -0.0001394402161 | O61: =PLOTS!$E$11/($T$9/60*2*PI())*ABS(N61)*$T$12 -> 0.00296519759 | P61: -0.000139945625 | Q61: =PLOTS!$E$11/($T$9/60*2*PI())*ABS(P61)*$T$12 -> 0.002975945115
A62: 65.9 | B62: 2.677190543e-06 | C62: =PLOTS!$E$11/($T$9/60*2*PI())*ABS(B62)*$T$12 -> 5.693048368e-05 | D62: 2.160669872e-06 | E62: =PLOTS!$E$11/($T$9/60*2*PI())*ABS(D62)*$T$12 -> 4.594666645e-05 | F62: 5.331783294e-05 | G62: =PLOTS!$E$11/($T$9/60*2*PI())*ABS(F62)*$T$12 -> 0.001133804251 | H62: 5.206123104e-05 | I62: =PLOTS!$E$11/($T$9/60*2*PI())*ABS(H62)*$T$12 -> 0.001107082599 | J62: 0.0001032746415 | K62: =PLOTS!$E$11/($T$9/60*2*PI())*ABS(J62)*$T$12 -> 0.002196136285 | L62: 0.0001026591365 | M62: =PLOTS!$E$11/($T$9/60*2*PI())*ABS(L62)*$T$12 -> 0.002183047565 | N62: -0.0001412788104 | O62: =PLOTS!$E$11/($T$9/60*2*PI())*ABS(N62)*$T$12 -> 0.003004295317 | P62: -0.0001417918216 | Q62: =PLOTS!$E$11/($T$9/60*2*PI())*ABS(P62)*$T$12 -> 0.003015204505
A63: 66 | B63: -5.308427251e-08 | C63: =PLOTS!$E$11/($T$9/60*2*PI())*ABS(B63)*$T$12 -> 1.128837586e-06 | D63: -5.739346344e-07 | E63: =PLOTS!$E$11/($T$9/60*2*PI())*ABS(D63)*$T$12 -> 1.220472574e-05 | F63: 5.082778663e-05 | G63: =PLOTS!$E$11/($T$9/60*2*PI())*ABS(F63)*$T$12 -> 0.001080853391 | H63: 4.957506829e-05 | I63: =PLOTS!$E$11/($T$9/60*2*PI())*ABS(H63)*$T$12 -> 0.001054214323 | J63: 0.0001002827901 | K63: =PLOTS!$E$11/($T$9/60*2*PI())*ABS(J63)*$T$12 -> 0.002132514535 | L63: 9.966410955e-05 | M63: =PLOTS!$E$11/($T$9/60*2*PI())*ABS(L63)*$T$12 -> 0.002119358286 | N63: -0.0001430957427 | O63: =PLOTS!$E$11/($T$9/60*2*PI())*ABS(N63)*$T$12 -> 0.0030429324 | P63: -0.0001436163057 | Q63: =PLOTS!$E$11/($T$9/60*2*PI())*ABS(P63)*$T$12 -> 0.003054002178
A64: 66.1 | B64: -2.756795613e-06 | C64: =PLOTS!$E$11/($T$9/60*2*PI())*ABS(B64)*$T$12 -> 5.86232863e-05 | D64: -3.281945454e-06 | E64: =PLOTS!$E$11/($T$9/60*2*PI())*ABS(D64)*$T$12 -> 6.979060291e-05 | F64: 4.83625219e-05 | G64: =PLOTS!$E$11/($T$9/60*2*PI())*ABS(F64)*$T$12 -> 0.001028429512 | H64: 4.711366873e-05 | I64: =PLOTS!$E$11/($T$9/60*2*PI())*ABS(H64)*$T$12 -> 0.001001872637 | J64: 9.731866775e-05 | K64: =PLOTS!$E$11/($T$9/60*2*PI())*ABS(J64)*$T$12 -> 0.002069482443 | L64: 9.669683495e-05 | M64: =PLOTS!$E$11/($T$9/60*2*PI())*ABS(L64)*$T$12 -> 0.002056259163 | N64: -0.0001448911861 | O64: =PLOTS!$E$11/($T$9/60*2*PI())*ABS(N64)*$T$12 -> 0.003081112522 | P64: -0.0001454192508 | Q64: =PLOTS!$E$11/($T$9/60*2*PI())*ABS(P64)*$T$12 -> 0.003092341823
A65: 66.2 | B65: -5.434149979e-06 | C65: =PLOTS!$E$11/($T$9/60*2*PI())*ABS(B65)*$T$12 -> 0.0001155572537 | D65: -5.963569311e-06 | E65: =PLOTS!$E$11/($T$9/60*2*PI())*ABS(D65)*$T$12 -> 0.000126815361 | F65: 4.592184571e-05 | G65: =PLOTS!$E$11/($T$9/60*2*PI())*ABS(F65)*$T$12 -> 0.0009765285083 | H65: 4.467683942e-05 | I65: =PLOTS!$E$11/($T$9/60*2*PI())*ABS(H65)*$T$12 -> 0.0009500534371 | J65: 9.438206053e-05 | K65: =PLOTS!$E$11/($T$9/60*2*PI())*ABS(J65)*$T$12 -> 0.002007035461 | L65: 9.375709875e-05 | M65: =PLOTS!$E$11/($T$9/60*2*PI())*ABS(L65)*$T$12 -> 0.001993745643 | N65: -0.0001466653123 | O65: =PLOTS!$E$11/($T$9/60*2*PI())*ABS(N65)*$T$12 -> 0.003118839332 | P65: -0.0001472008288 | Q65: =PLOTS!$E$11/($T$9/60*2*PI())*ABS(P65)*$T$12 -> 0.003130227097
A66: 66.3 | B66: -8.085352069e-06 | C66: =PLOTS!$E$11/($T$9/60*2*PI())*ABS(B66)*$T$12 -> 0.0001719350926 | D66: -8.619011126e-06 | E66: =PLOTS!$E$11/($T$9/60*2*PI())*ABS(D66)*$T$12 -> 0.0001832833578 | F66: 4.350556667e-05 | G66: =PLOTS!$E$11/($T$9/60*2*PI())*ABS(F66)*$T$12 -> 0.0009251463105 | H66: 4.226438911e-05 | I66: =PLOTS!$E$11/($T$9/60*2*PI())*ABS(H66)*$T$12 -> 0.0008987526572 | J66: 9.147275651e-05 | K66: =PLOTS!$E$11/($T$9/60*2*PI())*ABS(J66)*$T$12 -> 0.001945169082 | L66: 9.084468881e-05 | M66: =PLOTS!$E$11/($T$9/60*2*PI())*ABS(L66)*$T$12 -> 0.001931813216 | N66: -0.0001484182913 | O66: =PLOTS!$E$11/($T$9/60*2*PI())*ABS(N66)*$T$12 -> 0.003156116449 | P66: -0.0001489612103 | Q66: =PLOTS!$E$11/($T$9/60*2*PI())*ABS(P66)*$T$12 -> 0.003167661628
A67: 66.4 | B67: -1.07106048e-05 | C67: =PLOTS!$E$11/($T$9/60*2*PI())*ABS(B67)*$T$12 -> 0.0002277611182 | D67: -1.124847404e-05 | E67: =PLOTS!$E$11/($T$9/60*2*PI())*ABS(D67)*$T$12 -> 0.000239198913 | F67: 4.111349509e-05 | G67: =PLOTS!$E$11/($T$9/60*2*PI())*ABS(F67)*$T$12 -> 0.0008742788844 | H67: 3.987612821e-05 | I67: =PLOTS!$E$11/($T$9/60*2*PI())*ABS(H67)*$T$12 -> 0.0008479662654 | J67: 8.859054558e-05 | K67: =PLOTS!$E$11/($T$9/60*2*PI())*ABS(J67)*$T$12 -> 0.001883878838 | L67: 8.795939483e-05 | M67: =PLOTS!$E$11/($T$9/60*2*PI())*ABS(L67)*$T$12 -> 0.001870457411 | N67: -0.0001501502919 | O67: =PLOTS!$E$11/($T$9/60*2*PI())*ABS(N67)*$T$12 -> 0.00319294746 | P67: -0.0001507005643 | Q67: =PLOTS!$E$11/($T$9/60*2*PI())*ABS(P67)*$T$12 -> 0.003204649008
A68: 66.5 | B68: -1.331010932e-05 | C68: =PLOTS!$E$11/($T$9/60*2*PI())*ABS(B68)*$T$12 -> 0.0002830396079 | D68: -1.385215942e-05 | E68: =PLOTS!$E$11/($T$9/60*2*PI())*ABS(D68)*$T$12 -> 0.0002945663086 | F68: 3.874544291e-05 | G68: =PLOTS!$E$11/($T$9/60*2*PI())*ABS(F68)*$T$12 -> 0.0008239222311 | H68: 3.751186879e-05 | I68: =PLOTS!$E$11/($T$9/60*2*PI())*ABS(H68)*$T$12 -> 0.000797690265 | J68: 8.573521944e-05 | K68: =PLOTS!$E$11/($T$9/60*2*PI())*ABS(J68)*$T$12 -> 0.001823160299 | L68: 8.510100835e-05 | M68: =PLOTS!$E$11/($T$9/60*2*PI())*ABS(L68)*$T$12 -> 0.001809673794 | N68: -0.0001518614812 | O68: =PLOTS!$E$11/($T$9/60*2*PI())*ABS(N68)*$T$12 -> 0.003229335918 | P68: -0.0001524190583 | Q68: =PLOTS!$E$11/($T$9/60*2*PI())*ABS(P68)*$T$12 -> 0.0032411928
A69: 66.6 | B69: -1.588406504e-05 | C69: =PLOTS!$E$11/($T$9/60*2*PI())*ABS(B69)*$T$12 -> 0.000337774802 | D69: -1.643026689e-05 | E69: =PLOTS!$E$11/($T$9/60*2*PI())*ABS(D69)*$T$12 -> 0.0003493897897 | F69: 3.64012237e-05 | G69: =PLOTS!$E$11/($T$9/60*2*PI())*ABS(F69)*$T$12 -> 0.0007740723862 | H69: =TAN(ASIN(($A69^2+2*H$1*H$2-H$2^2)/2/H$1/$A69)-H$3*PI()/180)/$A69 -> 3.517142452e-05 | I69: =PLOTS!$E$11/($T$9/60*2*PI())*ABS(H69)*$T$12 -> 0.0007479206942 | J69: 8.29065716e-05 | K69: =PLOTS!$E$11/($T$9/60*2*PI())*ABS(J69)*$T$12 -> 0.001763009074 | L69: 8.22693227e-05 | M69: =PLOTS!$E$11/($T$9/60*2*PI())*ABS(L69)*$T$12 -> 0.00174945797 | N69: -0.000153552025 | O69: =PLOTS!$E$11/($T$9/60*2*PI())*ABS(N69)*$T$12 -> 0.003265285348 | P69: -0.0001541168584 | Q69: =PLOTS!$E$11/($T$9/60*2*PI())*ABS(P69)*$T$12 -> 0.003277296535
A70: 66.7 | B70: =TAN(ASIN(($A70^2+2*B$1*B$2-B$2^2)/2/B$1/$A70)-B$3*PI()/180)/$A70 -> -1.843266963e-05 | C70: =PLOTS!$E$11/($T$9/60*2*PI())*ABS(B70)*$T$12 -> 0.0003919709041 | D70: -1.898299434e-05 | E70: =PLOTS!$E$11/($T$9/60*2*PI())*ABS(D70)*$T$12 -> 0.0004036735645 | F70: 3.408065265e-05 | G70: =PLOTS!$E$11/($T$9/60*2*PI())*ABS(F70)*$T$12 -> 0.0007247254196 | H70: 3.285461071e-05 | I70: =PLOTS!$E$11/($T$9/60*2*PI())*ABS(H70)*$T$12 -> 0.0006986536254 | J70: =TAN(ASIN(($A70^2+2*J$1*J$2-J$2^2)/2/J$1/$A70)-J$3*PI()/180)/$A70 -> 8.010439735e-05 | K70: =PLOTS!$E$11/($T$9/60*2*PI())*ABS(J70)*$T$12 -> 0.001703420811 | L70: =TAN(ASIN(($A70^2+2*L$1*L$2-L$2^2)/2/L$1/$A70)-L$3*PI()/180)/$A70 -> 7.946413302e-05 | M70: =PLOTS!$E$11/($T$9/60*2*PI())*ABS(L70)*$T$12 -> 0.001689805583 | N70: =TAN(ASIN(($A70^2+2*N$1*N$2-N$2^2)/2/N$1/$A70)-N$3*PI()/180)/$A70 -> -0.0001552220875 | O70: =PLOTS!$E$11/($T$9/60*2*PI())*ABS(N70)*$T$12 -> 0.003300799244 | P70: =TAN(ASIN(($A70^2+2*P$1*P$2-P$2^2)/2/P$1/$A70)-P$3*PI()/180)/$A70 -> -0.0001557941291 | Q70: =PLOTS!$E$11/($T$9/60*2*PI())*ABS(P70)*$T$12 -> 0.003312963715
A71: 66.8 | B71: -2.095611906e-05 | C71: =PLOTS!$E$11/($T$9/60*2*PI())*ABS(B71)*$T$12 -> 0.0004456320815 | D71: -2.151053795e-05 | E71: =PLOTS!$E$11/($T$9/60*2*PI())*ABS(D71)*$T$12 -> 0.0004574218046 | F71: 3.178354655e-05 | G71: =PLOTS!$E$11/($T$9/60*2*PI())*ABS(F71)*$T$12 -> 0.0006758774354 | H71: 3.056124426e-05 | I71: =PLOTS!$E$11/($T$9/60*2*PI())*ABS(H71)*$T$12 -> 0.0006498851649 | J71: 7.732849375e-05 | K71: =PLOTS!$E$11/($T$9/60*2*PI())*ABS(J71)*$T$12 -> 0.001644391193 | L71: 7.668523618e-05 | M71: =PLOTS!$E$11/($T$9/60*2*PI())*ABS(L71)*$T$12 -> 0.001630712315 | N71: -0.0001568718315 | O71: =PLOTS!$E$11/($T$9/60*2*PI())*ABS(N71)*$T$12 -> 0.003335881067 | P71: -0.0001574510338 | Q71: =PLOTS!$E$11/($T$9/60*2*PI())*ABS(P71)*$T$12 -> 0.003348197808
A72: 66.9 | B72: -2.34546076e-05 | C72: =PLOTS!$E$11/($T$9/60*2*PI())*ABS(B72)*$T$12 -> 0.0004987624651 | D72: -2.401309219e-05 | E72: =PLOTS!$E$11/($T$9/60*2*PI())*ABS(D72)*$T$12 -> 0.0005106386456 | F72: 2.950972377e-05 | G72: =PLOTS!$E$11/($T$9/60*2*PI())*ABS(F72)*$T$12 -> 0.0006275245711 | H72: 2.829114365e-05 | I72: =PLOTS!$E$11/($T$9/60*2*PI())*ABS(H72)*$T$12 -> 0.0006016114527 | J72: 7.457865964e-05 | K72: =PLOTS!$E$11/($T$9/60*2*PI())*ABS(J72)*$T$12 -> 0.001585915943 | L72: 7.393243086e-05 | M72: =PLOTS!$E$11/($T$9/60*2*PI())*ABS(L72)*$T$12 -> 0.001572173882 | N72: -0.0001585014186 | O72: =PLOTS!$E$11/($T$9/60*2*PI())*ABS(N72)*$T$12 -> 0.003370534251 | P72: -0.000159087734 | Q72: =PLOTS!$E$11/($T$9/60*2*PI())*ABS(P72)*$T$12 -> 0.003383002256
A73: 67 | B73: -2.592832782e-05 | C73: =PLOTS!$E$11/($T$9/60*2*PI())*ABS(B73)*$T$12 -> 0.0005513661506 | D73: -2.649084987e-05 | E73: =PLOTS!$E$11/($T$9/60*2*PI())*ABS(D73)*$T$12 -> 0.0005633281875 | F73: 2.725900424e-05 | G73: =PLOTS!$E$11/($T$9/60*2*PI())*ABS(F73)*$T$12 -> 0.0005796629978 | H73: 2.604412893e-05 | I73: =PLOTS!$E$11/($T$9/60*2*PI())*ABS(H73)*$T$12 -> 0.0005538286622 | J73: 7.185469554e-05 | K73: =PLOTS!$E$11/($T$9/60*2*PI())*ABS(J73)*$T$12 -> 0.00152799082 | L73: 7.120551742e-05 | M73: =PLOTS!$E$11/($T$9/60*2*PI())*ABS(L73)*$T$12 -> 0.00151418604 | N73: -0.0001601110085 | O73: =PLOTS!$E$11/($T$9/60*2*PI())*ABS(N73)*$T$12 -> 0.003404762198 | P73: -0.0001607043903 | Q73: =PLOTS!$E$11/($T$9/60*2*PI())*ABS(P73)*$T$12 -> 0.003417380468
A74: 67.1 | B74: -2.837747068e-05 | C74: =PLOTS!$E$11/($T$9/60*2*PI())*ABS(B74)*$T$12 -> 0.0006034471978 | D74: -2.894400212e-05 | E74: =PLOTS!$E$11/($T$9/60*2*PI())*ABS(D74)*$T$12 -> 0.0006154944947 | F74: 2.503120945e-05 | G74: =PLOTS!$E$11/($T$9/60*2*PI())*ABS(F74)*$T$12 -> 0.0005322889194 | H74: 2.38200217e-05 | I74: =PLOTS!$E$11/($T$9/60*2*PI())*ABS(H74)*$T$12 -> 0.0005065329997 | J74: 6.915640374e-05 | K74: =PLOTS!$E$11/($T$9/60*2*PI())*ABS(J74)*$T$12 -> 0.001470611617 | L74: 6.850429798e-05 | M74: =PLOTS!$E$11/($T$9/60*2*PI())*ABS(L74)*$T$12 -> 0.001456744582 | N74: -0.0001617007602 | O74: =PLOTS!$E$11/($T$9/60*2*PI())*ABS(N74)*$T$12 -> 0.003438568282 | P74: -0.0001623011615 | Q74: =PLOTS!$E$11/($T$9/60*2*PI())*ABS(P74)*$T$12 -> 0.003451335824
A75: 67.2 | B75: -3.080222544e-05 | C75: =PLOTS!$E$11/($T$9/60*2*PI())*ABS(B75)*$T$12 -> 0.0006550096321 | D75: -3.137273844e-05 | E75: =PLOTS!$E$11/($T$9/60*2*PI())*ABS(D75)*$T$12 -> 0.0006671415968 | F75: 2.282616243e-05 | G75: =PLOTS!$E$11/($T$9/60*2*PI())*ABS(F75)*$T$12 -> 0.0004853985725 | H75: 2.161864508e-05 | I75: =PLOTS!$E$11/($T$9/60*2*PI())*ABS(H75)*$T$12 -> 0.000459720704 | J75: 6.648358819e-05 | K75: =PLOTS!$E$11/($T$9/60*2*PI())*ABS(J75)*$T$12 -> 0.001413774168 | L75: 6.582857633e-05 | M75: =PLOTS!$E$11/($T$9/60*2*PI())*ABS(L75)*$T$12 -> 0.001399845334 | N75: -0.0001632708306 | O75: =PLOTS!$E$11/($T$9/60*2*PI())*ABS(N75)*$T$12 -> 0.003471955846 | P75: -0.0001638782053 | Q75: =PLOTS!$E$11/($T$9/60*2*PI())*ABS(P75)*$T$12 -> 0.003484871675
A76: 67.3 | B76: -3.320277977e-05 | C76: =PLOTS!$E$11/($T$9/60*2*PI())*ABS(B76)*$T$12 -> 0.0007060574439 | D76: -3.377724668e-05 | E76: =PLOTS!$E$11/($T$9/60*2*PI())*ABS(D76)*$T$12 -> 0.0007182734886 | F76: 2.064368773e-05 | G76: =PLOTS!$E$11/($T$9/60*2*PI())*ABS(F76)*$T$12 -> 0.000438988226 | H76: 1.943982375e-05 | I76: =PLOTS!$E$11/($T$9/60*2*PI())*ABS(H76)*$T$12 -> 0.0004133880464 | J76: 6.383605455e-05 | K76: =PLOTS!$E$11/($T$9/60*2*PI())*ABS(J76)*$T$12 -> 0.001357474339 | L76: 6.317815797e-05 | M76: =PLOTS!$E$11/($T$9/60*2*PI())*ABS(L76)*$T$12 -> 0.001343484161 | N76: -0.0001648213759 | O76: =PLOTS!$E$11/($T$9/60*2*PI())*ABS(N76)*$T$12 -> 0.003504928206 | P76: -0.0001654356779 | Q76: =PLOTS!$E$11/($T$9/60*2*PI())*ABS(P76)*$T$12 -> 0.003517991344
A77: 67.4 | B77: -3.55793197e-05 | C77: =PLOTS!$E$11/($T$9/60*2*PI())*ABS(B77)*$T$12 -> 0.0007565945894 | D77: -3.61577131e-05 | E77: =PLOTS!$E$11/($T$9/60*2*PI())*ABS(D77)*$T$12 -> 0.0007688941307 | F77: 1.848361138e-05 | G77: =PLOTS!$E$11/($T$9/60*2*PI())*ABS(F77)*$T$12 -> 0.000393054181 | H77: 1.728338384e-05 | I77: =PLOTS!$E$11/($T$9/60*2*PI())*ABS(H77)*$T$12 -> 0.0003675313303 | J77: 6.121361013e-05 | K77: =PLOTS!$E$11/($T$9/60*2*PI())*ABS(J77)*$T$12 -> 0.001301708032 | L77: 6.055285005e-05 | M77: =PLOTS!$E$11/($T$9/60*2*PI())*ABS(L77)*$T$12 -> 0.001287656962 | N77: -0.0001663525504 | O77: =PLOTS!$E$11/($T$9/60*2*PI())*ABS(N77)*$T$12 -> 0.003537488648 | P77: -0.000166973734 | Q77: =PLOTS!$E$11/($T$9/60*2*PI())*ABS(P77)*$T$12 -> 0.003550698124
A78: 67.5 | B78: -3.793202969e-05 | C78: =PLOTS!$E$11/($T$9/60*2*PI())*ABS(B78)*$T$12 -> 0.0008066249908 | D78: -3.851432233e-05 | E78: =PLOTS!$E$11/($T$9/60*2*PI())*ABS(D78)*$T$12 -> 0.0008190074495 | F78: 1.634576095e-05 | G78: =PLOTS!$E$11/($T$9/60*2*PI())*ABS(F78)*$T$12 -> 0.0003475927701 | H78: 1.514915302e-05 | I78: =PLOTS!$E$11/($T$9/60*2*PI())*ABS(H78)*$T$12 -> 0.0003221468905 | J78: 5.861606389e-05 | K78: =PLOTS!$E$11/($T$9/60*2*PI())*ABS(J78)*$T$12 -> 0.001246471185 | L78: 5.795246137e-05 | M78: =PLOTS!$E$11/($T$9/60*2*PI())*ABS(L78)*$T$12 -> 0.001232359671 | N78: -0.0001678645075 | O78: =PLOTS!$E$11/($T$9/60*2*PI())*ABS(N78)*$T$12 -> 0.00356964043 | P78: -0.0001684925274 | Q78: =PLOTS!$E$11/($T$9/60*2*PI())*ABS(P78)*$T$12 -> 0.00358299528
A79: 67.6 | B79: -4.02610926e-05 | C79: =PLOTS!$E$11/($T$9/60*2*PI())*ABS(B79)*$T$12 -> 0.0008561525369 | D79: -4.084725744e-05 | E79: =PLOTS!$E$11/($T$9/60*2*PI())*ABS(D79)*$T$12 -> 0.000868617338 | F79: 1.422996544e-05 | G79: =PLOTS!$E$11/($T$9/60*2*PI())*ABS(F79)*$T$12 -> 0.0003026003574 | H79: 1.30369604e-05 | I79: =PLOTS!$E$11/($T$9/60*2*PI())*ABS(H79)*$T$12 -> 0.0002772310934 | J79: 5.604322643e-05 | K79: =PLOTS!$E$11/($T$9/60*2*PI())*ABS(J79)*$T$12 -> 0.001191759771 | L79: 5.537680238e-05 | M79: =PLOTS!$E$11/($T$9/60*2*PI())*ABS(L79)*$T$12 -> 0.001177588256 | N79: -0.0001693573989 | O79: =PLOTS!$E$11/($T$9/60*2*PI())*ABS(N79)*$T$12 -> 0.003601386782 | P79: -0.0001699922101 | Q79: =PLOTS!$E$11/($T$9/60*2*PI())*ABS(P79)*$T$12 -> 0.003614886049
A80: 67.7 | B80: -4.256668974e-05 | C80: =PLOTS!$E$11/($T$9/60*2*PI())*ABS(B80)*$T$12 -> 0.0009051810831 | D80: -4.315669993e-05 | E80: =PLOTS!$E$11/($T$9/60*2*PI())*ABS(D80)*$T$12 -> 0.0009177276557 | F80: 1.213605534e-05 | G80: =PLOTS!$E$11/($T$9/60*2*PI())*ABS(F80)*$T$12 -> 0.0002580733381 | H80: 1.094663658e-05 | I80: =PLOTS!$E$11/($T$9/60*2*PI())*ABS(H80)*$T$12 -> 0.0002327803363 | J80: 5.349490996e-05 | K80: =PLOTS!$E$11/($T$9/60*2*PI())*ABS(J80)*$T$12 -> 0.001137569795 | L80: 5.282568513e-05 | M80: =PLOTS!$E$11/($T$9/60*2*PI())*ABS(L80)*$T$12 -> 0.001123338723 | N80: -0.0001708313753 | O80: =PLOTS!$E$11/($T$9/60*2*PI())*ABS(N80)*$T$12 -> 0.003632730906 | P80: -0.0001714729331 | Q80: =PLOTS!$E$11/($T$9/60*2*PI())*ABS(P80)*$T$12 -> 0.003646373638
A81: 67.8 | B81: -4.484900085e-05 | C81: =PLOTS!$E$11/($T$9/60*2*PI())*ABS(B81)*$T$12 -> 0.0009537144516 | D81: -4.544282975e-05 | E81: =PLOTS!$E$11/($T$9/60*2*PI())*ABS(D81)*$T$12 -> 0.0009663422293 | F81: 1.006386257e-05 | G81: =PLOTS!$E$11/($T$9/60*2*PI())*ABS(F81)*$T$12 -> 0.0002140081381 | H81: 8.878013575e-06 | I81: =PLOTS!$E$11/($T$9/60*2*PI())*ABS(H81)*$T$12 -> 0.0001887910475 | J81: 5.09709283e-05 | K81: =PLOTS!$E$11/($T$9/60*2*PI())*ABS(J81)*$T$12 -> 0.0010838973 | L81: 5.029892328e-05 | M81: =PLOTS!$E$11/($T$9/60*2*PI())*ABS(L81)*$T$12 -> 0.001069607107 | N81: -0.000172286586 | O81: =PLOTS!$E$11/($T$9/60*2*PI())*ABS(N81)*$T$12 -> 0.003663675976 | P81: -0.000172934846 | Q81: =PLOTS!$E$11/($T$9/60*2*PI())*ABS(P81)*$T$12 -> 0.003677461231
A82: 67.9 | B82: -4.710820415e-05 | C82: =PLOTS!$E$11/($T$9/60*2*PI())*ABS(B82)*$T$12 -> 0.001001756432 | D82: -4.770582532e-05 | E82: =PLOTS!$E$11/($T$9/60*2*PI())*ABS(D82)*$T$12 -> 0.001014464853 | F82: 8.013220492e-06 | G82: =PLOTS!$E$11/($T$9/60*2*PI())*ABS(F82)*$T$12 -> 0.0001704012139 | H82: 6.830924861e-06 | I82: =PLOTS!$E$11/($T$9/60*2*PI())*ABS(H82)*$T$12 -> 0.0001452596855 | J82: 4.847109685e-05 | K82: =PLOTS!$E$11/($T$9/60*2*PI())*ABS(J82)*$T$12 -> 0.001030738359 | L82: 4.779633208e-05 | M82: =PLOTS!$E$11/($T$9/60*2*PI())*ABS(L82)*$T$12 -> 0.00101638948 | N82: -0.000173723179 | O82: =PLOTS!$E$11/($T$9/60*2*PI())*ABS(N82)*$T$12 -> 0.003694225139 | P82: -0.0001743780971 | Q82: =PLOTS!$E$11/($T$9/60*2*PI())*ABS(P82)*$T$12 -> 0.003708151979
A83: 68 | B83: -4.934447634e-05 | C83: =PLOTS!$E$11/($T$9/60*2*PI())*ABS(B83)*$T$12 -> 0.001049310783 | D83: -4.994586351e-05 | E83: =PLOTS!$E$11/($T$9/60*2*PI())*ABS(D83)*$T$12 -> 0.001062099287 | F83: 5.983963894e-06 | G83: =PLOTS!$E$11/($T$9/60*2*PI())*ABS(F83)*$T$12 -> 0.0001272490521 | H83: 4.805205317e-06 | I83: =PLOTS!$E$11/($T$9/60*2*PI())*ABS(H83)*$T$12 -> 0.0001021827391 | J83: 4.599523257e-05 | K83: =PLOTS!$E$11/($T$9/60*2*PI())*ABS(J83)*$T$12 -> 0.0009780890807 | L83: 4.531772836e-05 | M83: =PLOTS!$E$11/($T$9/60*2*PI())*ABS(L83)*$T$12 -> 0.0009636819468 | N83: -0.0001751413009 | O83: =PLOTS!$E$11/($T$9/60*2*PI())*ABS(N83)*$T$12 -> 0.003724381517 | P83: -0.0001758028334 | Q83: =PLOTS!$E$11/($T$9/60*2*PI())*ABS(P83)*$T$12 -> 0.003738449012
A84: 68.1 | B84: -5.155799262e-05 | C84: =PLOTS!$E$11/($T$9/60*2*PI())*ABS(B84)*$T$12 -> 0.001096381229 | D84: -5.216311972e-05 | E84: =PLOTS!$E$11/($T$9/60*2*PI())*ABS(D84)*$T$12 -> 0.001109249263 | F84: 3.975928957e-06 | G84: =PLOTS!$E$11/($T$9/60*2*PI())*ABS(F84)*$T$12 -> 8.454816904e-05 | H84: 2.800691229e-06 | I84: =PLOTS!$E$11/($T$9/60*2*PI())*ABS(H84)*$T$12 -> 5.955672701e-05 | J84: 4.3543154e-05 | K84: =PLOTS!$E$11/($T$9/60*2*PI())*ABS(J84)*$T$12 -> 0.0009259456053 | L84: 4.286293048e-05 | M84: =PLOTS!$E$11/($T$9/60*2*PI())*ABS(L84)*$T$12 -> 0.0009114806453 | N84: -0.0001765410974 | O84: =PLOTS!$E$11/($T$9/60*2*PI())*ABS(N84)*$T$12 -> 0.003754148201 | P84: -0.0001772092008 | Q84: =PLOTS!$E$11/($T$9/60*2*PI())*ABS(P84)*$T$12 -> 0.003768355427
A85: 68.2 | B85: -5.374892669e-05 | C85: =PLOTS!$E$11/($T$9/60*2*PI())*ABS(B85)*$T$12 -> 0.001142971464 | D85: -5.435776783e-05 | E85: =PLOTS!$E$11/($T$9/60*2*PI())*ABS(D85)*$T$12 -> 0.001155918477 | F85: 1.988953258e-06 | G85: =PLOTS!$E$11/($T$9/60*2*PI())*ABS(F85)*$T$12 -> 4.229511093e-05 | H85: 8.172202768e-07 | I85: =PLOTS!$E$11/($T$9/60*2*PI())*ABS(H85)*$T$12 -> 1.737819736e-05 | J85: 4.111468119e-05 | K85: =PLOTS!$E$11/($T$9/60*2*PI())*ABS(J85)*$T$12 -> 0.0008743041067 | L85: 4.043175835e-05 | M85: =PLOTS!$E$11/($T$9/60*2*PI())*ABS(L85)*$T$12 -> 0.0008597817458 | N85: -0.0001779227124 | O85: =PLOTS!$E$11/($T$9/60*2*PI())*ABS(N85)*$T$12 -> 0.00378352826 | P85: -0.0001785973437 | Q85: =PLOTS!$E$11/($T$9/60*2*PI())*ABS(P85)*$T$12 -> 0.003797874299
A86: 68.3 | B86: -5.591745078e-05 | C86: =PLOTS!$E$11/($T$9/60*2*PI())*ABS(B86)*$T$12 -> 0.00118908515 | D86: -5.652998028e-05 | E86: =PLOTS!$E$11/($T$9/60*2*PI())*ABS(D86)*$T$12 -> 0.001202110596 | F86: 2.28757526e-08 | G86: =PLOTS!$E$11/($T$9/60*2*PI())*ABS(F86)*$T$12 -> 4.864531079e-07 | H86: -1.145368486e-06 | I86: =PLOTS!$E$11/($T$9/60*2*PI())*ABS(H86)*$T$12 -> 2.435627232e-05 | J86: 3.870963573e-05 | K86: =PLOTS!$E$11/($T$9/60*2*PI())*ABS(J86)*$T$12 -> 0.0008231607909 | L86: 3.802403343e-05 | M86: =PLOTS!$E$11/($T$9/60*2*PI())*ABS(L86)*$T$12 -> 0.0008085814512 | N86: -0.0001792862892 | O86: =PLOTS!$E$11/($T$9/60*2*PI())*ABS(N86)*$T$12 -> 0.003812524734 | P86: -0.0001799674054 | Q86: =PLOTS!$E$11/($T$9/60*2*PI())*ABS(P86)*$T$12 -> 0.003827008676
A87: 68.4 | B87: -5.806373566e-05 | C87: =PLOTS!$E$11/($T$9/60*2*PI())*ABS(B87)*$T$12 -> 0.00123472592 | D87: -5.8679928e-05 | E87: =PLOTS!$E$11/($T$9/60*2*PI())*ABS(D87)*$T$12 -> 0.001247829256 | F87: -1.92246324e-06 | G87: =PLOTS!$E$11/($T$9/60*2*PI())*ABS(F87)*$T$12 -> 4.088120002e-05 | H87: -3.087234641e-06 | I87: =PLOTS!$E$11/($T$9/60*2*PI())*ABS(H87)*$T$12 -> 6.565007552e-05 | J87: 3.632784071e-05 | K87: =PLOTS!$E$11/($T$9/60*2*PI())*ABS(J87)*$T$12 -> 0.0007725118961 | L87: 3.563957865e-05 | M87: =PLOTS!$E$11/($T$9/60*2*PI())*ABS(L87)*$T$12 -> 0.0007578759965 | N87: -0.0001806319694 | O87: =PLOTS!$E$11/($T$9/60*2*PI())*ABS(N87)*$T$12 -> 0.003841140637 | P87: -0.000181319528 | Q87: =PLOTS!$E$11/($T$9/60*2*PI())*ABS(P87)*$T$12 -> 0.003855761577
A88: 68.5 | B88: -6.018795065e-05 | C88: =PLOTS!$E$11/($T$9/60*2*PI())*ABS(B88)*$T$12 -> 0.001279897373 | D88: -6.080778051e-05 | E88: =PLOTS!$E$11/($T$9/60*2*PI())*ABS(D88)*$T$12 -> 0.001293078061 | F88: -3.847222048e-06 | G88: =PLOTS!$E$11/($T$9/60*2*PI())*ABS(F88)*$T$12 -> 8.181121533e-05 | H88: -5.008536418e-06 | I88: =PLOTS!$E$11/($T$9/60*2*PI())*ABS(H88)*$T$12 -> 0.000106506577 | J88: 3.396912074e-05 | K88: =PLOTS!$E$11/($T$9/60*2*PI())*ABS(J88)*$T$12 -> 0.0007223536923 | L88: 3.327821846e-05 | M88: =PLOTS!$E$11/($T$9/60*2*PI())*ABS(L88)*$T$12 -> 0.0007076616485 | N88: -0.0001819598937 | O88: =PLOTS!$E$11/($T$9/60*2*PI())*ABS(N88)*$T$12 -> 0.003869378959 | P88: -0.0001826538524 | Q88: =PLOTS!$E$11/($T$9/60*2*PI())*ABS(P88)*$T$12 -> 0.003884135999
A89: 68.6 | B89: -6.229026364e-05 | C89: =PLOTS!$E$11/($T$9/60*2*PI())*ABS(B89)*$T$12 -> 0.001324603079 | D89: -6.291370588e-05 | E89: =PLOTS!$E$11/($T$9/60*2*PI())*ABS(D89)*$T$12 -> 0.001337860585 | F89: -5.751557663e-06 | G89: =PLOTS!$E$11/($T$9/60*2*PI())*ABS(F89)*$T$12 -> 0.0001223069312 | H89: -6.909430711e-06 | I89: =PLOTS!$E$11/($T$9/60*2*PI())*ABS(H89)*$T$12 -> 0.0001469291132 | J89: 3.163330187e-05 | K89: =PLOTS!$E$11/($T$9/60*2*PI())*ABS(J89)*$T$12 -> 0.0006726824807 | L89: 3.09397788e-05 | M89: =PLOTS!$E$11/($T$9/60*2*PI())*ABS(L89)*$T$12 -> 0.0006579347057 | N89: -0.0001832702013 | O89: =PLOTS!$E$11/($T$9/60*2*PI())*ABS(N89)*$T$12 -> 0.003897242663 | P89: -0.0001839705183 | Q89: =PLOTS!$E$11/($T$9/60*2*PI())*ABS(P89)*$T$12 -> 0.003912134911
A90: 68.7 | B90: -6.437084111e-05 | C90: =PLOTS!$E$11/($T$9/60*2*PI())*ABS(B90)*$T$12 -> 0.00136884658 | D90: -6.499787076e-05 | E90: =PLOTS!$E$11/($T$9/60*2*PI())*ABS(D90)*$T$12 -> 0.001382180372 | F90: -7.635625751e-06 | G90: =PLOTS!$E$11/($T$9/60*2*PI())*ABS(F90)*$T$12 -> 0.000162371658 | H90: -8.790073089e-06 | I90: =PLOTS!$E$11/($T$9/60*2*PI())*ABS(H90)*$T$12 -> 0.0001869209922 | J90: 2.932021164e-05 | K90: =PLOTS!$E$11/($T$9/60*2*PI())*ABS(J90)*$T$12 -> 0.0006234945939 | L90: 2.862408705e-05 | M90: =PLOTS!$E$11/($T$9/60*2*PI())*ABS(L90)*$T$12 -> 0.0006086914974 | N90: -0.0001845630304 | O90: =PLOTS!$E$11/($T$9/60*2*PI())*ABS(N90)*$T$12 -> 0.003924734688 | P90: -0.000185269664 | Q90: =PLOTS!$E$11/($T$9/60*2*PI())*ABS(P90)*$T$12 -> 0.003939761259
A91: 68.8 | B91: -6.642984812e-05 | C91: =PLOTS!$E$11/($T$9/60*2*PI())*ABS(B91)*$T$12 -> 0.001412631385 | D91: -6.70604404e-05 | E91: =PLOTS!$E$11/($T$9/60*2*PI())*ABS(D91)*$T$12 -> 0.001426040936 | F91: -9.499580666e-06 | G91: =PLOTS!$E$11/($T$9/60*2*PI())*ABS(F91)*$T$12 -> 0.0002020086779 | H91: -1.065061781e-05 | I91: =PLOTS!$E$11/($T$9/60*2*PI())*ABS(H91)*$T$12 -> 0.0002264854943 | J91: 2.702967905e-05 | K91: =PLOTS!$E$11/($T$9/60*2*PI())*ABS(J91)*$T$12 -> 0.0005747863953 | L91: 2.633097206e-05 | M91: =PLOTS!$E$11/($T$9/60*2*PI())*ABS(L91)*$T$12 -> 0.0005599283842 | N91: -0.0001858385181 | O91: =PLOTS!$E$11/($T$9/60*2*PI())*ABS(N91)*$T$12 -> 0.003951857947 | P91: -0.000186551427 | Q91: =PLOTS!$E$11/($T$9/60*2*PI())*ABS(P91)*$T$12 -> 0.00396701796
A92: 68.9 | B92: -6.846744834e-05 | C92: =PLOTS!$E$11/($T$9/60*2*PI())*ABS(B92)*$T$12 -> 0.001455960974 | D92: -6.910157866e-05 | E92: =PLOTS!$E$11/($T$9/60*2*PI())*ABS(D92)*$T$12 -> 0.001469445761 | F92: -1.134357546e-05 | G92: =PLOTS!$E$11/($T$9/60*2*PI())*ABS(F92)*$T$12 -> 0.0002412212456 | H92: -1.249121783e-05 | I92: =PLOTS!$E$11/($T$9/60*2*PI())*ABS(H92)*$T$12 -> 0.0002656258722 | J92: 2.476153451e-05 | K92: =PLOTS!$E$11/($T$9/60*2*PI())*ABS(J92)*$T$12 -> 0.000526554279 | L92: 2.406026411e-05 | M92: =PLOTS!$E$11/($T$9/60*2*PI())*ABS(L92)*$T$12 -> 0.000511641757 | N92: -0.0001870968002 | O92: =PLOTS!$E$11/($T$9/60*2*PI())*ABS(N92)*$T$12 -> 0.003978615328 | P92: -0.0001878159432 | Q92: =PLOTS!$E$11/($T$9/60*2*PI())*ABS(P92)*$T$12 -> 0.003993907911
A93: 69 | B93: -7.048380409e-05 | C93: =PLOTS!$E$11/($T$9/60*2*PI())*ABS(B93)*$T$12 -> 0.001498838799 | D93: -7.112144801e-05 | E93: =PLOTS!$E$11/($T$9/60*2*PI())*ABS(D93)*$T$12 -> 0.001512398303 | F93: -1.31677619e-05 | G93: =PLOTS!$E$11/($T$9/60*2*PI())*ABS(F93)*$T$12 -> 0.0002800125886 | H93: -1.431202483e-05 | I93: =PLOTS!$E$11/($T$9/60*2*PI())*ABS(H93)*$T$12 -> 0.0003043453512 | J93: 2.251560987e-05 | K93: =PLOTS!$E$11/($T$9/60*2*PI())*ABS(J93)*$T$12 -> 0.0004787946691 | L93: 2.181179491e-05 | M93: =PLOTS!$E$11/($T$9/60*2*PI())*ABS(L93)*$T$12 -> 0.000463828037 | N93: -0.0001883380114 | O93: =PLOTS!$E$11/($T$9/60*2*PI())*ABS(N93)*$T$12 -> 0.004005009696 | P93: -0.0001890633478 | Q93: =PLOTS!$E$11/($T$9/60*2*PI())*ABS(P93)*$T$12 -> 0.004020433982
A94: 69.1 | B94: -7.247907629e-05 | C94: =PLOTS!$E$11/($T$9/60*2*PI())*ABS(B94)*$T$12 -> 0.001541268282 | D94: -7.312020956e-05 | E94: =PLOTS!$E$11/($T$9/60*2*PI())*ABS(D94)*$T$12 -> 0.001554901988 | F94: -1.497229048e-05 | G94: =PLOTS!$E$11/($T$9/60*2*PI())*ABS(F94)*$T$12 -> 0.0003183859069 | H94: -1.61131892e-05 | I94: =PLOTS!$E$11/($T$9/60*2*PI())*ABS(H94)*$T$12 -> 0.0003426471295 | J94: 2.029173839e-05 | K94: =PLOTS!$E$11/($T$9/60*2*PI())*ABS(J94)*$T$12 -> 0.0004315040198 | L94: 1.958539759e-05 | M94: =PLOTS!$E$11/($T$9/60*2*PI())*ABS(L94)*$T$12 -> 0.0004164836756 | N94: -0.0001895622852 | O94: =PLOTS!$E$11/($T$9/60*2*PI())*ABS(N94)*$T$12 -> 0.004031043891 | P94: -0.0001902937745 | Q94: =PLOTS!$E$11/($T$9/60*2*PI())*ABS(P94)*$T$12 -> 0.004046599017
A95: 69.2 | B95: -7.445342453e-05 | C95: =PLOTS!$E$11/($T$9/60*2*PI())*ABS(B95)*$T$12 -> 0.001583252817 | D95: -7.509802306e-05 | E95: =PLOTS!$E$11/($T$9/60*2*PI())*ABS(D95)*$T$12 -> 0.001596960212 | F95: -1.675731043e-05 | G95: =PLOTS!$E$11/($T$9/60*2*PI())*ABS(F95)*$T$12 -> 0.000356344374 | H95: -1.789486008e-05 | I95: =PLOTS!$E$11/($T$9/60*2*PI())*ABS(H95)*$T$12 -> 0.0003805343785 | J95: 1.808975472e-05 | K95: =PLOTS!$E$11/($T$9/60*2*PI())*ABS(J95)*$T$12 -> 0.000384678815 | L95: 1.738090665e-05 | M95: =PLOTS!$E$11/($T$9/60*2*PI())*ABS(L95)*$T$12 -> 0.0003696051538 | N95: -0.000190769754 | O95: =PLOTS!$E$11/($T$9/60*2*PI())*ABS(N95)*$T$12 -> 0.004056720728 | P95: -0.000191507356 | Q95: =PLOTS!$E$11/($T$9/60*2*PI())*ABS(P95)*$T$12 -> 0.00407240584
A96: 69.3 | B96: -7.640700705e-05 | C96: =PLOTS!$E$11/($T$9/60*2*PI())*ABS(B96)*$T$12 -> 0.001624795769 | D96: -7.705504694e-05 | E96: =PLOTS!$E$11/($T$9/60*2*PI())*ABS(D96)*$T$12 -> 0.001638576344 | F96: -1.852296973e-05 | G96: =PLOTS!$E$11/($T$9/60*2*PI())*ABS(F96)*$T$12 -> 0.0003938911366 | H96: -1.965718535e-05 | I96: =PLOTS!$E$11/($T$9/60*2*PI())*ABS(H96)*$T$12 -> 0.0004180102431 | J96: 1.590949489e-05 | K96: =PLOTS!$E$11/($T$9/60*2*PI())*ABS(J96)*$T$12 -> 0.000338315568 | L96: 1.5198158e-05 | M96: =PLOTS!$E$11/($T$9/60*2*PI())*ABS(L96)*$T$12 -> 0.0003231889819 | N96: -0.0001919605492 | O96: =PLOTS!$E$11/($T$9/60*2*PI())*ABS(N96)*$T$12 -> 0.004082042999 | P96: -0.0001927042239 | Q96: =PLOTS!$E$11/($T$9/60*2*PI())*ABS(P96)*$T$12 -> 0.004097857248
A97: 69.4 | B97: -7.833998078e-05 | C97: =PLOTS!$E$11/($T$9/60*2*PI())*ABS(B97)*$T$12 -> 0.001665900475 | D97: -7.89914383e-05 | E97: =PLOTS!$E$11/($T$9/60*2*PI())*ABS(D97)*$T$12 -> 0.001679753726 | F97: -2.026941512e-05 | G97: =PLOTS!$E$11/($T$9/60*2*PI())*ABS(F97)*$T$12 -> 0.0004310293153 | H97: -2.140031167e-05 | I97: =PLOTS!$E$11/($T$9/60*2*PI())*ABS(H97)*$T$12 -> 0.0004550778418 | J97: 1.375079631e-05 | K97: =PLOTS!$E$11/($T$9/60*2*PI())*ABS(J97)*$T$12 -> 0.0002924108212 | L97: 1.30369889e-05 | M97: =PLOTS!$E$11/($T$9/60*2*PI())*ABS(L97)*$T$12 -> 0.0002772316995 | N97: -0.0001931348009 | O97: =PLOTS!$E$11/($T$9/60*2*PI())*ABS(N97)*$T$12 -> 0.004107013472 | P97: -0.0001938845086 | Q97: =PLOTS!$E$11/($T$9/60*2*PI())*ABS(P97)*$T$12 -> 0.004122956016
A98: 69.5 | B98: -8.025250133e-05 | C98: =PLOTS!$E$11/($T$9/60*2*PI())*ABS(B98)*$T$12 -> 0.001706570244 | D98: -8.090735289e-05 | E98: =PLOTS!$E$11/($T$9/60*2*PI())*ABS(D98)*$T$12 -> 0.001720495669 | F98: -2.199679212e-05 | G98: =PLOTS!$E$11/($T$9/60*2*PI())*ABS(F98)*$T$12 -> 0.0004677620044 | H98: -2.312438447e-05 | I98: =PLOTS!$E$11/($T$9/60*2*PI())*ABS(H98)*$T$12 -> 0.000491740267 | J98: 1.161349774e-05 | K98: =PLOTS!$E$11/($T$9/60*2*PI())*ABS(J98)*$T$12 -> 0.0002469611457 | L98: 1.089723799e-05 | M98: =PLOTS!$E$11/($T$9/60*2*PI())*ABS(L98)*$T$12 -> 0.0002317298749 | N98: -0.0001942926382 | O98: =PLOTS!$E$11/($T$9/60*2*PI())*ABS(N98)*$T$12 -> 0.004131634894 | P98: -0.0001950483396 | Q98: =PLOTS!$E$11/($T$9/60*2*PI())*ABS(P98)*$T$12 -> 0.004147704894
A99: 69.6 | B99: -8.2144723e-05 | C99: =PLOTS!$E$11/($T$9/60*2*PI())*ABS(B99)*$T$12 -> 0.001746808356 | D99: -8.280294522e-05 | E99: =PLOTS!$E$11/($T$9/60*2*PI())*ABS(D99)*$T$12 -> 0.001760805458 | F99: -2.370524502e-05 | G99: =PLOTS!$E$11/($T$9/60*2*PI())*ABS(F99)*$T$12 -> 0.0005040922724 | H99: -2.482954794e-05 | I99: =PLOTS!$E$11/($T$9/60*2*PI())*ABS(H99)*$T$12 -> 0.0005280005853 | J99: 9.497439288e-06 | K99: =PLOTS!$E$11/($T$9/60*2*PI())*ABS(J99)*$T$12 -> 0.0002019631415 | L99: 8.778745238e-06 | M99: =PLOTS!$E$11/($T$9/60*2*PI())*ABS(L99)*$T$12 -> 0.0001866801053 | N99: -0.0001954341891 | O99: =PLOTS!$E$11/($T$9/60*2*PI())*ABS(N99)*$T$12 -> 0.004155909986 | P99: -0.0001961958452 | Q99: =PLOTS!$E$11/($T$9/60*2*PI())*ABS(P99)*$T$12 -> 0.00417210661
A100: 69.7 | B100: -8.401679882e-05 | C100: =PLOTS!$E$11/($T$9/60*2*PI())*ABS(B100)*$T$12 -> 0.001786618067 | D100: -8.467836845e-05 | E100: =PLOTS!$E$11/($T$9/60*2*PI())*ABS(D100)*$T$12 -> 0.001800686352 | F100: -2.539491692e-05 | G100: =PLOTS!$E$11/($T$9/60*2*PI())*ABS(F100)*$T$12 -> 0.0005400231623 | H100: -2.65159451e-05 | I100: =PLOTS!$E$11/($T$9/60*2*PI())*ABS(H100)*$T$12 -> 0.0005638618379 | J100: 7.402462375e-06 | K100: =PLOTS!$E$11/($T$9/60*2*PI())*ABS(J100)*$T$12 -> 0.0001574134364 | L100: 6.681351938e-06 | M100: =PLOTS!$E$11/($T$9/60*2*PI())*ABS(L100)*$T$12 -> 0.0001420790158 | N100: -0.0001965595805 | O100: =PLOTS!$E$11/($T$9/60*2*PI())*ABS(N100)*$T$12 -> 0.004179841446 | P100: -0.0001973271524 | Q100: =PLOTS!$E$11/($T$9/60*2*PI())*ABS(P100)*$T$12 -> 0.004196163869
A101: 69.8 | B101: -8.586888053e-05 | C101: =PLOTS!$E$11/($T$9/60*2*PI())*ABS(B101)*$T$12 -> 0.001826002604 | D101: -8.653377451e-05 | E101: =PLOTS!$E$11/($T$9/60*2*PI())*ABS(D101)*$T$12 -> 0.001840141581 | F101: -2.706594973e-05 | G101: =PLOTS!$E$11/($T$9/60*2*PI())*ABS(F101)*$T$12 -> 0.0005755576918 | H101: -2.818371777e-05 | I101: =PLOTS!$E$11/($T$9/60*2*PI())*ABS(H101)*$T$12 -> 0.0005993270404 | J101: 5.328409755e-06 | K101: =PLOTS!$E$11/($T$9/60*2*PI())*ABS(J101)*$T$12 -> 0.0001133086867 | L101: 4.604900715e-06 | M101: =PLOTS!$E$11/($T$9/60*2*PI())*ABS(L101)*$T$12 -> 9.792325978e-05 | N101: -0.0001976689384 | O101: =PLOTS!$E$11/($T$9/60*2*PI())*ABS(N101)*$T$12 -> 0.004203431952 | P101: -0.0001984423874 | Q101: =PLOTS!$E$11/($T$9/60*2*PI())*ABS(P101)*$T$12 -> 0.004219879353
A102: 69.9 | B102: -8.770111863e-05 | C102: =PLOTS!$E$11/($T$9/60*2*PI())*ABS(B102)*$T$12 -> 0.001864965165 | D102: -8.836931405e-05 | E102: =PLOTS!$E$11/($T$9/60*2*PI())*ABS(D102)*$T$12 -> 0.001879174347 | F102: -2.871848418e-05 | G102: =PLOTS!$E$11/($T$9/60*2*PI())*ABS(F102)*$T$12 -> 0.0006106988534 | H102: -2.983300659e-05 | I102: =PLOTS!$E$11/($T$9/60*2*PI())*ABS(H102)*$T$12 -> 0.0006343991835 | J102: 3.275125484e-06 | K102: =PLOTS!$E$11/($T$9/60*2*PI())*ABS(J102)*$T$12 -> 6.964557618e-05 | L102: 2.549235496e-06 | M102: =PLOTS!$E$11/($T$9/60*2*PI())*ABS(L102)*$T$12 -> 5.420951832e-05 | N102: -0.0001987623875 | O102: =PLOTS!$E$11/($T$9/60*2*PI())*ABS(N102)*$T$12 -> 0.004226684158 | P102: -0.0001995416754 | Q102: =PLOTS!$E$11/($T$9/60*2*PI())*ABS(P102)*$T$12 -> 0.004243255723
A103: 70 | B103: -8.951366234e-05 | C103: =PLOTS!$E$11/($T$9/60*2*PI())*ABS(B103)*$T$12 -> 0.001903508925 | D103: -9.018513645e-05 | E103: =PLOTS!$E$11/($T$9/60*2*PI())*ABS(D103)*$T$12 -> 0.001917787829 | F103: -3.035265982e-05 | G103: =PLOTS!$E$11/($T$9/60*2*PI())*ABS(F103)*$T$12 -> 0.0006454496147 | H103: -3.146395102e-05 | I103: =PLOTS!$E$11/($T$9/60*2*PI())*ABS(H103)*$T$12 -> 0.0006690812331 | J103: 1.242454908e-06 | K103: =PLOTS!$E$11/($T$9/60*2*PI())*ABS(J103)*$T$12 -> 2.642081605e-05 | L103: 5.142014985e-07 | M103: =PLOTS!$E$11/($T$9/60*2*PI())*ABS(L103)*$T$12 -> 1.093450001e-05 | N103: -0.0001998400515 | O103: =PLOTS!$E$11/($T$9/60*2*PI())*ABS(N103)*$T$12 -> 0.004249600694 | P103: -0.0002006251402 | Q103: =PLOTS!$E$11/($T$9/60*2*PI())*ABS(P103)*$T$12 -> 0.004266295614
A104: 70.1 | B104: -9.130665966e-05 | C104: =PLOTS!$E$11/($T$9/60*2*PI())*ABS(B104)*$T$12 -> 0.001941637031 | D104: -9.198138988e-05 | E104: =PLOTS!$E$11/($T$9/60*2*PI())*ABS(D104)*$T$12 -> 0.001955985176 | F104: -3.196861505e-05 | G104: =PLOTS!$E$11/($T$9/60*2*PI())*ABS(F104)*$T$12 -> 0.0006798129189 | H104: -3.307668937e-05 | I104: =PLOTS!$E$11/($T$9/60*2*PI())*ABS(H104)*$T$12 -> 0.0007033761304 | J104: -7.69755346e-07 | K104: =PLOTS!$E$11/($T$9/60*2*PI())*ABS(J104)*$T$12 -> 1.636885513e-05 | L104: -1.500354776e-06 | M104: =PLOTS!$E$11/($T$9/60*2*PI())*ABS(L104)*$T$12 -> 3.190505932e-05 | N104: -0.0002009020532 | O104: =PLOTS!$E$11/($T$9/60*2*PI())*ABS(N104)*$T$12 -> 0.004272184171 | P104: -0.000201692905 | Q104: =PLOTS!$E$11/($T$9/60*2*PI())*ABS(P104)*$T$12 -> 0.004289001643
A105: 70.2 | B105: -9.308025736e-05 | C105: =PLOTS!$E$11/($T$9/60*2*PI())*ABS(B105)*$T$12 -> 0.001979352604 | D105: -9.375822127e-05 | E105: =PLOTS!$E$11/($T$9/60*2*PI())*ABS(D105)*$T$12 -> 0.001993769513 | F105: -3.356648713e-05 | G105: =PLOTS!$E$11/($T$9/60*2*PI())*ABS(F105)*$T$12 -> 0.0007137916846 | H105: -3.467135882e-05 | I105: =PLOTS!$E$11/($T$9/60*2*PI())*ABS(H105)*$T$12 -> 0.0007372867922 | J105: -2.761657384e-06 | K105: =PLOTS!$E$11/($T$9/60*2*PI())*ABS(J105)*$T$12 -> 5.87266719e-05 | L105: -3.494585558e-06 | M105: =PLOTS!$E$11/($T$9/60*2*PI())*ABS(L105)*$T$12 -> 7.431239685e-05 | N105: -0.0002019485143 | O105: =PLOTS!$E$11/($T$9/60*2*PI())*ABS(N105)*$T$12 -> 0.004294437177 | P105: -0.0002027450917 | Q105: =PLOTS!$E$11/($T$9/60*2*PI())*ABS(P105)*$T$12 -> 0.004311376402
A106: 70.3 | B106: -9.4834601e-05 | C106: =PLOTS!$E$11/($T$9/60*2*PI())*ABS(B106)*$T$12 -> 0.002016658739 | D106: -9.551577632e-05 | E106: =PLOTS!$E$11/($T$9/60*2*PI())*ABS(D106)*$T$12 -> 0.002031143939 | F106: -3.514641217e-05 | G106: =PLOTS!$E$11/($T$9/60*2*PI())*ABS(F106)*$T$12 -> 0.0007473888064 | H106: -3.62480954e-05 | I106: =PLOTS!$E$11/($T$9/60*2*PI())*ABS(H106)*$T$12 -> 0.0007708161112 | J106: -4.733402056e-06 | K106: =PLOTS!$E$11/($T$9/60*2*PI())*ABS(J106)*$T$12 -> 0.0001006558421 | L106: -5.468641823e-06 | M106: =PLOTS!$E$11/($T$9/60*2*PI())*ABS(L106)*$T$12 -> 0.0001162907231 | N106: -0.0002029795555 | O106: =PLOTS!$E$11/($T$9/60*2*PI())*ABS(N106)*$T$12 -> 0.004316362278 | P106: -0.0002037818211 | Q106: =PLOTS!$E$11/($T$9/60*2*PI())*ABS(P106)*$T$12 -> 0.004333422464
A107: 70.4 | B107: -9.656983492e-05 | C107: =PLOTS!$E$11/($T$9/60*2*PI())*ABS(B107)*$T$12 -> 0.002053558506 | D107: -9.725419955e-05 | E107: =PLOTS!$E$11/($T$9/60*2*PI())*ABS(D107)*$T$12 -> 0.002068111526 | F107: -3.670852516e-05 | G107: =PLOTS!$E$11/($T$9/60*2*PI())*ABS(F107)*$T$12 -> 0.0007806071548 | H107: -3.7807034e-05 | I107: =PLOTS!$E$11/($T$9/60*2*PI())*ABS(H107)*$T$12 -> 0.0008039669563 | J107: -6.685138968e-06 | K107: =PLOTS!$E$11/($T$9/60*2*PI())*ABS(J107)*$T$12 -> 0.000142159547 | L107: -7.422673298e-06 | M107: =PLOTS!$E$11/($T$9/60*2*PI())*ABS(L107)*$T$12 -> 0.0001578432219 | N107: -0.0002039952964 | O107: =PLOTS!$E$11/($T$9/60*2*PI())*ABS(N107)*$T$12 -> 0.004337962018 | P107: -0.0002048032133 | Q107: =PLOTS!$E$11/($T$9/60*2*PI())*ABS(P107)*$T$12 -> 0.004355142379
A108: 70.5 | B108: -9.828610228e-05 | C108: =PLOTS!$E$11/($T$9/60*2*PI())*ABS(B108)*$T$12 -> 0.002090054948 | D108: -9.897363426e-05 | E108: =PLOTS!$E$11/($T$9/60*2*PI())*ABS(D108)*$T$12 -> 0.002104675323 | F108: -3.825295999e-05 | G108: =PLOTS!$E$11/($T$9/60*2*PI())*ABS(F108)*$T$12 -> 0.0008134495767 | H108: -3.934830844e-05 | I108: =PLOTS!$E$11/($T$9/60*2*PI())*ABS(H108)*$T$12 -> 0.0008367421725 | J108: -8.617016494e-06 | K108: =PLOTS!$E$11/($T$9/60*2*PI())*ABS(J108)*$T$12 -> 0.000183240942 | L108: -9.356828482e-06 | M108: =PLOTS!$E$11/($T$9/60*2*PI())*ABS(L108)*$T$12 -> 0.0001989730513 | N108: -0.0002049958557 | O108: =PLOTS!$E$11/($T$9/60*2*PI())*ABS(N108)*$T$12 -> 0.004359238922 | P108: -0.0002058093871 | Q108: =PLOTS!$E$11/($T$9/60*2*PI())*ABS(P108)*$T$12 -> 0.004376538675
A109: 70.6 | B109: -9.998354505e-05 | C109: =PLOTS!$E$11/($T$9/60*2*PI())*ABS(B109)*$T$12 -> 0.002126151086 | D109: -0.0001006742226 | E109: =PLOTS!$E$11/($T$9/60*2*PI())*ABS(D109)*$T$12 -> 0.00214083835 | F109: -3.977984941e-05 | G109: =PLOTS!$E$11/($T$9/60*2*PI())*ABS(F109)*$T$12 -> 0.0008459188957 | H109: -4.087205138e-05 | I109: =PLOTS!$E$11/($T$9/60*2*PI())*ABS(H109)*$T$12 -> 0.0008691445815 | J109: -1.052918179e-05 | K109: =PLOTS!$E$11/($T$9/60*2*PI())*ABS(J109)*$T$12 -> 0.0002239031561 | L109: -1.127125465e-05 | M109: =PLOTS!$E$11/($T$9/60*2*PI())*ABS(L109)*$T$12 -> 0.0002396833428 | N109: -0.0002059813511 | O109: =PLOTS!$E$11/($T$9/60*2*PI())*ABS(N109)*$T$12 -> 0.004380195492 | P109: -0.0002068004605 | Q109: =PLOTS!$E$11/($T$9/60*2*PI())*ABS(P109)*$T$12 -> 0.004397613861
A110: 70.7 | B110: -0.0001016623041 | C110: =PLOTS!$E$11/($T$9/60*2*PI())*ABS(B110)*$T$12 -> 0.002161849913 | D110: -0.0001023561055 | E110: =PLOTS!$E$11/($T$9/60*2*PI())*ABS(D110)*$T$12 -> 0.002176603607 | F110: -4.128932512e-05 | G110: =PLOTS!$E$11/($T$9/60*2*PI())*ABS(F110)*$T$12 -> 0.0008780179117 | H110: -4.237839444e-05 | I110: =PLOTS!$E$11/($T$9/60*2*PI())*ABS(H110)*$T$12 -> 0.0009011769818 | J110: -1.24217808e-05 | K110: =PLOTS!$E$11/($T$9/60*2*PI())*ABS(J110)*$T$12 -> 0.0002641492929 | L110: -1.316609786e-05 | M110: =PLOTS!$E$11/($T$9/60*2*PI())*ABS(L110)*$T$12 -> 0.0002799772027 | N110: -0.0002069518993 | O110: =PLOTS!$E$11/($T$9/60*2*PI())*ABS(N110)*$T$12 -> 0.004400834209 | P110: -0.0002077765505 | Q110: =PLOTS!$E$11/($T$9/60*2*PI())*ABS(P110)*$T$12 -> 0.004418370424
A111: 70.8 | B111: -0.0001033225189 | C111: =PLOTS!$E$11/($T$9/60*2*PI())*ABS(B111)*$T$12 -> 0.002197154399 | D111: -0.0001040194228 | E111: =PLOTS!$E$11/($T$9/60*2*PI())*ABS(D111)*$T$12 -> 0.002211974066 | F111: -4.278151771e-05 | G111: =PLOTS!$E$11/($T$9/60*2*PI())*ABS(F111)*$T$12 -> 0.000909749402 | H111: -4.386746813e-05 | I111: =PLOTS!$E$11/($T$9/60*2*PI())*ABS(H111)*$T$12 -> 0.0009328421486 | J111: -1.429495827e-05 | K111: =PLOTS!$E$11/($T$9/60*2*PI())*ABS(J111)*$T$12 -> 0.0003039824305 | L111: -1.504150299e-05 | M111: =PLOTS!$E$11/($T$9/60*2*PI())*ABS(L111)*$T$12 -> 0.0003198577116 | N111: -0.0002079076161 | O111: =PLOTS!$E$11/($T$9/60*2*PI())*ABS(N111)*$T$12 -> 0.004421157536 | P111: -0.000208737773 | Q111: =PLOTS!$E$11/($T$9/60*2*PI())*ABS(P111)*$T$12 -> 0.004438810831
A112: 70.9 | B112: -0.0001049643282 | C112: =PLOTS!$E$11/($T$9/60*2*PI())*ABS(B112)*$T$12 -> 0.002232067489 | D112: -0.0001056643131 | E112: =PLOTS!$E$11/($T$9/60*2*PI())*ABS(D112)*$T$12 -> 0.002246952675 | F112: -4.42565567e-05 | G112: =PLOTS!$E$11/($T$9/60*2*PI())*ABS(F112)*$T$12 -> 0.000941116121 | H112: -4.533940188e-05 | I112: =PLOTS!$E$11/($T$9/60*2*PI())*ABS(H112)*$T$12 -> 0.0009641428346 | J112: -1.614885776e-05 | K112: =PLOTS!$E$11/($T$9/60*2*PI())*ABS(J112)*$T$12 -> 0.0003434056218 | L112: -1.689761372e-05 | M112: =PLOTS!$E$11/($T$9/60*2*PI())*ABS(L112)*$T$12 -> 0.0003593279247 | N112: -0.0002088486162 | O112: =PLOTS!$E$11/($T$9/60*2*PI())*ABS(N112)*$T$12 -> 0.004441167912 | P112: -0.0002096842431 | Q112: =PLOTS!$E$11/($T$9/60*2*PI())*ABS(P112)*$T$12 -> 0.004458937526
A113: 71 | B113: -0.0001065878692 | C113: =PLOTS!$E$11/($T$9/60*2*PI())*ABS(B113)*$T$12 -> 0.002266592104 | D113: -0.0001072909139 | E113: =PLOTS!$E$11/($T$9/60*2*PI())*ABS(D113)*$T$12 -> 0.002281542358 | F113: -4.571457056e-05 | G113: =PLOTS!$E$11/($T$9/60*2*PI())*ABS(F113)*$T$12 -> 0.0009721208002 | H113: -4.679432408e-05 | I113: =PLOTS!$E$11/($T$9/60*2*PI())*ABS(H113)*$T$12 -> 0.0009950817698 | J113: -1.798362166e-05 | K113: =PLOTS!$E$11/($T$9/60*2*PI())*ABS(J113)*$T$12 -> 0.0003824218945 | L113: -1.873457254e-05 | M113: =PLOTS!$E$11/($T$9/60*2*PI())*ABS(L113)*$T$12 -> 0.0003983908724 | N113: -0.0002097750134 | O113: =PLOTS!$E$11/($T$9/60*2*PI())*ABS(N113)*$T$12 -> 0.004460867758 | P113: -0.0002106160748 | Q113: =PLOTS!$E$11/($T$9/60*2*PI())*ABS(P113)*$T$12 -> 0.004478752937
A114: 71.1 | B114: -0.0001081932781 | C114: =PLOTS!$E$11/($T$9/60*2*PI())*ABS(B114)*$T$12 -> 0.002300731142 | D114: -0.0001088993617 | E114: =PLOTS!$E$11/($T$9/60*2*PI())*ABS(D114)*$T$12 -> 0.002315746016 | F114: -4.715568669e-05 | G114: =PLOTS!$E$11/($T$9/60*2*PI())*ABS(F114)*$T$12 -> 0.001002766149 | H114: -4.823236206e-05 | I114: =PLOTS!$E$11/($T$9/60*2*PI())*ABS(H114)*$T$12 -> 0.001025661662 | J114: -1.97993912e-05 | K114: =PLOTS!$E$11/($T$9/60*2*PI())*ABS(J114)*$T$12 -> 0.0004210342519 | L114: -2.05525208e-05 | M114: =PLOTS!$E$11/($T$9/60*2*PI())*ABS(L114)*$T$12 -> 0.0004370495604 | N114: -0.0002106869206 | O114: =PLOTS!$E$11/($T$9/60*2*PI())*ABS(N114)*$T$12 -> 0.004480259475 | P114: -0.0002115333812 | Q114: =PLOTS!$E$11/($T$9/60*2*PI())*ABS(P114)*$T$12 -> 0.004498259468
A115: 71.2 | B115: -0.0001097806902 | C115: =PLOTS!$E$11/($T$9/60*2*PI())*ABS(B115)*$T$12 -> 0.002334487475 | D115: -0.0001104897917 | E115: =PLOTS!$E$11/($T$9/60*2*PI())*ABS(D115)*$T$12 -> 0.002349566525 | F115: -4.858003145e-05 | G115: =PLOTS!$E$11/($T$9/60*2*PI())*ABS(F115)*$T$12 -> 0.001033054855 | H115: -4.96536421e-05 | I115: =PLOTS!$E$11/($T$9/60*2*PI())*ABS(H115)*$T$12 -> 0.001055885196 | J115: -2.159630644e-05 | K115: =PLOTS!$E$11/($T$9/60*2*PI())*ABS(J115)*$T$12 -> 0.0004592456724 | L115: -2.235159868e-05 | M115: =PLOTS!$E$11/($T$9/60*2*PI())*ABS(L115)*$T$12 -> 0.0004753069695 | N115: -0.0002115844499 | O115: =PLOTS!$E$11/($T$9/60*2*PI())*ABS(N115)*$T$12 -> 0.004499345443 | P115: -0.0002124362747 | Q115: =PLOTS!$E$11/($T$9/60*2*PI())*ABS(P115)*$T$12 -> 0.004517459505
A116: 71.3 | B116: -0.0001113502393 | C116: =PLOTS!$E$11/($T$9/60*2*PI())*ABS(B116)*$T$12 -> 0.002367863953 | D116: -0.000112062338 | E116: =PLOTS!$E$11/($T$9/60*2*PI())*ABS(D116)*$T$12 -> 0.002383006739 | F116: -4.998773018e-05 | G116: =PLOTS!$E$11/($T$9/60*2*PI())*ABS(F116)*$T$12 -> 0.001062989582 | H116: -5.105828945e-05 | I116: =PLOTS!$E$11/($T$9/60*2*PI())*ABS(H116)*$T$12 -> 0.001085755036 | J116: -2.337450631e-05 | K116: =PLOTS!$E$11/($T$9/60*2*PI())*ABS(J116)*$T$12 -> 0.0004970591104 | L116: -2.413194523e-05 | M116: =PLOTS!$E$11/($T$9/60*2*PI())*ABS(L116)*$T$12 -> 0.0005131660567 | N116: -0.0002124677121 | O116: =PLOTS!$E$11/($T$9/60*2*PI())*ABS(N116)*$T$12 -> 0.004518128024 | P116: -0.0002133248663 | Q116: =PLOTS!$E$11/($T$9/60*2*PI())*ABS(P116)*$T$12 -> 0.004536355415
A117: 71.4 | B117: -0.0001129020585 | C117: =PLOTS!$E$11/($T$9/60*2*PI())*ABS(B117)*$T$12 -> 0.002400863404 | D117: -0.0001136171337 | E117: =PLOTS!$E$11/($T$9/60*2*PI())*ABS(D117)*$T$12 -> 0.002416069486 | F117: -5.137890719e-05 | G117: =PLOTS!$E$11/($T$9/60*2*PI())*ABS(F117)*$T$12 -> 0.001092572975 | H117: -5.244642834e-05 | I117: =PLOTS!$E$11/($T$9/60*2*PI())*ABS(H117)*$T$12 -> 0.001115273823 | J117: -2.51341286e-05 | K117: =PLOTS!$E$11/($T$9/60*2*PI())*ABS(J117)*$T$12 -> 0.0005344774962 | L117: -2.589369835e-05 | M117: =PLOTS!$E$11/($T$9/60*2*PI())*ABS(L117)*$T$12 -> 0.0005506297545 | N117: -0.0002133368175 | O117: =PLOTS!$E$11/($T$9/60*2*PI())*ABS(N117)*$T$12 -> 0.004536609559 | P117: -0.0002141992665 | Q117: =PLOTS!$E$11/($T$9/60*2*PI())*ABS(P117)*$T$12 -> 0.004554949544
A118: 71.5 | B118: -0.0001144362796 | C118: =PLOTS!$E$11/($T$9/60*2*PI())*ABS(B118)*$T$12 -> 0.002433488631 | D118: -0.0001151543109 | E118: =PLOTS!$E$11/($T$9/60*2*PI())*ABS(D118)*$T$12 -> 0.002448757573 | F118: -5.275368576e-05 | G118: =PLOTS!$E$11/($T$9/60*2*PI())*ABS(F118)*$T$12 -> 0.001121807655 | H118: -5.381818198e-05 | I118: =PLOTS!$E$11/($T$9/60*2*PI())*ABS(H118)*$T$12 -> 0.001144444178 | J118: -2.687531001e-05 | K118: =PLOTS!$E$11/($T$9/60*2*PI())*ABS(J118)*$T$12 -> 0.0005715037361 | L118: -2.763699484e-05 | M118: =PLOTS!$E$11/($T$9/60*2*PI())*ABS(L118)*$T$12 -> 0.0005877009717 | N118: -0.0002141918752 | O118: =PLOTS!$E$11/($T$9/60*2*PI())*ABS(N118)*$T$12 -> 0.00455479237 | P118: -0.0002150595847 | Q118: =PLOTS!$E$11/($T$9/60*2*PI())*ABS(P118)*$T$12 -> 0.004573244219
A119: 71.6 | B119: -0.0001159530333 | C119: =PLOTS!$E$11/($T$9/60*2*PI())*ABS(B119)*$T$12 -> 0.002465742413 | D119: -0.0001166740003 | E119: =PLOTS!$E$11/($T$9/60*2*PI())*ABS(D119)*$T$12 -> 0.002481073784 | F119: -5.411218819e-05 | G119: =PLOTS!$E$11/($T$9/60*2*PI())*ABS(F119)*$T$12 -> 0.001150696223 | H119: -5.51736726e-05 | I119: =PLOTS!$E$11/($T$9/60*2*PI())*ABS(H119)*$T$12 -> 0.0011732687 | J119: -2.859818608e-05 | K119: =PLOTS!$E$11/($T$9/60*2*PI())*ABS(J119)*$T$12 -> 0.000608140713 | L119: -2.936197037e-05 | M119: =PLOTS!$E$11/($T$9/60*2*PI())*ABS(L119)*$T$12 -> 0.0006243825935 | N119: -0.0002150329936 | O119: =PLOTS!$E$11/($T$9/60*2*PI())*ABS(N119)*$T$12 -> 0.00457267876 | P119: -0.0002159059294 | Q119: =PLOTS!$E$11/($T$9/60*2*PI())*ABS(P119)*$T$12 -> 0.004591241749
A120: 71.7 | B120: -0.0001174524493 | C120: =PLOTS!$E$11/($T$9/60*2*PI())*ABS(B120)*$T$12 -> 0.00249762751 | D120: -0.0001181763319 | E120: =PLOTS!$E$11/($T$9/60*2*PI())*ABS(D120)*$T$12 -> 0.00251302088 | F120: -5.545453577e-05 | G120: =PLOTS!$E$11/($T$9/60*2*PI())*ABS(F120)*$T$12 -> 0.001179241258 | H120: -5.65130214e-05 | I120: =PLOTS!$E$11/($T$9/60*2*PI())*ABS(H120)*$T$12 -> 0.001201749965 | J120: -3.030289128e-05 | K120: =PLOTS!$E$11/($T$9/60*2*PI())*ABS(J120)*$T$12 -> 0.0006443912862 | L120: -3.106875951e-05 | M120: =PLOTS!$E$11/($T$9/60*2*PI())*ABS(L120)*$T$12 -> 0.0006606774817 | N120: -0.00021586028 | O120: =PLOTS!$E$11/($T$9/60*2*PI())*ABS(N120)*$T$12 -> 0.004590271013 | P120: -0.0002167384083 | Q120: =PLOTS!$E$11/($T$9/60*2*PI())*ABS(P120)*$T$12 -> 0.004608944421
A121: 71.8 | B121: -0.0001189346563 | C121: =PLOTS!$E$11/($T$9/60*2*PI())*ABS(B121)*$T$12 -> 0.002529146657 | D121: -0.0001196614344 | E121: =PLOTS!$E$11/($T$9/60*2*PI())*ABS(D121)*$T$12 -> 0.0025446016 | F121: -5.678084881e-05 | G121: =PLOTS!$E$11/($T$9/60*2*PI())*ABS(F121)*$T$12 -> 0.001207445318 | H121: -5.783634861e-05 | I121: =PLOTS!$E$11/($T$9/60*2*PI())*ABS(H121)*$T$12 -> 0.001229890532 | J121: -3.198955899e-05 | K121: =PLOTS!$E$11/($T$9/60*2*PI())*ABS(J121)*$T$12 -> 0.000680258292 | L121: -3.275749575e-05 | M121: =PLOTS!$E$11/($T$9/60*2*PI())*ABS(L121)*$T$12 -> 0.0006965884748 | N121: -0.000216673841 | O121: =PLOTS!$E$11/($T$9/60*2*PI())*ABS(N121)*$T$12 -> 0.004607571396 | P121: -0.0002175571282 | Q121: =PLOTS!$E$11/($T$9/60*2*PI())*ABS(P121)*$T$12 -> 0.004626354507
A122: 71.9 | B122: -0.0001203997819 | C122: =PLOTS!$E$11/($T$9/60*2*PI())*ABS(B122)*$T$12 -> 0.002560302566 | D122: -0.0001211294356 | E122: =PLOTS!$E$11/($T$9/60*2*PI())*ABS(D122)*$T$12 -> 0.00257581866 | F122: -5.809124663e-05 | G122: =PLOTS!$E$11/($T$9/60*2*PI())*ABS(F122)*$T$12 -> 0.001235310941 | H122: -5.914377349e-05 | I122: =PLOTS!$E$11/($T$9/60*2*PI())*ABS(H122)*$T$12 -> 0.001257692935 | J122: -3.365832151e-05 | K122: =PLOTS!$E$11/($T$9/60*2*PI())*ABS(J122)*$T$12 -> 0.0007157445436 | L122: -3.44283115e-05 | M122: =PLOTS!$E$11/($T$9/60*2*PI())*ABS(L122)*$T$12 -> 0.0007321183884 | N122: -0.0002174737822 | O122: =PLOTS!$E$11/($T$9/60*2*PI())*ABS(N122)*$T$12 -> 0.004624582154 | P122: -0.0002183621949 | Q122: =PLOTS!$E$11/($T$9/60*2*PI())*ABS(P122)*$T$12 -> 0.004643474258
A123: 72 | B123: -0.0001218479526 | C123: =PLOTS!$E$11/($T$9/60*2*PI())*ABS(B123)*$T$12 -> 0.002591097931 | D123: -0.0001225804621 | E123: =PLOTS!$E$11/($T$9/60*2*PI())*ABS(D123)*$T$12 -> 0.002606674754 | F123: -5.938584761e-05 | G123: =PLOTS!$E$11/($T$9/60*2*PI())*ABS(F123)*$T$12 -> 0.001262840643 | H123: -6.043541433e-05 | I123: =PLOTS!$E$11/($T$9/60*2*PI())*ABS(H123)*$T$12 -> 0.00128515969 | J123: -3.530931006e-05 | K123: =PLOTS!$E$11/($T$9/60*2*PI())*ABS(J123)*$T$12 -> 0.0007508528317 | L123: -3.608133808e-05 | M123: =PLOTS!$E$11/($T$9/60*2*PI())*ABS(L123)*$T$12 -> 0.0007672700153 | N123: -0.0002182602085 | O123: =PLOTS!$E$11/($T$9/60*2*PI())*ABS(N123)*$T$12 -> 0.004641305516 | P123: -0.0002191537134 | Q123: =PLOTS!$E$11/($T$9/60*2*PI())*ABS(P123)*$T$12 -> 0.004660305908
A124: 72.1 | B124: -0.000123279294 | C124: =PLOTS!$E$11/($T$9/60*2*PI())*ABS(B124)*$T$12 -> 0.002621535419 | D124: -0.0001240146397 | E124: =PLOTS!$E$11/($T$9/60*2*PI())*ABS(D124)*$T$12 -> 0.002637172554 | F124: -6.066476914e-05 | G124: =PLOTS!$E$11/($T$9/60*2*PI())*ABS(F124)*$T$12 -> 0.001290036923 | H124: -6.171138846e-05 | I124: =PLOTS!$E$11/($T$9/60*2*PI())*ABS(H124)*$T$12 -> 0.001312293293 | J124: -3.694265481e-05 | K124: =PLOTS!$E$11/($T$9/60*2*PI())*ABS(J124)*$T$12 -> 0.000785585924 | L124: -3.771670578e-05 | M124: =PLOTS!$E$11/($T$9/60*2*PI())*ABS(L124)*$T$12 -> 0.0008020461257 | N124: -0.0002190332237 | O124: =PLOTS!$E$11/($T$9/60*2*PI())*ABS(N124)*$T$12 -> 0.004657743693 | P124: -0.0002199317879 | Q124: =PLOTS!$E$11/($T$9/60*2*PI())*ABS(P124)*$T$12 -> 0.004676851671
A125: 72.2 | B125: -0.0001246939305 | C125: =PLOTS!$E$11/($T$9/60*2*PI())*ABS(B125)*$T$12 -> 0.00265161768 | D125: -0.000125432093 | E125: =PLOTS!$E$11/($T$9/60*2*PI())*ABS(D125)*$T$12 -> 0.002667314712 | F125: -6.192812768e-05 | G125: =PLOTS!$E$11/($T$9/60*2*PI())*ABS(F125)*$T$12 -> 0.001316902255 | H125: -6.297181226e-05 | I125: =PLOTS!$E$11/($T$9/60*2*PI())*ABS(H125)*$T$12 -> 0.001339096218 | J125: -3.855848487e-05 | K125: =PLOTS!$E$11/($T$9/60*2*PI())*ABS(J125)*$T$12 -> 0.0008199465665 | L125: -3.933454381e-05 | M125: =PLOTS!$E$11/($T$9/60*2*PI())*ABS(L125)*$T$12 -> 0.0008364494677 | N125: -0.000219792931 | O125: =PLOTS!$E$11/($T$9/60*2*PI())*ABS(N125)*$T$12 -> 0.004673898875 | P125: -0.0002206965218 | Q125: =PLOTS!$E$11/($T$9/60*2*PI())*ABS(P125)*$T$12 -> 0.004693113743
A126: 72.3 | B126: -0.0001260919858 | C126: =PLOTS!$E$11/($T$9/60*2*PI())*ABS(B126)*$T$12 -> 0.002681347339 | D126: -0.0001268329456 | E126: =PLOTS!$E$11/($T$9/60*2*PI())*ABS(D126)*$T$12 -> 0.002697103856 | F126: -6.317603873e-05 | G126: =PLOTS!$E$11/($T$9/60*2*PI())*ABS(F126)*$T$12 -> 0.001343439096 | H126: -6.421680115e-05 | I126: =PLOTS!$E$11/($T$9/60*2*PI())*ABS(H126)*$T$12 -> 0.001365570919 | J126: -4.015692832e-05 | K126: =PLOTS!$E$11/($T$9/60*2*PI())*ABS(J126)*$T$12 -> 0.0008539374825 | L126: -4.093498036e-05 | M126: =PLOTS!$E$11/($T$9/60*2*PI())*ABS(L126)*$T$12 -> 0.0008704827669 | N126: -0.0002205394325 | O126: =PLOTS!$E$11/($T$9/60*2*PI())*ABS(N126)*$T$12 -> 0.004689773239 | P126: -0.0002214480174 | Q126: =PLOTS!$E$11/($T$9/60*2*PI())*ABS(P126)*$T$12 -> 0.004709094305
A127: 72.4 | B127: -0.0001274735823 | C127: =PLOTS!$E$11/($T$9/60*2*PI())*ABS(B127)*$T$12 -> 0.002710727002 | D127: -0.0001282173202 | E127: =PLOTS!$E$11/($T$9/60*2*PI())*ABS(D127)*$T$12 -> 0.002726542596 | F127: -6.440861689e-05 | G127: =PLOTS!$E$11/($T$9/60*2*PI())*ABS(F127)*$T$12 -> 0.001369649882 | H127: -6.544646966e-05 | I127: =PLOTS!$E$11/($T$9/60*2*PI())*ABS(H127)*$T$12 -> 0.001391719832 | J127: -4.173811221e-05 | K127: =PLOTS!$E$11/($T$9/60*2*PI())*ABS(J127)*$T$12 -> 0.0008875613737 | L127: -4.251814258e-05 | M127: =PLOTS!$E$11/($T$9/60*2*PI())*ABS(L127)*$T$12 -> 0.0009041487272 | N127: -0.0002212728298 | O127: =PLOTS!$E$11/($T$9/60*2*PI())*ABS(N127)*$T$12 -> 0.004705368939 | P127: -0.0002221863764 | Q127: =PLOTS!$E$11/($T$9/60*2*PI())*ABS(P127)*$T$12 -> 0.004724795517
A128: 72.5 | B128: -0.0001288388415 | C128: =PLOTS!$E$11/($T$9/60*2*PI())*ABS(B128)*$T$12 -> 0.002739759254 | D128: -0.0001295853384 | E128: =PLOTS!$E$11/($T$9/60*2*PI())*ABS(D128)*$T$12 -> 0.002755633517 | F128: -6.56259758e-05 | G128: =PLOTS!$E$11/($T$9/60*2*PI())*ABS(F128)*$T$12 -> 0.001395537032 | H128: -6.666093137e-05 | I128: =PLOTS!$E$11/($T$9/60*2*PI())*ABS(H128)*$T$12 -> 0.001417545372 | J128: -4.330216256e-05 | K128: =PLOTS!$E$11/($T$9/60*2*PI())*ABS(J128)*$T$12 -> 0.00092082092 | L128: -4.408415659e-05 | M128: =PLOTS!$E$11/($T$9/60*2*PI())*ABS(L128)*$T$12 -> 0.0009374500308 | N128: -0.0002219932233 | O128: =PLOTS!$E$11/($T$9/60*2*PI())*ABS(N128)*$T$12 -> 0.004720688115 | P128: -0.0002229116996 | Q128: =PLOTS!$E$11/($T$9/60*2*PI())*ABS(P128)*$T$12 -> 0.004740219522
A129: 72.6 | B129: -0.0001301878841 | C129: =PLOTS!$E$11/($T$9/60*2*PI())*ABS(B129)*$T$12 -> 0.002768446657 | D129: -0.000130937121 | E129: =PLOTS!$E$11/($T$9/60*2*PI())*ABS(D129)*$T$12 -> 0.002784379187 | F129: -6.682822821e-05 | G129: =PLOTS!$E$11/($T$9/60*2*PI())*ABS(F129)*$T$12 -> 0.001421102941 | H129: -6.786029894e-05 | I129: =PLOTS!$E$11/($T$9/60*2*PI())*ABS(H129)*$T$12 -> 0.001443049936 | J129: -4.484920438e-05 | K129: =PLOTS!$E$11/($T$9/60*2*PI())*ABS(J129)*$T$12 -> 0.0009537187798 | L129: -4.56331475e-05 | M129: =PLOTS!$E$11/($T$9/60*2*PI())*ABS(L129)*$T$12 -> 0.0009703893382 | N129: -0.0002227007129 | O129: =PLOTS!$E$11/($T$9/60*2*PI())*ABS(N129)*$T$12 -> 0.004735732888 | P129: -0.000223624087 | Q129: =PLOTS!$E$11/($T$9/60*2*PI())*ABS(P129)*$T$12 -> 0.004755368447
A130: 72.7 | B130: -0.0001315208295 | C130: =PLOTS!$E$11/($T$9/60*2*PI())*ABS(B130)*$T$12 -> 0.002796791755 | D130: -0.0001322727876 | E130: =PLOTS!$E$11/($T$9/60*2*PI())*ABS(D130)*$T$12 -> 0.002812782152 | F130: -6.801548594e-05 | G130: =PLOTS!$E$11/($T$9/60*2*PI())*ABS(F130)*$T$12 -> 0.001446349989 | H130: -6.904468413e-05 | I130: =PLOTS!$E$11/($T$9/60*2*PI())*ABS(H130)*$T$12 -> 0.001468235899 | J130: -4.637936169e-05 | K130: =PLOTS!$E$11/($T$9/60*2*PI())*ABS(J130)*$T$12 -> 0.0009862575903 | L130: -4.716523944e-05 | M130: =PLOTS!$E$11/($T$9/60*2*PI())*ABS(L130)*$T$12 -> 0.001002969289 | N130: -0.0002233953975 | O130: =PLOTS!$E$11/($T$9/60*2*PI())*ABS(N130)*$T$12 -> 0.004750505363 | P130: -0.0002243236377 | Q130: =PLOTS!$E$11/($T$9/60*2*PI())*ABS(P130)*$T$12 -> 0.0047702444
A131: 72.8 | B131: -0.0001328377964 | C131: =PLOTS!$E$11/($T$9/60*2*PI())*ABS(B131)*$T$12 -> 0.00282479707 | D131: -0.000133592457 | E131: =PLOTS!$E$11/($T$9/60*2*PI())*ABS(D131)*$T$12 -> 0.002840844935 | F131: -6.918785994e-05 | G131: =PLOTS!$E$11/($T$9/60*2*PI())*ABS(F131)*$T$12 -> 0.001471280534 | H131: -7.021419781e-05 | I131: =PLOTS!$E$11/($T$9/60*2*PI())*ABS(H131)*$T$12 -> 0.001493105619 | J131: -4.78927575e-05 | K131: =PLOTS!$E$11/($T$9/60*2*PI())*ABS(J131)*$T$12 -> 0.001018439967 | L131: -4.868055553e-05 | M131: =PLOTS!$E$11/($T$9/60*2*PI())*ABS(L131)*$T$12 -> 0.0010351925 | N131: -0.0002240773753 | O131: =PLOTS!$E$11/($T$9/60*2*PI())*ABS(N131)*$T$12 -> 0.004765007627 | P131: -0.0002250104501 | Q131: =PLOTS!$E$11/($T$9/60*2*PI())*ABS(P131)*$T$12 -> 0.004784849472
A132: 72.9 | B132: -0.0001341389025 | C132: =PLOTS!$E$11/($T$9/60*2*PI())*ABS(B132)*$T$12 -> 0.002852465104 | D132: -0.000134896247 | E132: =PLOTS!$E$11/($T$9/60*2*PI())*ABS(D132)*$T$12 -> 0.002868570042 | F132: -7.034546024e-05 | G132: =PLOTS!$E$11/($T$9/60*2*PI())*ABS(F132)*$T$12 -> 0.001495896916 | H132: -7.136894996e-05 | I132: =PLOTS!$E$11/($T$9/60*2*PI())*ABS(H132)*$T$12 -> 0.001517661435 | J132: -4.938951384e-05 | K132: =PLOTS!$E$11/($T$9/60*2*PI())*ABS(J132)*$T$12 -> 0.001050268506 | L132: -5.017921788e-05 | M132: =PLOTS!$E$11/($T$9/60*2*PI())*ABS(L132)*$T$12 -> 0.00106706157 | N132: -0.0002247467435 | O132: =PLOTS!$E$11/($T$9/60*2*PI())*ABS(N132)*$T$12 -> 0.004779241749 | P132: -0.0002256846218 | Q132: =PLOTS!$E$11/($T$9/60*2*PI())*ABS(P132)*$T$12 -> 0.00479918574
A133: 73 | B133: -0.0001354242645 | C133: =PLOTS!$E$11/($T$9/60*2*PI())*ABS(B133)*$T$12 -> 0.00287979834 | D133: -0.0001361842745 | E133: =PLOTS!$E$11/($T$9/60*2*PI())*ABS(D133)*$T$12 -> 0.002895959959 | F133: -7.148839601e-05 | G133: =PLOTS!$E$11/($T$9/60*2*PI())*ABS(F133)*$T$12 -> 0.001520201456 | H133: =TAN(ASIN(($A133^2+2*H$1*H$2-H$2^2)/2/H$1/$A133)-H$3*PI()/180)/$A133 -> -7.250904966e-05 | I133: =PLOTS!$E$11/($T$9/60*2*PI())*ABS(H133)*$T$12 -> 0.001541905666 | J133: -5.086975178e-05 | K133: =PLOTS!$E$11/($T$9/60*2*PI())*ABS(J133)*$T$12 -> 0.00108174578 | L133: -5.166134766e-05 | M133: =PLOTS!$E$11/($T$9/60*2*PI())*ABS(L133)*$T$12 -> 0.001098579075 | N133: -0.0002254035988 | O133: =PLOTS!$E$11/($T$9/60*2*PI())*ABS(N133)*$T$12 -> 0.004793209784 | P133: -0.0002263462495 | Q133: =PLOTS!$E$11/($T$9/60*2*PI())*ABS(P133)*$T$12 -> 0.004813255259
A134: 73.1 | B134: =TAN(ASIN(($A134^2+2*B$1*B$2-B$2^2)/2/B$1/$A134)-B$3*PI()/180)/$A134 -> -0.0001366939982 | C134: =PLOTS!$E$11/($T$9/60*2*PI())*ABS(B134)*$T$12 -> 0.002906799239 | D134: =TAN(ASIN(($A134^2+2*D$1*D$2-D$2^2)/2/D$1/$A134)-D$3*PI()/180)/$A134 -> -0.0001374566553 | E134: =PLOTS!$E$11/($T$9/60*2*PI())*ABS(D134)*$T$12 -> 0.002923017149 | F134: =TAN(ASIN(($A134^2+2*F$1*F$2-F$2^2)/2/F$1/$A134)-F$3*PI()/180)/$A134 -> -7.261677554e-05 | G134: =PLOTS!$E$11/($T$9/60*2*PI())*ABS(F134)*$T$12 -> 0.001544196458 | H134: -7.363460513e-05 | I134: =PLOTS!$E$11/($T$9/60*2*PI())*ABS(H134)*$T$12 -> 0.001565840615 | J134: =TAN(ASIN(($A134^2+2*J$1*J$2-J$2^2)/2/J$1/$A134)-J$3*PI()/180)/$A134 -> -5.23335914e-05 | K134: =PLOTS!$E$11/($T$9/60*2*PI())*ABS(J134)*$T$12 -> 0.001112874345 | L134: =TAN(ASIN(($A134^2+2*L$1*L$2-L$2^2)/2/L$1/$A134)-L$3*PI()/180)/$A134 -> -5.312706507e-05 | M134: =PLOTS!$E$11/($T$9/60*2*PI())*ABS(L134)*$T$12 -> 0.00112974757 | N134: =TAN(ASIN(($A134^2+2*N$1*N$2-N$2^2)/2/N$1/$A134)-N$3*PI()/180)/$A134 -> -0.000226048037 | O134: =PLOTS!$E$11/($T$9/60*2*PI())*ABS(N134)*$T$12 -> 0.004806913768 | P134: =TAN(ASIN(($A134^2+2*P$1*P$2-P$2^2)/2/P$1/$A134)-P$3*PI()/180)/$A134 -> -0.0002269954292 | Q134: =PLOTS!$E$11/($T$9/60*2*PI())*ABS(P134)*$T$12 -> 0.004827060072
A135: 73.2 | B135: -0.0001379482184 | C135: =PLOTS!$E$11/($T$9/60*2*PI())*ABS(B135)*$T$12 -> 0.002933470245 | D135: -0.0001387135044 | E135: =PLOTS!$E$11/($T$9/60*2*PI())*ABS(D135)*$T$12 -> 0.002949744059 | F135: -7.373070624e-05 | G135: =PLOTS!$E$11/($T$9/60*2*PI())*ABS(F135)*$T$12 -> 0.001567884206 | H135: -7.474572372e-05 | I135: =PLOTS!$E$11/($T$9/60*2*PI())*ABS(H135)*$T$12 -> 0.001589468563 | J135: -5.378115183e-05 | K135: =PLOTS!$E$11/($T$9/60*2*PI())*ABS(J135)*$T$12 -> 0.001143656732 | L135: =TAN(ASIN(($A135^2+2*L$1*L$2-L$2^2)/2/L$1/$A135)-L$3*PI()/180)/$A135 -> -5.457648933e-05 | M135: =PLOTS!$E$11/($T$9/60*2*PI())*ABS(L135)*$T$12 -> 0.001160569592 | N135: -0.000226680153 | O135: =PLOTS!$E$11/($T$9/60*2*PI())*ABS(N135)*$T$12 -> 0.00482035572 | P135: -0.0002276322561 | Q135: =PLOTS!$E$11/($T$9/60*2*PI())*ABS(P135)*$T$12 -> 0.004840602202
A136: 73.3 | B136: -0.0001391870392 | C136: =PLOTS!$E$11/($T$9/60*2*PI())*ABS(B136)*$T$12 -> 0.00295981378 | D136: -0.0001399549359 | E136: =PLOTS!$E$11/($T$9/60*2*PI())*ABS(D136)*$T$12 -> 0.002976143113 | F136: -7.483029468e-05 | G136: =PLOTS!$E$11/($T$9/60*2*PI())*ABS(F136)*$T$12 -> 0.001591266965 | H136: -7.584251194e-05 | I136: =PLOTS!$E$11/($T$9/60*2*PI())*ABS(H136)*$T$12 -> 0.001612791775 | J136: -5.521255128e-05 | K136: =PLOTS!$E$11/($T$9/60*2*PI())*ABS(J136)*$T$12 -> 0.001174095455 | L136: =TAN(ASIN(($A136^2+2*L$1*L$2-L$2^2)/2/L$1/$A136)-L$3*PI()/180)/$A136 -> -5.600973873e-05 | M136: =PLOTS!$E$11/($T$9/60*2*PI())*ABS(L136)*$T$12 -> 0.001191047654 | N136: -0.000227300041 | O136: =PLOTS!$E$11/($T$9/60*2*PI())*ABS(N136)*$T$12 -> 0.004833537646 | P136: -0.0002282568246 | Q136: =PLOTS!$E$11/($T$9/60*2*PI())*ABS(P136)*$T$12 -> 0.004853883659
A137: 73.4 | B137: -0.0001404105734 | C137: =PLOTS!$E$11/($T$9/60*2*PI())*ABS(B137)*$T$12 -> 0.002985832248 | D137: -0.0001411810631 | E137: =PLOTS!$E$11/($T$9/60*2*PI())*ABS(D137)*$T$12 -> 0.003002216718 | F137: -7.591564657e-05 | G137: =PLOTS!$E$11/($T$9/60*2*PI())*ABS(F137)*$T$12 -> 0.001614346984 | H137: -7.692507541e-05 | I137: =PLOTS!$E$11/($T$9/60*2*PI())*ABS(H137)*$T$12 -> 0.001635812498 | J137: -5.662790697e-05 | K137: =PLOTS!$E$11/($T$9/60*2*PI())*ABS(J137)*$T$12 -> 0.001204193008 | L137: =TAN(ASIN(($A137^2+2*L$1*L$2-L$2^2)/2/L$1/$A137)-L$3*PI()/180)/$A137 -> -5.74269306e-05 | M137: =PLOTS!$E$11/($T$9/60*2*PI())*ABS(L137)*$T$12 -> 0.001221184254 | N137: -0.0002279077947 | O137: =PLOTS!$E$11/($T$9/60*2*PI())*ABS(N137)*$T$12 -> 0.004846461533 | P137: -0.0002288692286 | Q137: =PLOTS!$E$11/($T$9/60*2*PI())*ABS(P137)*$T$12 -> 0.004866906435
A138: 73.5 | B138: -0.0001416189333 | C138: =PLOTS!$E$11/($T$9/60*2*PI())*ABS(B138)*$T$12 -> 0.003011528034 | D138: -0.000142391998 | E138: =PLOTS!$E$11/($T$9/60*2*PI())*ABS(D138)*$T$12 -> 0.003027967262 | F138: -7.698686678e-05 | G138: =PLOTS!$E$11/($T$9/60*2*PI())*ABS(F138)*$T$12 -> 0.001637126492 | H138: -7.799351895e-05 | I138: =PLOTS!$E$11/($T$9/60*2*PI())*ABS(H138)*$T$12 -> 0.001658532961 | J138: -5.802733524e-05 | K138: =PLOTS!$E$11/($T$9/60*2*PI())*ABS(J138)*$T$12 -> 0.001233951864 | L138: =TAN(ASIN(($A138^2+2*L$1*L$2-L$2^2)/2/L$1/$A138)-L$3*PI()/180)/$A138 -> -5.882818137e-05 | M138: =PLOTS!$E$11/($T$9/60*2*PI())*ABS(L138)*$T$12 -> 0.001250981865 | N138: -0.0002285035066 | O138: =PLOTS!$E$11/($T$9/60*2*PI())*ABS(N138)*$T$12 -> 0.004859129353 | P138: -0.0002294695607 | Q138: =PLOTS!$E$11/($T$9/60*2*PI())*ABS(P138)*$T$12 -> 0.004879672504
A139: 73.6 | B139: -0.0001428122301 | C139: =PLOTS!$E$11/($T$9/60*2*PI())*ABS(B139)*$T$12 -> 0.003036903502 | D139: -0.0001435878521 | E139: =PLOTS!$E$11/($T$9/60*2*PI())*ABS(D139)*$T$12 -> 0.003053397111 | F139: -7.804405934e-05 | G139: =PLOTS!$E$11/($T$9/60*2*PI())*ABS(F139)*$T$12 -> 0.001659607703 | H139: -7.904794651e-05 | I139: =PLOTS!$E$11/($T$9/60*2*PI())*ABS(H139)*$T$12 -> 0.001680955373 | J139: -5.941095146e-05 | K139: =PLOTS!$E$11/($T$9/60*2*PI())*ABS(J139)*$T$12 -> 0.001263374477 | L139: =TAN(ASIN(($A139^2+2*L$1*L$2-L$2^2)/2/L$1/$A139)-L$3*PI()/180)/$A139 -> -6.021360651e-05 | M139: =PLOTS!$E$11/($T$9/60*2*PI())*ABS(L139)*$T$12 -> 0.001280442945 | N139: -0.0002290872687 | O139: =PLOTS!$E$11/($T$9/60*2*PI())*ABS(N139)*$T$12 -> 0.004871543061 | P139: -0.0002300579133 | Q139: =PLOTS!$E$11/($T$9/60*2*PI())*ABS(P139)*$T$12 -> 0.004892183828
A140: 73.7 | B140: -0.0001439905742 | C140: =PLOTS!$E$11/($T$9/60*2*PI())*ABS(B140)*$T$12 -> 0.003061961001 | D140: -0.0001447687359 | E140: =PLOTS!$E$11/($T$9/60*2*PI())*ABS(D140)*$T$12 -> 0.003078508617 | F140: -7.908732745e-05 | G140: =PLOTS!$E$11/($T$9/60*2*PI())*ABS(F140)*$T$12 -> 0.001681792809 | H140: -8.008846125e-05 | I140: =PLOTS!$E$11/($T$9/60*2*PI())*ABS(H140)*$T$12 -> 0.00170308193 | J140: -6.077887011e-05 | K140: =PLOTS!$E$11/($T$9/60*2*PI())*ABS(J140)*$T$12 -> 0.001292463281 | L140: -6.15833206e-05 | M140: =PLOTS!$E$11/($T$9/60*2*PI())*ABS(L140)*$T$12 -> 0.001309569928 | N140: -0.0002296591724 | O140: =PLOTS!$E$11/($T$9/60*2*PI())*ABS(N140)*$T$12 -> 0.004883704598 | P140: -0.0002306343778 | Q140: =PLOTS!$E$11/($T$9/60*2*PI())*ABS(P140)*$T$12 -> 0.004904442351
A141: 73.8 | B141: -0.000145154075 | C141: =PLOTS!$E$11/($T$9/60*2*PI())*ABS(B141)*$T$12 -> 0.003086702857 | D141: -0.0001459347589 | E141: =PLOTS!$E$11/($T$9/60*2*PI())*ABS(D141)*$T$12 -> 0.003103304108 | F141: -8.011677351e-05 | G141: =PLOTS!$E$11/($T$9/60*2*PI())*ABS(F141)*$T$12 -> 0.00170368399 | H141: -8.111516547e-05 | I141: =PLOTS!$E$11/($T$9/60*2*PI())*ABS(H141)*$T$12 -> 0.001724914805 | J141: -6.213120477e-05 | K141: =PLOTS!$E$11/($T$9/60*2*PI())*ABS(J141)*$T$12 -> 0.001321220691 | L141: -6.293743729e-05 | M141: =PLOTS!$E$11/($T$9/60*2*PI())*ABS(L141)*$T$12 -> 0.001338365234 | N141: -0.000230219308 | O141: =PLOTS!$E$11/($T$9/60*2*PI())*ABS(N141)*$T$12 -> 0.004895615888 | P141: -0.0002311990448 | Q141: =PLOTS!$E$11/($T$9/60*2*PI())*ABS(P141)*$T$12 -> 0.004916450001
A142: 73.9 | B142: -0.0001463028411 | C142: =PLOTS!$E$11/($T$9/60*2*PI())*ABS(B142)*$T$12 -> 0.00311113138 | D142: -0.00014708603 | E142: =PLOTS!$E$11/($T$9/60*2*PI())*ABS(D142)*$T$12 -> 0.003127785898 | F142: -8.113249909e-05 | G142: =PLOTS!$E$11/($T$9/60*2*PI())*ABS(F142)*$T$12 -> 0.001725283405 | H142: -8.21281607e-05 | I142: =PLOTS!$E$11/($T$9/60*2*PI())*ABS(H142)*$T$12 -> 0.001746456159 | J142: -6.346806811e-05 | K142: =PLOTS!$E$11/($T$9/60*2*PI())*ABS(J142)*$T$12 -> 0.001349649103 | L142: -6.427606937e-05 | M142: =PLOTS!$E$11/($T$9/60*2*PI())*ABS(L142)*$T$12 -> 0.001366831258 | N142: -0.0002307677654 | O142: =PLOTS!$E$11/($T$9/60*2*PI())*ABS(N142)*$T$12 -> 0.004907278841 | P142: -0.0002317520044 | Q142: =PLOTS!$E$11/($T$9/60*2*PI())*ABS(P142)*$T$12 -> 0.004928208692
A143: 74 | B143: -0.0001474369804 | C143: =PLOTS!$E$11/($T$9/60*2*PI())*ABS(B143)*$T$12 -> 0.003135248863 | D143: -0.0001482226568 | E143: =PLOTS!$E$11/($T$9/60*2*PI())*ABS(D143)*$T$12 -> 0.00315195628 | F143: -8.213460494e-05 | G143: =PLOTS!$E$11/($T$9/60*2*PI())*ABS(F143)*$T$12 -> 0.001746593196 | H143: -8.312754762e-05 | I143: =PLOTS!$E$11/($T$9/60*2*PI())*ABS(H143)*$T$12 -> 0.001767708132 | J143: -6.478957191e-05 | K143: =PLOTS!$E$11/($T$9/60*2*PI())*ABS(J143)*$T$12 -> 0.001377750895 | L143: -6.559932869e-05 | M143: =PLOTS!$E$11/($T$9/60*2*PI())*ABS(L143)*$T$12 -> 0.001394970381 | N143: -0.0002313046337 | O143: =PLOTS!$E$11/($T$9/60*2*PI())*ABS(N143)*$T$12 -> 0.004918695349 | P143: -0.0002322933457 | Q143: =PLOTS!$E$11/($T$9/60*2*PI())*ABS(P143)*$T$12 -> 0.004939720321
A144: 74.1 | B144: -0.0001485565996 | C144: =PLOTS!$E$11/($T$9/60*2*PI())*ABS(B144)*$T$12 -> 0.003159057577 | D144: -0.0001493447466 | E144: =PLOTS!$E$11/($T$9/60*2*PI())*ABS(D144)*$T$12 -> 0.00317581753 | F144: -8.312319105e-05 | G144: =PLOTS!$E$11/($T$9/60*2*PI())*ABS(F144)*$T$12 -> 0.001767615489 | H144: -8.411342614e-05 | I144: =PLOTS!$E$11/($T$9/60*2*PI())*ABS(H144)*$T$12 -> 0.001788672848 | J144: -6.609582708e-05 | K144: =PLOTS!$E$11/($T$9/60*2*PI())*ABS(J144)*$T$12 -> 0.001405528424 | L144: -6.690732626e-05 | M144: =PLOTS!$E$11/($T$9/60*2*PI())*ABS(L144)*$T$12 -> 0.001422784962 | N144: -0.0002318300011 | O144: =PLOTS!$E$11/($T$9/60*2*PI())*ABS(N144)*$T$12 -> 0.004929867292 | P144: -0.0002328231574 | Q144: =PLOTS!$E$11/($T$9/60*2*PI())*ABS(P144)*$T$12 -> 0.004950986771
A145: 74.2 | B145: -0.0001496618049 | C145: =PLOTS!$E$11/($T$9/60*2*PI())*ABS(B145)*$T$12 -> 0.003182559779 | D145: -0.0001504524054 | E145: =PLOTS!$E$11/($T$9/60*2*PI())*ABS(D145)*$T$12 -> 0.003199371905 | F145: -8.409835659e-05 | G145: =PLOTS!$E$11/($T$9/60*2*PI())*ABS(F145)*$T$12 -> 0.001788352394 | H145: -8.508589538e-05 | I145: =PLOTS!$E$11/($T$9/60*2*PI())*ABS(H145)*$T$12 -> 0.001809352416 | J145: -6.738694363e-05 | K145: =PLOTS!$E$11/($T$9/60*2*PI())*ABS(J145)*$T$12 -> 0.00143298403 | L145: -6.820017219e-05 | M145: =PLOTS!$E$11/($T$9/60*2*PI())*ABS(L145)*$T$12 -> 0.001450277344 | N145: -0.0002323439553 | O145: =PLOTS!$E$11/($T$9/60*2*PI())*ABS(N145)*$T$12 -> 0.004940796533 | P145: -0.0002333415272 | Q145: =PLOTS!$E$11/($T$9/60*2*PI())*ABS(P145)*$T$12 -> 0.00496200991
A146: 74.3 | B146: -0.0001507527015 | C146: =PLOTS!$E$11/($T$9/60*2*PI())*ABS(B146)*$T$12 -> 0.003205757705 | D146: -0.0001515457385 | E146: =PLOTS!$E$11/($T$9/60*2*PI())*ABS(D146)*$T$12 -> 0.003222621645 | F146: -8.506019996e-05 | G146: =PLOTS!$E$11/($T$9/60*2*PI())*ABS(F146)*$T$12 -> 0.001808806003 | H146: -8.604505367e-05 | I146: =PLOTS!$E$11/($T$9/60*2*PI())*ABS(H146)*$T$12 -> 0.001829748927 | J146: -6.866303074e-05 | K146: =PLOTS!$E$11/($T$9/60*2*PI())*ABS(J146)*$T$12 -> 0.001460120035 | L146: -6.947797573e-05 | M146: =PLOTS!$E$11/($T$9/60*2*PI())*ABS(L146)*$T$12 -> 0.001477449849 | N146: -0.0002328465832 | O146: =PLOTS!$E$11/($T$9/60*2*PI())*ABS(N146)*$T$12 -> 0.004951484921 | P146: -0.0002338485422 | Q146: =PLOTS!$E$11/($T$9/60*2*PI())*ABS(P146)*$T$12 -> 0.004972791589
A147: 74.4 | B147: -0.0001518293936 | C147: =PLOTS!$E$11/($T$9/60*2*PI())*ABS(B147)*$T$12 -> 0.003228653574 | D147: -0.0001526248505 | E147: =PLOTS!$E$11/($T$9/60*2*PI())*ABS(D147)*$T$12 -> 0.003245568973 | F147: -8.600881876e-05 | G147: =PLOTS!$E$11/($T$9/60*2*PI())*ABS(F147)*$T$12 -> 0.001828978391 | H147: -8.699099857e-05 | I147: =PLOTS!$E$11/($T$9/60*2*PI())*ABS(H147)*$T$12 -> 0.001849864455 | J147: -6.99241967e-05 | K147: =PLOTS!$E$11/($T$9/60*2*PI())*ABS(J147)*$T$12 -> 0.001486938742 | L147: -7.074084527e-05 | M147: =PLOTS!$E$11/($T$9/60*2*PI())*ABS(L147)*$T$12 -> 0.001504304782 | N147: -0.0002333379711 | O147: =PLOTS!$E$11/($T$9/60*2*PI())*ABS(N147)*$T$12 -> 0.00496193429 | P147: -0.0002343442889 | Q147: =PLOTS!$E$11/($T$9/60*2*PI())*ABS(P147)*$T$12 -> 0.004983333648
A148: 74.5 | B148: -0.000152891985 | C148: =PLOTS!$E$11/($T$9/60*2*PI())*ABS(B148)*$T$12 -> 0.003251249591 | D148: -0.000153689845 | E148: =PLOTS!$E$11/($T$9/60*2*PI())*ABS(D148)*$T$12 -> 0.003268216092 | F148: -8.694430986e-05 | G148: =PLOTS!$E$11/($T$9/60*2*PI())*ABS(F148)*$T$12 -> 0.001848871619 | H148: -8.792382685e-05 | I148: =PLOTS!$E$11/($T$9/60*2*PI())*ABS(H148)*$T$12 -> 0.001869701057 | J148: -7.117054896e-05 | K148: =PLOTS!$E$11/($T$9/60*2*PI())*ABS(J148)*$T$12 -> 0.001513442436 | L148: -7.198888835e-05 | M148: =PLOTS!$E$11/($T$9/60*2*PI())*ABS(L148)*$T$12 -> 0.001530844431 | N148: -0.0002338182046 | O148: =PLOTS!$E$11/($T$9/60*2*PI())*ABS(N148)*$T$12 -> 0.004972146459 | P148: -0.0002348288531 | Q148: =PLOTS!$E$11/($T$9/60*2*PI())*ABS(P148)*$T$12 -> 0.00499363791
A149: 74.6 | B149: -0.0001539405783 | C149: =PLOTS!$E$11/($T$9/60*2*PI())*ABS(B149)*$T$12 -> 0.003273547938 | D149: -0.0001547408249 | E149: =PLOTS!$E$11/($T$9/60*2*PI())*ABS(D149)*$T$12 -> 0.00329056519 | F149: -8.786676933e-05 | G149: =PLOTS!$E$11/($T$9/60*2*PI())*ABS(F149)*$T$12 -> 0.001868487729 | H149: -8.884363454e-05 | I149: =PLOTS!$E$11/($T$9/60*2*PI())*ABS(H149)*$T$12 -> 0.001889260777 | J149: -7.240219414e-05 | K149: =PLOTS!$E$11/($T$9/60*2*PI())*ABS(J149)*$T$12 -> 0.001539633383 | L149: -7.322221167e-05 | M149: =PLOTS!$E$11/($T$9/60*2*PI())*ABS(L149)*$T$12 -> 0.001557071064 | N149: -0.0002342873684 | O149: =PLOTS!$E$11/($T$9/60*2*PI())*ABS(N149)*$T$12 -> 0.004982123232 | P149: -0.0002353023197 | Q149: =PLOTS!$E$11/($T$9/60*2*PI())*ABS(P149)*$T$12 -> 0.005003706182
A150: 74.7 | B150: -0.0001549752755 | C150: =PLOTS!$E$11/($T$9/60*2*PI())*ABS(B150)*$T$12 -> 0.003295550784 | D150: -0.0001557778922 | E150: =PLOTS!$E$11/($T$9/60*2*PI())*ABS(D150)*$T$12 -> 0.003312618437 | F150: -8.87762925e-05 | G150: =PLOTS!$E$11/($T$9/60*2*PI())*ABS(F150)*$T$12 -> 0.001887828748 | H150: -8.975051691e-05 | I150: =PLOTS!$E$11/($T$9/60*2*PI())*ABS(H150)*$T$12 -> 0.00190854564 | J150: -7.3619238e-05 | K150: =PLOTS!$E$11/($T$9/60*2*PI())*ABS(J150)*$T$12 -> 0.001565513833 | L150: -7.444092109e-05 | M150: =PLOTS!$E$11/($T$9/60*2*PI())*ABS(L150)*$T$12 -> 0.001582986932 | N150: -0.0002347455468 | O150: =PLOTS!$E$11/($T$9/60*2*PI())*ABS(N150)*$T$12 -> 0.0049918664 | P150: -0.0002357647731 | Q150: =PLOTS!$E$11/($T$9/60*2*PI())*ABS(P150)*$T$12 -> 0.005013540259
A151: 74.8 | B151: -0.0001559961777 | C151: =PLOTS!$E$11/($T$9/60*2*PI())*ABS(B151)*$T$12 -> 0.003317260279 | D151: -0.0001568011482 | E151: =PLOTS!$E$11/($T$9/60*2*PI())*ABS(D151)*$T$12 -> 0.003334377986 | F151: -8.967297395e-05 | G151: =PLOTS!$E$11/($T$9/60*2*PI())*ABS(F151)*$T$12 -> 0.001906896688 | H151: -9.064456847e-05 | I151: =PLOTS!$E$11/($T$9/60*2*PI())*ABS(H151)*$T$12 -> 0.001927557655 | J151: -7.48217855e-05 | K151: =PLOTS!$E$11/($T$9/60*2*PI())*ABS(J151)*$T$12 -> 0.001591086017 | L151: -7.564512164e-05 | M151: =PLOTS!$E$11/($T$9/60*2*PI())*ABS(L151)*$T$12 -> 0.001608594268 | N151: -0.0002351928233 | O151: =PLOTS!$E$11/($T$9/60*2*PI())*ABS(N151)*$T$12 -> 0.00500137774 | P151: -0.0002362162971 | Q151: =PLOTS!$E$11/($T$9/60*2*PI())*ABS(P151)*$T$12 -> 0.005023141921
A152: 74.9 | B152: -0.0001570033853 | C152: =PLOTS!$E$11/($T$9/60*2*PI())*ABS(B152)*$T$12 -> 0.003338678558 | D152: -0.0001578106934 | E152: =PLOTS!$E$11/($T$9/60*2*PI())*ABS(D152)*$T$12 -> 0.003355845973 | F152: -9.055690753e-05 | G152: =PLOTS!$E$11/($T$9/60*2*PI())*ABS(F152)*$T$12 -> 0.001925693544 | H152: -9.152588301e-05 | I152: =PLOTS!$E$11/($T$9/60*2*PI())*ABS(H152)*$T$12 -> 0.001946298818 | J152: -7.600994076e-05 | K152: =PLOTS!$E$11/($T$9/60*2*PI())*ABS(J152)*$T$12 -> 0.001616352151 | L152: -7.683491754e-05 | M152: =PLOTS!$E$11/($T$9/60*2*PI())*ABS(L152)*$T$12 -> 0.00163389529 | N152: -0.0002356292807 | O152: =PLOTS!$E$11/($T$9/60*2*PI())*ABS(N152)*$T$12 -> 0.005010659012 | P152: -0.0002366569747 | Q152: =PLOTS!$E$11/($T$9/60*2*PI())*ABS(P152)*$T$12 -> 0.005032512934
A153: 75 | B153: -0.0001579969977 | C153: =PLOTS!$E$11/($T$9/60*2*PI())*ABS(B153)*$T$12 -> 0.003359807737 | D153: -0.0001588066273 | E153: =PLOTS!$E$11/($T$9/60*2*PI())*ABS(D153)*$T$12 -> 0.003377024517 | F153: -9.142818632e-05 | G153: =PLOTS!$E$11/($T$9/60*2*PI())*ABS(F153)*$T$12 -> 0.001944221297 | H153: -9.239455356e-05 | I153: =PLOTS!$E$11/($T$9/60*2*PI())*ABS(H153)*$T$12 -> 0.001964771106 | J153: -7.718380709e-05 | K153: =PLOTS!$E$11/($T$9/60*2*PI())*ABS(J153)*$T$12 -> 0.00164131443 | L153: -7.801041216e-05 | M153: =PLOTS!$E$11/($T$9/60*2*PI())*ABS(L153)*$T$12 -> 0.001658892195 | N153: -0.0002360550014 | O153: =PLOTS!$E$11/($T$9/60*2*PI())*ABS(N153)*$T$12 -> 0.005019711966 | P153: -0.0002370868882 | Q153: =PLOTS!$E$11/($T$9/60*2*PI())*ABS(P153)*$T$12 -> 0.00504165505
A154: 75.1 | B154: -0.0001589771138 | C154: =PLOTS!$E$11/($T$9/60*2*PI())*ABS(B154)*$T$12 -> 0.003380649916 | D154: -0.0001597890488 | E154: =PLOTS!$E$11/($T$9/60*2*PI())*ABS(D154)*$T$12 -> 0.003397915722 | F154: -9.22869027e-05 | G154: =PLOTS!$E$11/($T$9/60*2*PI())*ABS(F154)*$T$12 -> 0.001962481909 | H154: -9.325067243e-05 | I154: =PLOTS!$E$11/($T$9/60*2*PI())*ABS(H154)*$T$12 -> 0.001982976482 | J154: -7.8343487e-05 | K154: =PLOTS!$E$11/($T$9/60*2*PI())*ABS(J154)*$T$12 -> 0.001665975035 | L154: -7.917170812e-05 | M154: =PLOTS!$E$11/($T$9/60*2*PI())*ABS(L154)*$T$12 -> 0.001683587165 | N154: -0.0002364700667 | O154: =PLOTS!$E$11/($T$9/60*2*PI())*ABS(N154)*$T$12 -> 0.005028538334 | P154: -0.0002375061194 | Q154: =PLOTS!$E$11/($T$9/60*2*PI())*ABS(P154)*$T$12 -> 0.005050570006
A155: 75.2 | B155: -0.0001599438316 | C155: =PLOTS!$E$11/($T$9/60*2*PI())*ABS(B155)*$T$12 -> 0.00340120718 | D155: -0.0001607580562 | E155: =PLOTS!$E$11/($T$9/60*2*PI())*ABS(D155)*$T$12 -> 0.003418521672 | F155: -9.313314832e-05 | G155: =PLOTS!$E$11/($T$9/60*2*PI())*ABS(F155)*$T$12 -> 0.001980477331 | H155: -9.409433121e-05 | I155: =PLOTS!$E$11/($T$9/60*2*PI())*ABS(H155)*$T$12 -> 0.002000916894 | J155: -7.948908219e-05 | K155: =PLOTS!$E$11/($T$9/60*2*PI())*ABS(J155)*$T$12 -> 0.001690336128 | L155: -8.03189072e-05 | M155: =PLOTS!$E$11/($T$9/60*2*PI())*ABS(L155)*$T$12 -> 0.001707982365 | N155: -0.0002368745577 | O155: =PLOTS!$E$11/($T$9/60*2*PI())*ABS(N155)*$T$12 -> 0.005037139839 | P155: -0.0002379147494 | Q155: =PLOTS!$E$11/($T$9/60*2*PI())*ABS(P155)*$T$12 -> 0.005059259527
A156: 75.3 | B156: -0.0001608972484 | C156: =PLOTS!$E$11/($T$9/60*2*PI())*ABS(B156)*$T$12 -> 0.003421481596 | D156: -0.0001617137466 | E156: =PLOTS!$E$11/($T$9/60*2*PI())*ABS(D156)*$T$12 -> 0.003438844439 | F156: -9.39670141e-05 | G156: =PLOTS!$E$11/($T$9/60*2*PI())*ABS(F156)*$T$12 -> 0.001998209495 | H156: -9.492562077e-05 | I156: =PLOTS!$E$11/($T$9/60*2*PI())*ABS(H156)*$T$12 -> 0.002018594275 | J156: -8.062069358e-05 | K156: =PLOTS!$E$11/($T$9/60*2*PI())*ABS(J156)*$T$12 -> 0.001714399855 | L156: -8.145211039e-05 | M156: =PLOTS!$E$11/($T$9/60*2*PI())*ABS(L156)*$T$12 -> 0.001732079942 | N156: -0.0002372685545 | O156: =PLOTS!$E$11/($T$9/60*2*PI())*ABS(N156)*$T$12 -> 0.005045518185 | P156: -0.0002383128586 | Q156: =PLOTS!$E$11/($T$9/60*2*PI())*ABS(P156)*$T$12 -> 0.005067725323
A157: 75.4 | B157: -0.0001618374605 | C157: =PLOTS!$E$11/($T$9/60*2*PI())*ABS(B157)*$T$12 -> 0.003441475216 | D157: -0.0001626562168 | E157: =PLOTS!$E$11/($T$9/60*2*PI())*ABS(D157)*$T$12 -> 0.003458886076 | F157: -9.478859028e-05 | G157: =PLOTS!$E$11/($T$9/60*2*PI())*ABS(F157)*$T$12 -> 0.00201568032 | H157: -9.574463128e-05 | I157: =PLOTS!$E$11/($T$9/60*2*PI())*ABS(H157)*$T$12 -> 0.002036010542 | J157: -8.17384213e-05 | K157: =PLOTS!$E$11/($T$9/60*2*PI())*ABS(J157)*$T$12 -> 0.001738168346 | L157: -8.257141791e-05 | M157: =PLOTS!$E$11/($T$9/60*2*PI())*ABS(L157)*$T$12 -> 0.001755882028 | N157: -0.0002376521369 | O157: =PLOTS!$E$11/($T$9/60*2*PI())*ABS(N157)*$T$12 -> 0.005053675067 | P157: -0.0002387005268 | Q157: =PLOTS!$E$11/($T$9/60*2*PI())*ABS(P157)*$T$12 -> 0.00507596909
A158: 75.5 | B158: -0.0001627645637 | C158: =PLOTS!$E$11/($T$9/60*2*PI())*ABS(B158)*$T$12 -> 0.003461190075 | D158: -0.0001635855624 | E158: =PLOTS!$E$11/($T$9/60*2*PI())*ABS(D158)*$T$12 -> 0.003478648621 | F158: -9.559796636e-05 | G158: =PLOTS!$E$11/($T$9/60*2*PI())*ABS(F158)*$T$12 -> 0.002032891711 | H158: -9.655145219e-05 | I158: =PLOTS!$E$11/($T$9/60*2*PI())*ABS(H158)*$T$12 -> 0.002053167597 | J158: -8.28423647e-05 | K158: =PLOTS!$E$11/($T$9/60*2*PI())*ABS(J158)*$T$12 -> 0.001761643714 | L158: -8.367692919e-05 | M158: =PLOTS!$E$11/($T$9/60*2*PI())*ABS(L158)*$T$12 -> 0.001779390736 | N158: -0.0002380253837 | O158: =PLOTS!$E$11/($T$9/60*2*PI())*ABS(N158)*$T$12 -> 0.005061612165 | P158: -0.0002390778332 | Q158: =PLOTS!$E$11/($T$9/60*2*PI())*ABS(P158)*$T$12 -> 0.005083992514
A159: 75.6 | B159: -0.000163678653 | C159: =PLOTS!$E$11/($T$9/60*2*PI())*ABS(B159)*$T$12 -> 0.003480628194 | D159: -0.0001645018787 | E159: =PLOTS!$E$11/($T$9/60*2*PI())*ABS(D159)*$T$12 -> 0.003498134096 | F159: -9.639523117e-05 | G159: =PLOTS!$E$11/($T$9/60*2*PI())*ABS(F159)*$T$12 -> 0.002049845555 | H159: -9.734617227e-05 | I159: =PLOTS!$E$11/($T$9/60*2*PI())*ABS(H159)*$T$12 -> 0.002070067327 | J159: -8.393262236e-05 | K159: =PLOTS!$E$11/($T$9/60*2*PI())*ABS(J159)*$T$12 -> 0.001784828054 | L159: -8.47687429e-05 | M159: =PLOTS!$E$11/($T$9/60*2*PI())*ABS(L159)*$T$12 -> 0.001802608166 | N159: -0.0002383883734 | O159: =PLOTS!$E$11/($T$9/60*2*PI())*ABS(N159)*$T$12 -> 0.005069331145 | P159: -0.0002394448562 | Q159: =PLOTS!$E$11/($T$9/60*2*PI())*ABS(P159)*$T$12 -> 0.005091797263
A160: 75.7 | B160: -0.0001645798227 | C160: =PLOTS!$E$11/($T$9/60*2*PI())*ABS(B160)*$T$12 -> 0.003499791575 | D160: -0.0001654052599 | E160: =PLOTS!$E$11/($T$9/60*2*PI())*ABS(D160)*$T$12 -> 0.003517344506 | F160: -9.718047284e-05 | G160: =PLOTS!$E$11/($T$9/60*2*PI())*ABS(F160)*$T$12 -> 0.002066543727 | H160: -9.812887958e-05 | I160: =PLOTS!$E$11/($T$9/60*2*PI())*ABS(H160)*$T$12 -> 0.002086711606 | J160: -8.500929211e-05 | K160: =PLOTS!$E$11/($T$9/60*2*PI())*ABS(J160)*$T$12 -> 0.001807723447 | L160: -8.584695693e-05 | M160: =PLOTS!$E$11/($T$9/60*2*PI())*ABS(L160)*$T$12 -> 0.001825536398 | N160: -0.0002387411838 | O160: =PLOTS!$E$11/($T$9/60*2*PI())*ABS(N160)*$T$12 -> 0.005076833661 | P160: -0.000239801674 | Q160: =PLOTS!$E$11/($T$9/60*2*PI())*ABS(P160)*$T$12 -> 0.005099384995
A161: 75.8 | B161: -0.0001654681661 | C161: =PLOTS!$E$11/($T$9/60*2*PI())*ABS(B161)*$T$12 -> 0.003518682208 | D161: -0.0001662957997 | E161: =PLOTS!$E$11/($T$9/60*2*PI())*ABS(D161)*$T$12 -> 0.003536281843 | F161: -9.79537788e-05 | G161: =PLOTS!$E$11/($T$9/60*2*PI())*ABS(F161)*$T$12 -> 0.002082988086 | H161: -9.889966152e-05 | I161: =PLOTS!$E$11/($T$9/60*2*PI())*ABS(H161)*$T$12 -> 0.002103102291 | J161: -8.6072471e-05 | K161: =PLOTS!$E$11/($T$9/60*2*PI())*ABS(J161)*$T$12 -> 0.001830331957 | L161: -8.691166843e-05 | M161: =PLOTS!$E$11/($T$9/60*2*PI())*ABS(L161)*$T$12 -> 0.001848177498 | N161: -0.0002390838919 | O161: =PLOTS!$E$11/($T$9/60*2*PI())*ABS(N161)*$T$12 -> 0.005084121353 | P161: -0.0002401483636 | Q161: =PLOTS!$E$11/($T$9/60*2*PI())*ABS(P161)*$T$12 -> 0.005106757355
A162: 75.9 | B162: -0.0001663437762 | C162: =PLOTS!$E$11/($T$9/60*2*PI())*ABS(B162)*$T$12 -> 0.003537302066 | D162: -0.0001671735909 | E162: =PLOTS!$E$11/($T$9/60*2*PI())*ABS(D162)*$T$12 -> 0.003554948082 | F162: -9.871523582e-05 | G162: =PLOTS!$E$11/($T$9/60*2*PI())*ABS(F162)*$T$12 -> 0.002099180477 | H162: -9.965860478e-05 | I162: =PLOTS!$E$11/($T$9/60*2*PI())*ABS(H162)*$T$12 -> 0.002119241228 | J162: -8.712225535e-05 | K162: =PLOTS!$E$11/($T$9/60*2*PI())*ABS(J162)*$T$12 -> 0.001852655631 | L162: -8.796297378e-05 | M162: =PLOTS!$E$11/($T$9/60*2*PI())*ABS(L162)*$T$12 -> 0.001870533517 | N162: -0.0002394165743 | O162: =PLOTS!$E$11/($T$9/60*2*PI())*ABS(N162)*$T$12 -> 0.005091195848 | P162: -0.0002404850019 | Q162: =PLOTS!$E$11/($T$9/60*2*PI())*ABS(P162)*$T$12 -> 0.005113915972
A163: 76 | B163: -0.000167206745 | C163: =PLOTS!$E$11/($T$9/60*2*PI())*ABS(B163)*$T$12 -> 0.003555653105 | D163: -0.0001680387257 | E163: =PLOTS!$E$11/($T$9/60*2*PI())*ABS(D163)*$T$12 -> 0.003573345182 | F163: -9.946492999e-05 | G163: =PLOTS!$E$11/($T$9/60*2*PI())*ABS(F163)*$T$12 -> 0.002115122731 | H163: -0.0001004057954 | I163: =PLOTS!$E$11/($T$9/60*2*PI())*ABS(H163)*$T$12 -> 0.002135130244 | J163: -8.815874071e-05 | K163: =PLOTS!$E$11/($T$9/60*2*PI())*ABS(J163)*$T$12 -> 0.001874696503 | L163: -8.900096863e-05 | M163: =PLOTS!$E$11/($T$9/60*2*PI())*ABS(L163)*$T$12 -> 0.001892606488 | N163: -0.000239739307 | O163: =PLOTS!$E$11/($T$9/60*2*PI())*ABS(N163)*$T$12 -> 0.005098058762 | P163: -0.000240811665 | Q163: =PLOTS!$E$11/($T$9/60*2*PI())*ABS(P163)*$T$12 -> 0.005120862465
A164: 76.1 | B164: -0.0001680571638 | C164: =PLOTS!$E$11/($T$9/60*2*PI())*ABS(B164)*$T$12 -> 0.003573737269 | D164: -0.0001688912955 | E164: =PLOTS!$E$11/($T$9/60*2*PI())*ABS(D164)*$T$12 -> 0.003591475088 | F164: -0.0001002029467 | G164: =PLOTS!$E$11/($T$9/60*2*PI())*ABS(F164)*$T$12 -> 0.002130816665 | H164: -0.0001011413188 | I164: =PLOTS!$E$11/($T$9/60*2*PI())*ABS(H164)*$T$12 -> 0.002150771155 | J164: -8.918202193e-05 | K164: =PLOTS!$E$11/($T$9/60*2*PI())*ABS(J164)*$T$12 -> 0.001896456588 | L164: -9.002574788e-05 | M164: =PLOTS!$E$11/($T$9/60*2*PI())*ABS(L164)*$T$12 -> 0.001914398429 | N164: -0.0002400521653 | O164: =PLOTS!$E$11/($T$9/60*2*PI())*ABS(N164)*$T$12 -> 0.005104711696 | P164: -0.0002411284283 | Q164: =PLOTS!$E$11/($T$9/60*2*PI())*ABS(P164)*$T$12 -> 0.00512759844
A165: 76.2 | B165: -0.0001688951233 | C165: =PLOTS!$E$11/($T$9/60*2*PI())*ABS(B165)*$T$12 -> 0.003591556486 | D165: -0.0001697313911 | E165: =PLOTS!$E$11/($T$9/60*2*PI())*ABS(D165)*$T$12 -> 0.003609339729 | F165: -0.0001009293708 | G165: =PLOTS!$E$11/($T$9/60*2*PI())*ABS(F165)*$T$12 -> 0.00214626408 | H165: =TAN(ASIN(($A165^2+2*H$1*H$2-H$2^2)/2/H$1/$A165)-H$3*PI()/180)/$A165 -> -0.0001018652595 | I165: =PLOTS!$E$11/($T$9/60*2*PI())*ABS(H165)*$T$12 -> 0.002166165763 | J165: -9.019219308e-05 | K165: =PLOTS!$E$11/($T$9/60*2*PI())*ABS(J165)*$T$12 -> 0.001917937888 | L165: -9.103740571e-05 | M165: =PLOTS!$E$11/($T$9/60*2*PI())*ABS(L165)*$T$12 -> 0.001935911343 | N165: -0.0002403552239 | O165: =PLOTS!$E$11/($T$9/60*2*PI())*ABS(N165)*$T$12 -> 0.00511115624 | P165: -0.0002414353668 | Q165: =PLOTS!$E$11/($T$9/60*2*PI())*ABS(P165)*$T$12 -> 0.00513412549
A166: 76.3 | B166: =TAN(ASIN(($A166^2+2*B$1*B$2-B$2^2)/2/B$1/$A166)-B$3*PI()/180)/$A166 -> -0.0001697207133 | C166: =PLOTS!$E$11/($T$9/60*2*PI())*ABS(B166)*$T$12 -> 0.003609112667 | D166: =TAN(ASIN(($A166^2+2*D$1*D$2-D$2^2)/2/D$1/$A166)-D$3*PI()/180)/$A166 -> -0.0001705591025 | E166: =PLOTS!$E$11/($T$9/60*2*PI())*ABS(D166)*$T$12 -> 0.003626941021 | F166: =TAN(ASIN(($A166^2+2*F$1*F$2-F$2^2)/2/F$1/$A166)-F$3*PI()/180)/$A166 -> -0.0001016442863 | G166: =PLOTS!$E$11/($T$9/60*2*PI())*ABS(F166)*$T$12 -> 0.002161466765 | H166: -0.0001025777018 | I166: =PLOTS!$E$11/($T$9/60*2*PI())*ABS(H166)*$T$12 -> 0.002181315855 | J166: =TAN(ASIN(($A166^2+2*J$1*J$2-J$2^2)/2/J$1/$A166)-J$3*PI()/180)/$A166 -> -9.118934756e-05 | K166: =PLOTS!$E$11/($T$9/60*2*PI())*ABS(J166)*$T$12 -> 0.001939142388 | L166: -9.203603557e-05 | M166: =PLOTS!$E$11/($T$9/60*2*PI())*ABS(L166)*$T$12 -> 0.001957147217 | N166: -0.000240648557 | O166: =PLOTS!$E$11/($T$9/60*2*PI())*ABS(N166)*$T$12 -> 0.005117393972 | P166: -0.0002417325548 | Q166: =PLOTS!$E$11/($T$9/60*2*PI())*ABS(P166)*$T$12 -> 0.005140445196
A167: 76.4 | B167: -0.0001705340232 | C167: =PLOTS!$E$11/($T$9/60*2*PI())*ABS(B167)*$T$12 -> 0.00362640771 | D167: -0.0001713745191 | E167: =PLOTS!$E$11/($T$9/60*2*PI())*ABS(D167)*$T$12 -> 0.003644280863 | F167: -0.0001023477767 | G167: =PLOTS!$E$11/($T$9/60*2*PI())*ABS(F167)*$T$12 -> 0.002176426496 | H167: -0.000103278729 | I167: =PLOTS!$E$11/($T$9/60*2*PI())*ABS(H167)*$T$12 -> 0.002196223204 | J167: -9.217357802e-05 | K167: =PLOTS!$E$11/($T$9/60*2*PI())*ABS(J167)*$T$12 -> 0.001960072059 | L167: -9.30217302e-05 | M167: =PLOTS!$E$11/($T$9/60*2*PI())*ABS(L167)*$T$12 -> 0.001978108023 | N167: -0.0002409322382 | O167: =PLOTS!$E$11/($T$9/60*2*PI())*ABS(N167)*$T$12 -> 0.005123426455 | P167: -0.000242020066 | Q167: =PLOTS!$E$11/($T$9/60*2*PI())*ABS(P167)*$T$12 -> 0.005146559124
A168: 76.5 | B168: -0.0001713351415 | C168: =PLOTS!$E$11/($T$9/60*2*PI())*ABS(B168)*$T$12 -> 0.003643443499 | D168: -0.0001721777295 | E168: =PLOTS!$E$11/($T$9/60*2*PI())*ABS(D168)*$T$12 -> 0.00366136114 | F168: -0.0001030399248 | G168: =PLOTS!$E$11/($T$9/60*2*PI())*ABS(F168)*$T$12 -> 0.002191145032 | H168: -0.0001039684237 | I168: =PLOTS!$E$11/($T$9/60*2*PI())*ABS(H168)*$T$12 -> 0.002210889571 | J168: -9.314497639e-05 | K168: =PLOTS!$E$11/($T$9/60*2*PI())*ABS(J168)*$T$12 -> 0.001980728855 | L168: -9.39945816e-05 | M168: =PLOTS!$E$11/($T$9/60*2*PI())*ABS(L168)*$T$12 -> 0.001998795718 | N168: -0.0002412063404 | O168: =PLOTS!$E$11/($T$9/60*2*PI())*ABS(N168)*$T$12 -> 0.005129255242 | P168: -0.0002422979736 | Q168: =PLOTS!$E$11/($T$9/60*2*PI())*ABS(P168)*$T$12 -> 0.005152468832
A169: 76.6 | B169: -0.0001721241561 | C169: =PLOTS!$E$11/($T$9/60*2*PI())*ABS(B169)*$T$12 -> 0.003660221902 | D169: -0.0001729688216 | E169: =PLOTS!$E$11/($T$9/60*2*PI())*ABS(D169)*$T$12 -> 0.003678183723 | F169: -0.0001037208128 | G169: =PLOTS!$E$11/($T$9/60*2*PI())*ABS(F169)*$T$12 -> 0.002205624122 | H169: -0.0001046468683 | I169: =PLOTS!$E$11/($T$9/60*2*PI())*ABS(H169)*$T$12 -> 0.002225316701 | J169: -9.410363391e-05 | K169: =PLOTS!$E$11/($T$9/60*2*PI())*ABS(J169)*$T$12 -> 0.002001114716 | L169: -9.495468109e-05 | M169: =PLOTS!$E$11/($T$9/60*2*PI())*ABS(L169)*$T$12 -> 0.002019212243 | N169: -0.0002414709362 | O169: =PLOTS!$E$11/($T$9/60*2*PI())*ABS(N169)*$T$12 -> 0.005134881874 | P169: -0.0002425663502 | Q169: =PLOTS!$E$11/($T$9/60*2*PI())*ABS(P169)*$T$12 -> 0.005158175863
A170: 76.7 | B170: -0.0001729011542 | C170: =PLOTS!$E$11/($T$9/60*2*PI())*ABS(B170)*$T$12 -> 0.003676744773 | D170: -0.0001737478829 | E170: =PLOTS!$E$11/($T$9/60*2*PI())*ABS(D170)*$T$12 -> 0.003694750468 | F170: -0.0001043905222 | G170: =PLOTS!$E$11/($T$9/60*2*PI())*ABS(F170)*$T$12 -> 0.002219865499 | H170: -0.0001053141441 | I170: =PLOTS!$E$11/($T$9/60*2*PI())*ABS(H170)*$T$12 -> 0.002239506327 | J170: -9.504964113e-05 | K170: =PLOTS!$E$11/($T$9/60*2*PI())*ABS(J170)*$T$12 -> 0.002021231569 | L170: -9.590211928e-05 | M170: =PLOTS!$E$11/($T$9/60*2*PI())*ABS(L170)*$T$12 -> 0.002039359526 | N170: -0.0002417260974 | O170: =PLOTS!$E$11/($T$9/60*2*PI())*ABS(N170)*$T$12 -> 0.005140307878 | P170: -0.0002428252678 | Q170: =PLOTS!$E$11/($T$9/60*2*PI())*ABS(P170)*$T$12 -> 0.005163681748
A171: 76.8 | B171: -0.0001736662222 | C171: =PLOTS!$E$11/($T$9/60*2*PI())*ABS(B171)*$T$12 -> 0.003693013953 | D171: -0.0001745149998 | E171: =PLOTS!$E$11/($T$9/60*2*PI())*ABS(D171)*$T$12 -> 0.003711063217 | F171: -0.0001050491339 | G171: =PLOTS!$E$11/($T$9/60*2*PI())*ABS(F171)*$T$12 -> 0.002233870884 | H171: -0.0001059703319 | I171: =PLOTS!$E$11/($T$9/60*2*PI())*ABS(H171)*$T$12 -> 0.002253460169 | J171: -9.598308789e-05 | K171: =PLOTS!$E$11/($T$9/60*2*PI())*ABS(J171)*$T$12 -> 0.002041081324 | L171: -9.68369861e-05 | M171: =PLOTS!$E$11/($T$9/60*2*PI())*ABS(L171)*$T$12 -> 0.002059239478 | N171: -0.0002419718952 | O171: =PLOTS!$E$11/($T$9/60*2*PI())*ABS(N171)*$T$12 -> 0.005145534772 | P171: -0.0002430747978 | Q171: =PLOTS!$E$11/($T$9/60*2*PI())*ABS(P171)*$T$12 -> 0.005168988008
A172: 76.9 | B172: -0.0001744194462 | C172: =PLOTS!$E$11/($T$9/60*2*PI())*ABS(B172)*$T$12 -> 0.003709031267 | D172: -0.0001752702584 | E172: =PLOTS!$E$11/($T$9/60*2*PI())*ABS(D172)*$T$12 -> 0.003727123798 | F172: -0.0001056967282 | G172: =PLOTS!$E$11/($T$9/60*2*PI())*ABS(F172)*$T$12 -> 0.002247641984 | H172: -0.0001066155122 | I172: =PLOTS!$E$11/($T$9/60*2*PI())*ABS(H172)*$T$12 -> 0.002267179933 | J172: -9.690406334e-05 | K172: =PLOTS!$E$11/($T$9/60*2*PI())*ABS(J172)*$T$12 -> 0.002060665876 | L172: -9.775937077e-05 | M172: =PLOTS!$E$11/($T$9/60*2*PI())*ABS(L172)*$T$12 -> 0.002078853997 | N172: -0.0002422084005 | O172: =PLOTS!$E$11/($T$9/60*2*PI())*ABS(N172)*$T$12 -> 0.005150564059 | P172: -0.0002433150113 | Q172: =PLOTS!$E$11/($T$9/60*2*PI())*ABS(P172)*$T$12 -> 0.005174096149
A173: 77 | B173: -0.0001751609111 | C173: =PLOTS!$E$11/($T$9/60*2*PI())*ABS(B173)*$T$12 -> 0.003724798527 | D173: -0.0001760137439 | E173: =PLOTS!$E$11/($T$9/60*2*PI())*ABS(D173)*$T$12 -> 0.003742934025 | F173: -0.0001063333849 | G173: =PLOTS!$E$11/($T$9/60*2*PI())*ABS(F173)*$T$12 -> 0.002261180493 | H173: -0.0001072497643 | I173: =PLOTS!$E$11/($T$9/60*2*PI())*ABS(H173)*$T$12 -> 0.002280667311 | J173: -9.781265595e-05 | K173: =PLOTS!$E$11/($T$9/60*2*PI())*ABS(J173)*$T$12 -> 0.002079987107 | L173: -9.866936183e-05 | M173: =PLOTS!$E$11/($T$9/60*2*PI())*ABS(L173)*$T$12 -> 0.002098204966 | N173: -0.0002424356834 | O173: =PLOTS!$E$11/($T$9/60*2*PI())*ABS(N173)*$T$12 -> 0.005155397233 | P173: -0.0002435459785 | Q173: =PLOTS!$E$11/($T$9/60*2*PI())*ABS(P173)*$T$12 -> 0.005179007669
A174: 77.1 | B174: -0.0001758907017 | C174: =PLOTS!$E$11/($T$9/60*2*PI())*ABS(B174)*$T$12 -> 0.003740317531 | D174: -0.000176745541 | E174: =PLOTS!$E$11/($T$9/60*2*PI())*ABS(D174)*$T$12 -> 0.003758495697 | F174: -0.0001069591828 | G174: =PLOTS!$E$11/($T$9/60*2*PI())*ABS(F174)*$T$12 -> 0.002274488092 | H174: -0.0001078731675 | I174: =PLOTS!$E$11/($T$9/60*2*PI())*ABS(H174)*$T$12 -> 0.002293923985 | J174: -9.870895354e-05 | K174: =PLOTS!$E$11/($T$9/60*2*PI())*ABS(J174)*$T$12 -> 0.002099046885 | L174: -9.956704717e-05 | M174: =PLOTS!$E$11/($T$9/60*2*PI())*ABS(L174)*$T$12 -> 0.002117294254 | N174: -0.0002426538137 | O174: =PLOTS!$E$11/($T$9/60*2*PI())*ABS(N174)*$T$12 -> 0.005160035775 | P174: -0.0002437677692 | Q174: =PLOTS!$E$11/($T$9/60*2*PI())*ABS(P174)*$T$12 -> 0.00518372405
A175: 77.2 | B175: -0.0001766089018 | C175: =PLOTS!$E$11/($T$9/60*2*PI())*ABS(B175)*$T$12 -> 0.003755590064 | D175: -0.0001774657336 | E175: =PLOTS!$E$11/($T$9/60*2*PI())*ABS(D175)*$T$12 -> 0.003773810601 | F175: -0.0001075742006 | G175: =PLOTS!$E$11/($T$9/60*2*PI())*ABS(F175)*$T$12 -> 0.002287566451 | H175: -0.0001084858 | I175: =PLOTS!$E$11/($T$9/60*2*PI())*ABS(H175)*$T$12 -> 0.002306951621 | J175: -9.959304323e-05 | K175: =PLOTS!$E$11/($T$9/60*2*PI())*ABS(J175)*$T$12 -> 0.002117847061 | L175: -0.000100452514 | M175: =PLOTS!$E$11/($T$9/60*2*PI())*ABS(L175)*$T$12 -> 0.002136123715 | N175: -0.0002428628603 | O175: =PLOTS!$E$11/($T$9/60*2*PI())*ABS(N175)*$T$12 -> 0.005164481154 | P175: -0.0002439804527 | Q175: =PLOTS!$E$11/($T$9/60*2*PI())*ABS(P175)*$T$12 -> 0.005188246768
A176: 77.3 | B176: -0.0001773155947 | C176: =PLOTS!$E$11/($T$9/60*2*PI())*ABS(B176)*$T$12 -> 0.003770617894 | D176: -0.0001781744052 | E176: =PLOTS!$E$11/($T$9/60*2*PI())*ABS(D176)*$T$12 -> 0.003788880509 | F176: -0.000108178516 | G176: =PLOTS!$E$11/($T$9/60*2*PI())*ABS(F176)*$T$12 -> 0.002300417224 | H176: -0.0001090877396 | I176: =PLOTS!$E$11/($T$9/60*2*PI())*ABS(H176)*$T$12 -> 0.002319751874 | J176: -0.0001004650115 | K176: =PLOTS!$E$11/($T$9/60*2*PI())*ABS(J176)*$T$12 -> 0.002136389474 | L176: -0.0001013258488 | M176: =PLOTS!$E$11/($T$9/60*2*PI())*ABS(L176)*$T$12 -> 0.002154695188 | N176: -0.0002430628919 | O176: =PLOTS!$E$11/($T$9/60*2*PI())*ABS(N176)*$T$12 -> 0.005168734829 | P176: -0.0002441840978 | Q176: =PLOTS!$E$11/($T$9/60*2*PI())*ABS(P176)*$T$12 -> 0.005192577282
A177: 77.4 | B177: -0.0001780108629 | C177: =PLOTS!$E$11/($T$9/60*2*PI())*ABS(B177)*$T$12 -> 0.003785402781 | D177: -0.0001788716384 | E177: =PLOTS!$E$11/($T$9/60*2*PI())*ABS(D177)*$T$12 -> 0.003803707181 | F177: -0.0001087722063 | G177: =PLOTS!$E$11/($T$9/60*2*PI())*ABS(F177)*$T$12 -> 0.002313042055 | H177: -0.0001096790636 | I177: =PLOTS!$E$11/($T$9/60*2*PI())*ABS(H177)*$T$12 -> 0.002332326386 | J177: -0.0001013249441 | K177: =PLOTS!$E$11/($T$9/60*2*PI())*ABS(J177)*$T$12 -> 0.00215467595 | L177: -0.0001021871375 | M177: =PLOTS!$E$11/($T$9/60*2*PI())*ABS(L177)*$T$12 -> 0.002173010501 | N177: -0.0002432539766 | O177: =PLOTS!$E$11/($T$9/60*2*PI())*ABS(N177)*$T$12 -> 0.005172798246 | P177: -0.0002443787726 | Q177: =PLOTS!$E$11/($T$9/60*2*PI())*ABS(P177)*$T$12 -> 0.005196717044
A178: 77.5 | B178: -0.0001786947886 | C178: =PLOTS!$E$11/($T$9/60*2*PI())*ABS(B178)*$T$12 -> 0.003799946466 | D178: -0.0001795575154 | E178: =PLOTS!$E$11/($T$9/60*2*PI())*ABS(D178)*$T$12 -> 0.003818292361 | F178: -0.0001093553482 | G178: =PLOTS!$E$11/($T$9/60*2*PI())*ABS(F178)*$T$12 -> 0.002325442573 | H178: -0.0001102598487 | I178: =PLOTS!$E$11/($T$9/60*2*PI())*ABS(H178)*$T$12 -> 0.002344676785 | J178: -0.0001021729263 | K178: =PLOTS!$E$11/($T$9/60*2*PI())*ABS(J178)*$T$12 -> 0.0021727083 | L178: -0.0001030364653 | M178: =PLOTS!$E$11/($T$9/60*2*PI())*ABS(L178)*$T$12 -> 0.002191071466 | N178: -0.0002434361818 | O178: =PLOTS!$E$11/($T$9/60*2*PI())*ABS(N178)*$T$12 -> 0.005176672842 | P178: -0.0002445645448 | Q178: =PLOTS!$E$11/($T$9/60*2*PI())*ABS(P178)*$T$12 -> 0.005200667491
A179: 77.6 | B179: -0.0001793674529 | C179: =PLOTS!$E$11/($T$9/60*2*PI())*ABS(B179)*$T$12 -> 0.003814250681 | D179: -0.0001802321175 | E179: =PLOTS!$E$11/($T$9/60*2*PI())*ABS(D179)*$T$12 -> 0.003832637781 | F179: -0.0001099280177 | G179: =PLOTS!$E$11/($T$9/60*2*PI())*ABS(F179)*$T$12 -> 0.002337620396 | H179: -0.0001108301707 | I179: =PLOTS!$E$11/($T$9/60*2*PI())*ABS(H179)*$T$12 -> 0.002356804689 | J179: -0.0001030090425 | K179: =PLOTS!$E$11/($T$9/60*2*PI())*ABS(J179)*$T$12 -> 0.002190488319 | L179: -0.0001038739169 | M179: =PLOTS!$E$11/($T$9/60*2*PI())*ABS(L179)*$T$12 -> 0.002208879881 | N179: -0.0002436095746 | O179: =PLOTS!$E$11/($T$9/60*2*PI())*ABS(N179)*$T$12 -> 0.005180360041 | P179: -0.0002447414815 | Q179: =PLOTS!$E$11/($T$9/60*2*PI())*ABS(P179)*$T$12 -> 0.005204430052
A180: 77.7 | B180: -0.0001800289368 | C180: =PLOTS!$E$11/($T$9/60*2*PI())*ABS(B180)*$T$12 -> 0.003828317142 | D180: -0.0001808955256 | E180: =PLOTS!$E$11/($T$9/60*2*PI())*ABS(D180)*$T$12 -> 0.003846745161 | F180: -0.0001104902904 | G180: =PLOTS!$E$11/($T$9/60*2*PI())*ABS(F180)*$T$12 -> 0.002349577131 | H180: -0.0001113901052 | I180: =PLOTS!$E$11/($T$9/60*2*PI())*ABS(H180)*$T$12 -> 0.002368711702 | J180: -0.0001038333766 | K180: =PLOTS!$E$11/($T$9/60*2*PI())*ABS(J180)*$T$12 -> 0.002208017792 | L180: -0.000104699576 | M180: =PLOTS!$E$11/($T$9/60*2*PI())*ABS(L180)*$T$12 -> 0.002226437531 | N180: -0.0002437742214 | O180: =PLOTS!$E$11/($T$9/60*2*PI())*ABS(N180)*$T$12 -> 0.005183861257 | P180: -0.0002449096494 | Q180: =PLOTS!$E$11/($T$9/60*2*PI())*ABS(P180)*$T$12 -> 0.005208006143
A181: 77.8 | B181: -0.0001806793203 | C181: =PLOTS!$E$11/($T$9/60*2*PI())*ABS(B181)*$T$12 -> 0.003842147554 | D181: -0.0001815478199 | E181: =PLOTS!$E$11/($T$9/60*2*PI())*ABS(D181)*$T$12 -> 0.003860616206 | F181: -0.0001110422412 | G181: =PLOTS!$E$11/($T$9/60*2*PI())*ABS(F181)*$T$12 -> 0.00236131437 | H181: -0.0001119397271 | I181: =PLOTS!$E$11/($T$9/60*2*PI())*ABS(H181)*$T$12 -> 0.002380399416 | J181: -0.0001046460119 | K181: =PLOTS!$E$11/($T$9/60*2*PI())*ABS(J181)*$T$12 -> 0.002225298489 | L181: -0.0001055135261 | M181: =PLOTS!$E$11/($T$9/60*2*PI())*ABS(L181)*$T$12 -> 0.002243746188 | N181: -0.0002439301882 | O181: =PLOTS!$E$11/($T$9/60*2*PI())*ABS(N181)*$T$12 -> 0.005187177892 | P181: -0.0002450691145 | Q181: =PLOTS!$E$11/($T$9/60*2*PI())*ABS(P181)*$T$12 -> 0.005211397171
A182: 77.9 | B182: -0.0001813186829 | C182: =PLOTS!$E$11/($T$9/60*2*PI())*ABS(B182)*$T$12 -> 0.003855743607 | D182: -0.00018218908 | E182: =PLOTS!$E$11/($T$9/60*2*PI())*ABS(D182)*$T$12 -> 0.003874252609 | F182: -0.0001115839444 | G182: =PLOTS!$E$11/($T$9/60*2*PI())*ABS(F182)*$T$12 -> 0.002372833695 | H182: -0.0001124791106 | I182: =PLOTS!$E$11/($T$9/60*2*PI())*ABS(H182)*$T$12 -> 0.002391869412 | J182: -0.0001054470309 | K182: =PLOTS!$E$11/($T$9/60*2*PI())*ABS(J182)*$T$12 -> 0.002242332166 | L182: -0.0001063158498 | M182: =PLOTS!$E$11/($T$9/60*2*PI())*ABS(L182)*$T$12 -> 0.00226080761 | N182: -0.0002440775404 | O182: =PLOTS!$E$11/($T$9/60*2*PI())*ABS(N182)*$T$12 -> 0.005190311339 | P182: -0.0002452199425 | Q182: =PLOTS!$E$11/($T$9/60*2*PI())*ABS(P182)*$T$12 -> 0.00521460453
A183: 78 | B183: -0.0001819471036 | C183: =PLOTS!$E$11/($T$9/60*2*PI())*ABS(B183)*$T$12 -> 0.003869106979 | D183: -0.000182819385 | E183: =PLOTS!$E$11/($T$9/60*2*PI())*ABS(D183)*$T$12 -> 0.003887656051 | F183: -0.0001121154739 | G183: =PLOTS!$E$11/($T$9/60*2*PI())*ABS(F183)*$T$12 -> 0.002384136674 | H183: -0.0001130083295 | I183: =PLOTS!$E$11/($T$9/60*2*PI())*ABS(H183)*$T$12 -> 0.002403123258 | J183: -0.0001062365156 | K183: =PLOTS!$E$11/($T$9/60*2*PI())*ABS(J183)*$T$12 -> 0.002259120567 | L183: -0.0001071066291 | M183: =PLOTS!$E$11/($T$9/60*2*PI())*ABS(L183)*$T$12 -> 0.00227762354 | N183: -0.000244216343 | O183: =PLOTS!$E$11/($T$9/60*2*PI())*ABS(N183)*$T$12 -> 0.005193262978 | P183: -0.0002453621984 | Q183: =PLOTS!$E$11/($T$9/60*2*PI())*ABS(P183)*$T$12 -> 0.005217629604
A184: 78.1 | B184: =TAN(ASIN(($A184^2+2*B$1*B$2-B$2^2)/2/B$1/$A184)-B$3*PI()/180)/$A184 -> -0.0001825646607 | C184: =PLOTS!$E$11/($T$9/60*2*PI())*ABS(B184)*$T$12 -> 0.003882239337 | D184: -0.0001834388132 | E184: =PLOTS!$E$11/($T$9/60*2*PI())*ABS(D184)*$T$12 -> 0.003900828198 | F184: -0.0001126369028 | G184: =PLOTS!$E$11/($T$9/60*2*PI())*ABS(F184)*$T$12 -> 0.002395224866 | H184: -0.000113527457 | I184: =PLOTS!$E$11/($T$9/60*2*PI())*ABS(H184)*$T$12 -> 0.002414162509 | J184: -0.0001070145474 | K184: =PLOTS!$E$11/($T$9/60*2*PI())*ABS(J184)*$T$12 -> 0.002275665421 | L184: -0.0001078859456 | M184: =PLOTS!$E$11/($T$9/60*2*PI())*ABS(L184)*$T$12 -> 0.002294195711 | N184: -0.0002443466605 | O184: =PLOTS!$E$11/($T$9/60*2*PI())*ABS(N184)*$T$12 -> 0.005196034179 | P184: -0.0002454959469 | Q184: =PLOTS!$E$11/($T$9/60*2*PI())*ABS(P184)*$T$12 -> 0.005220473767
A185: 78.2 | B185: -0.0001831714319 | C185: =PLOTS!$E$11/($T$9/60*2*PI())*ABS(B185)*$T$12 -> 0.003895142332 | D185: -0.0001840474425 | E185: =PLOTS!$E$11/($T$9/60*2*PI())*ABS(D185)*$T$12 -> 0.003913770706 | F185: -0.0001131483039 | G185: =PLOTS!$E$11/($T$9/60*2*PI())*ABS(F185)*$T$12 -> 0.002406099815 | H185: -0.0001140365657 | I185: =PLOTS!$E$11/($T$9/60*2*PI())*ABS(H185)*$T$12 -> 0.002424988711 | J185: -0.0001077812071 | K185: =PLOTS!$E$11/($T$9/60*2*PI())*ABS(J185)*$T$12 -> 0.002291968446 | L185: -0.0001086538799 | M185: =PLOTS!$E$11/($T$9/60*2*PI())*ABS(L185)*$T$12 -> 0.002310525842 | N185: -0.0002444685567 | O185: =PLOTS!$E$11/($T$9/60*2*PI())*ABS(N185)*$T$12 -> 0.005198626304 | P185: -0.000245621252 | Q185: =PLOTS!$E$11/($T$9/60*2*PI())*ABS(P185)*$T$12 -> 0.005223138381
A186: 78.3 | B186: -0.0001837674943 | C186: =PLOTS!$E$11/($T$9/60*2*PI())*ABS(B186)*$T$12 -> 0.003907817605 | D186: -0.00018464535 | E186: =PLOTS!$E$11/($T$9/60*2*PI())*ABS(D186)*$T$12 -> 0.003926485215 | F186: -0.0001136497492 | G186: =PLOTS!$E$11/($T$9/60*2*PI())*ABS(F186)*$T$12 -> 0.002416763054 | H186: -0.0001145357277 | I186: =PLOTS!$E$11/($T$9/60*2*PI())*ABS(H186)*$T$12 -> 0.002435603395 | J186: -0.0001085365746 | K186: =PLOTS!$E$11/($T$9/60*2*PI())*ABS(J186)*$T$12 -> 0.002308031346 | L186: -0.0001094105122 | M186: =PLOTS!$E$11/($T$9/60*2*PI())*ABS(L186)*$T$12 -> 0.002326615637 | N186: -0.0002445820952 | O186: =PLOTS!$E$11/($T$9/60*2*PI())*ABS(N186)*$T$12 -> 0.005201040701 | P186: -0.0002457381774 | Q186: =PLOTS!$E$11/($T$9/60*2*PI())*ABS(P186)*$T$12 -> 0.0052256248
A187: 78.4 | B187: -0.0001843529246 | C187: =PLOTS!$E$11/($T$9/60*2*PI())*ABS(B187)*$T$12 -> 0.003920266785 | D187: -0.0001852326124 | E187: =PLOTS!$E$11/($T$9/60*2*PI())*ABS(D187)*$T$12 -> 0.003938973357 | F187: -0.0001141413104 | G187: =PLOTS!$E$11/($T$9/60*2*PI())*ABS(F187)*$T$12 -> 0.002427216107 | H187: -0.0001150250145 | I187: =PLOTS!$E$11/($T$9/60*2*PI())*ABS(H187)*$T$12 -> 0.002446008083 | J187: -0.0001092807297 | K187: =PLOTS!$E$11/($T$9/60*2*PI())*ABS(J187)*$T$12 -> 0.002323855811 | L187: -0.0001101559223 | M187: =PLOTS!$E$11/($T$9/60*2*PI())*ABS(L187)*$T$12 -> 0.00234246679 | N187: -0.0002446873389 | O187: =PLOTS!$E$11/($T$9/60*2*PI())*ABS(N187)*$T$12 -> 0.00520327871 | P187: -0.0002458467861 | Q187: =PLOTS!$E$11/($T$9/60*2*PI())*ABS(P187)*$T$12 -> 0.005227934365
A188: 78.5 | B188: -0.0001849277985 | C188: =PLOTS!$E$11/($T$9/60*2*PI())*ABS(B188)*$T$12 -> 0.003932491486 | D188: -0.0001858093058 | E188: =PLOTS!$E$11/($T$9/60*2*PI())*ABS(D188)*$T$12 -> 0.003951236747 | F188: -0.0001146230584 | G188: =PLOTS!$E$11/($T$9/60*2*PI())*ABS(F188)*$T$12 -> 0.002437460484 | H188: -0.000115504497 | I188: =PLOTS!$E$11/($T$9/60*2*PI())*ABS(H188)*$T$12 -> 0.002456204285 | J188: -0.0001100137513 | K188: =PLOTS!$E$11/($T$9/60*2*PI())*ABS(J188)*$T$12 -> 0.002339443521 | L188: -0.000110890189 | M188: =PLOTS!$E$11/($T$9/60*2*PI())*ABS(L188)*$T$12 -> 0.002358080979 | N188: -0.0002447843504 | O188: =PLOTS!$E$11/($T$9/60*2*PI())*ABS(N188)*$T$12 -> 0.005205341659 | P188: -0.0002459471407 | Q188: =PLOTS!$E$11/($T$9/60*2*PI())*ABS(P188)*$T$12 -> 0.005230068408
A189: 78.6 | B189: -0.0001854921917 | C189: =PLOTS!$E$11/($T$9/60*2*PI())*ABS(B189)*$T$12 -> 0.003944493312 | D189: -0.0001863755056 | E189: =PLOTS!$E$11/($T$9/60*2*PI())*ABS(D189)*$T$12 -> 0.003963276992 | F189: -0.0001150950638 | G189: =PLOTS!$E$11/($T$9/60*2*PI())*ABS(F189)*$T$12 -> 0.002447497684 | H189: -0.0001159742459 | I189: =PLOTS!$E$11/($T$9/60*2*PI())*ABS(H189)*$T$12 -> 0.002466193498 | J189: -0.0001107357175 | K189: =PLOTS!$E$11/($T$9/60*2*PI())*ABS(J189)*$T$12 -> 0.002354796141 | L189: -0.0001116133909 | M189: =PLOTS!$E$11/($T$9/60*2*PI())*ABS(L189)*$T$12 -> 0.002373459873 | N189: -0.0002448731915 | O189: =PLOTS!$E$11/($T$9/60*2*PI())*ABS(N189)*$T$12 -> 0.005207230867 | P189: -0.0002460393035 | Q189: =PLOTS!$E$11/($T$9/60*2*PI())*ABS(P189)*$T$12 -> 0.00523202825
A190: 78.7 | B190: -0.0001860461788 | C190: =PLOTS!$E$11/($T$9/60*2*PI())*ABS(B190)*$T$12 -> 0.003956273854 | D190: -0.0001869312868 | E190: =PLOTS!$E$11/($T$9/60*2*PI())*ABS(D190)*$T$12 -> 0.003975095684 | F190: -0.0001155573966 | G190: =PLOTS!$E$11/($T$9/60*2*PI())*ABS(F190)*$T$12 -> 0.002457329194 | H190: -0.0001164343309 | I190: =PLOTS!$E$11/($T$9/60*2*PI())*ABS(H190)*$T$12 -> 0.00247597721 | J190: -0.0001114467063 | K190: =PLOTS!$E$11/($T$9/60*2*PI())*ABS(J190)*$T$12 -> 0.002369915325 | L190: -0.0001123256056 | M190: =PLOTS!$E$11/($T$9/60*2*PI())*ABS(L190)*$T$12 -> 0.002388605127 | N190: -0.0002449539239 | O190: =PLOTS!$E$11/($T$9/60*2*PI())*ABS(N190)*$T$12 -> 0.005208947642 | P190: -0.0002461233361 | Q190: =PLOTS!$E$11/($T$9/60*2*PI())*ABS(P190)*$T$12 -> 0.005233815203
A191: 78.8 | B191: -0.0001865898342 | C191: =PLOTS!$E$11/($T$9/60*2*PI())*ABS(B191)*$T$12 -> 0.003967834691 | D191: -0.0001874767237 | E191: =PLOTS!$E$11/($T$9/60*2*PI())*ABS(D191)*$T$12 -> 0.003986694404 | F191: -0.0001160101261 | G191: =PLOTS!$E$11/($T$9/60*2*PI())*ABS(F191)*$T$12 -> 0.002466956491 | H191: -0.0001168848214 | I191: =PLOTS!$E$11/($T$9/60*2*PI())*ABS(H191)*$T$12 -> 0.002485556896 | J191: -0.0001121467948 | K191: =PLOTS!$E$11/($T$9/60*2*PI())*ABS(J191)*$T$12 -> 0.002384802714 | L191: -0.0001130269105 | M191: =PLOTS!$E$11/($T$9/60*2*PI())*ABS(L191)*$T$12 -> 0.002403518382 | N191: -0.0002450266086 | O191: =PLOTS!$E$11/($T$9/60*2*PI())*ABS(N191)*$T$12 -> 0.005210493283 | P191: -0.0002461992996 | Q191: =PLOTS!$E$11/($T$9/60*2*PI())*ABS(P191)*$T$12 -> 0.005235430568
A192: 78.9 | B192: -0.0001871232316 | C192: =PLOTS!$E$11/($T$9/60*2*PI())*ABS(B192)*$T$12 -> 0.003979177392 | D192: -0.00018801189 | E192: =PLOTS!$E$11/($T$9/60*2*PI())*ABS(D192)*$T$12 -> 0.003998074722 | F192: -0.0001164533213 | G192: =PLOTS!$E$11/($T$9/60*2*PI())*ABS(F192)*$T$12 -> 0.002476381041 | H192: -0.0001173257864 | I192: =PLOTS!$E$11/($T$9/60*2*PI())*ABS(H192)*$T$12 -> 0.00249493402 | J192: -0.0001128360596 | K192: =PLOTS!$E$11/($T$9/60*2*PI())*ABS(J192)*$T$12 -> 0.002399459936 | L192: -0.0001137173821 | M192: =PLOTS!$E$11/($T$9/60*2*PI())*ABS(L192)*$T$12 -> 0.002418201268 | N192: -0.0002450913062 | O192: =PLOTS!$E$11/($T$9/60*2*PI())*ABS(N192)*$T$12 -> 0.005211869078 | P192: -0.0002462672548 | Q192: =PLOTS!$E$11/($T$9/60*2*PI())*ABS(P192)*$T$12 -> 0.005236875637
A193: 79 | B193: -0.0001876464441 | C193: =PLOTS!$E$11/($T$9/60*2*PI())*ABS(B193)*$T$12 -> 0.003990303511 | D193: -0.0001885368591 | E193: =PLOTS!$E$11/($T$9/60*2*PI())*ABS(D193)*$T$12 -> 0.004009238195 | F193: -0.0001168870505 | G193: =PLOTS!$E$11/($T$9/60*2*PI())*ABS(F193)*$T$12 -> 0.002485604299 | H193: -0.0001177572941 | I193: =PLOTS!$E$11/($T$9/60*2*PI())*ABS(H193)*$T$12 -> 0.002504110037 | J193: -0.0001135145766 | K193: =PLOTS!$E$11/($T$9/60*2*PI())*ABS(J193)*$T$12 -> 0.002413888608 | L193: -0.0001143970966 | M193: =PLOTS!$E$11/($T$9/60*2*PI())*ABS(L193)*$T$12 -> 0.002432655404 | N193: -0.0002451480769 | O193: =PLOTS!$E$11/($T$9/60*2*PI())*ABS(N193)*$T$12 -> 0.005213076307 | P193: -0.000246327262 | Q193: =PLOTS!$E$11/($T$9/60*2*PI())*ABS(P193)*$T$12 -> 0.005238151691
A194: 79.1 | B194: -0.0001881595443 | C194: =PLOTS!$E$11/($T$9/60*2*PI())*ABS(B194)*$T$12 -> 0.004001214592 | D194: -0.0001890517036 | E194: =PLOTS!$E$11/($T$9/60*2*PI())*ABS(D194)*$T$12 -> 0.004020186367 | F194: -0.0001173113818 | G194: =PLOTS!$E$11/($T$9/60*2*PI())*ABS(F194)*$T$12 -> 0.002494627707 | H194: -0.0001181794124 | I194: =PLOTS!$E$11/($T$9/60*2*PI())*ABS(H194)*$T$12 -> 0.002513086387 | J194: -0.0001141824214 | K194: =PLOTS!$E$11/($T$9/60*2*PI())*ABS(J194)*$T$12 -> 0.002428090334 | L194: -0.0001150661295 | M194: =PLOTS!$E$11/($T$9/60*2*PI())*ABS(L194)*$T$12 -> 0.002446882395 | N194: -0.0002451969803 | O194: =PLOTS!$E$11/($T$9/60*2*PI())*ABS(N194)*$T$12 -> 0.005214116238 | P194: -0.000246379381 | Q194: =PLOTS!$E$11/($T$9/60*2*PI())*ABS(P194)*$T$12 -> 0.005239260002
A195: 79.2 | B195: -0.0001886626043 | C195: =PLOTS!$E$11/($T$9/60*2*PI())*ABS(B195)*$T$12 -> 0.004011912167 | D195: -0.0001895564956 | E195: =PLOTS!$E$11/($T$9/60*2*PI())*ABS(D195)*$T$12 -> 0.004030920774 | F195: -0.0001177263823 | G195: =PLOTS!$E$11/($T$9/60*2*PI())*ABS(F195)*$T$12 -> 0.002503452698 | H195: -0.0001185922087 | I195: =PLOTS!$E$11/($T$9/60*2*PI())*ABS(H195)*$T$12 -> 0.002521864504 | J195: -0.0001148396689 | K195: =PLOTS!$E$11/($T$9/60*2*PI())*ABS(J195)*$T$12 -> 0.002442066707 | L195: -0.0001157245557 | M195: =PLOTS!$E$11/($T$9/60*2*PI())*ABS(L195)*$T$12 -> 0.002460883835 | N195: -0.0002452380756 | O195: =PLOTS!$E$11/($T$9/60*2*PI())*ABS(N195)*$T$12 -> 0.00521499013 | P195: -0.0002464236711 | Q195: =PLOTS!$E$11/($T$9/60*2*PI())*ABS(P195)*$T$12 -> 0.005240201832
A196: 79.3 | B196: -0.0001891556956 | C196: =PLOTS!$E$11/($T$9/60*2*PI())*ABS(B196)*$T$12 -> 0.004022397758 | D196: -0.0001900513067 | E196: =PLOTS!$E$11/($T$9/60*2*PI())*ABS(D196)*$T$12 -> 0.004041442938 | F196: -0.0001181321191 | G196: =PLOTS!$E$11/($T$9/60*2*PI())*ABS(F196)*$T$12 -> 0.002512080694 | H196: -0.0001189957497 | I196: =PLOTS!$E$11/($T$9/60*2*PI())*ABS(H196)*$T$12 -> 0.002530445808 | J196: -0.0001154863932 | K196: =PLOTS!$E$11/($T$9/60*2*PI())*ABS(J196)*$T$12 -> 0.002455819308 | L196: -0.0001163724496 | M196: =PLOTS!$E$11/($T$9/60*2*PI())*ABS(L196)*$T$12 -> 0.002474661305 | N196: -0.0002452714216 | O196: =PLOTS!$E$11/($T$9/60*2*PI())*ABS(N196)*$T$12 -> 0.005215699233 | P196: -0.0002464601913 | Q196: =PLOTS!$E$11/($T$9/60*2*PI())*ABS(P196)*$T$12 -> 0.005240978433
A197: 79.4 | B197: -0.0001896388891 | C197: =PLOTS!$E$11/($T$9/60*2*PI())*ABS(B197)*$T$12 -> 0.004032672874 | D197: -0.000190536208 | E197: =PLOTS!$E$11/($T$9/60*2*PI())*ABS(D197)*$T$12 -> 0.004051754369 | F197: -0.0001185286584 | G197: =PLOTS!$E$11/($T$9/60*2*PI())*ABS(F197)*$T$12 -> 0.002520513106 | H197: -0.0001193901018 | I197: =PLOTS!$E$11/($T$9/60*2*PI())*ABS(H197)*$T$12 -> 0.002538831709 | J197: -0.0001161226683 | K197: =PLOTS!$E$11/($T$9/60*2*PI())*ABS(J197)*$T$12 -> 0.002469349704 | L197: -0.0001170098851 | M197: =PLOTS!$E$11/($T$9/60*2*PI())*ABS(L197)*$T$12 -> 0.002488216376 | N197: -0.0002452970766 | O197: =PLOTS!$E$11/($T$9/60*2*PI())*ABS(N197)*$T$12 -> 0.005216244788 | P197: -0.0002464889999 | Q197: =PLOTS!$E$11/($T$9/60*2*PI())*ABS(P197)*$T$12 -> 0.005241591048
A198: 79.5 | B198: -0.0001901122554 | C198: =PLOTS!$E$11/($T$9/60*2*PI())*ABS(B198)*$T$12 -> 0.004042739013 | D198: -0.00019101127 | E198: =PLOTS!$E$11/($T$9/60*2*PI())*ABS(D198)*$T$12 -> 0.004061856568 | F198: -0.0001189160661 | G198: =PLOTS!$E$11/($T$9/60*2*PI())*ABS(F198)*$T$12 -> 0.002528751335 | H198: -0.0001197753308 | I198: =PLOTS!$E$11/($T$9/60*2*PI())*ABS(H198)*$T$12 -> 0.002547023607 | J198: -0.0001167485674 | K198: =PLOTS!$E$11/($T$9/60*2*PI())*ABS(J198)*$T$12 -> 0.002482659453 | L198: -0.0001176369353 | M198: =PLOTS!$E$11/($T$9/60*2*PI())*ABS(L198)*$T$12 -> 0.002501550606 | N198: =TAN(ASIN(($A198^2+2*N$1*N$2-N$2^2)/2/N$1/$A198)-N$3*PI()/180)/$A198 -> -0.0002453150985 | O198: =PLOTS!$E$11/($T$9/60*2*PI())*ABS(N198)*$T$12 -> 0.005216628024 | P198: =TAN(ASIN(($A198^2+2*P$1*P$2-P$2^2)/2/P$1/$A198)-P$3*PI()/180)/$A198 -> -0.000246510155 | Q198: =PLOTS!$E$11/($T$9/60*2*PI())*ABS(P198)*$T$12 -> 0.005242040911
A199: 79.6 | B199: -0.0001905758644 | C199: =PLOTS!$E$11/($T$9/60*2*PI())*ABS(B199)*$T$12 -> 0.004052597662 | D199: -0.0001914765628 | E199: =PLOTS!$E$11/($T$9/60*2*PI())*ABS(D199)*$T$12 -> 0.004071751023 | F199: -0.0001192944076 | G199: =PLOTS!$E$11/($T$9/60*2*PI())*ABS(F199)*$T$12 -> 0.002536796772 | H199: -0.000120151502 | I199: =PLOTS!$E$11/($T$9/60*2*PI())*ABS(H199)*$T$12 -> 0.002555022892 | J199: -0.000117364163 | K199: =PLOTS!$E$11/($T$9/60*2*PI())*ABS(J199)*$T$12 -> 0.002495750101 | L199: -0.0001182536731 | M199: =PLOTS!$E$11/($T$9/60*2*PI())*ABS(L199)*$T$12 -> 0.002514665542 | N199: -0.0002453255448 | O199: =PLOTS!$E$11/($T$9/60*2*PI())*ABS(N199)*$T$12 -> 0.005216850164 | P199: -0.0002465237141 | Q199: =PLOTS!$E$11/($T$9/60*2*PI())*ABS(P199)*$T$12 -> 0.005242329245
A200: 79.7 | B200: -0.0001910297853 | C200: =PLOTS!$E$11/($T$9/60*2*PI())*ABS(B200)*$T$12 -> 0.004062250296 | D200: -0.0001919321557 | E200: =PLOTS!$E$11/($T$9/60*2*PI())*ABS(D200)*$T$12 -> 0.004081439211 | F200: -0.0001196637478 | G200: =PLOTS!$E$11/($T$9/60*2*PI())*ABS(F200)*$T$12 -> 0.002544650795 | H200: -0.0001205186802 | I200: =PLOTS!$E$11/($T$9/60*2*PI())*ABS(H200)*$T$12 -> 0.002562830941 | J200: -0.0001179695275 | K200: =PLOTS!$E$11/($T$9/60*2*PI())*ABS(J200)*$T$12 -> 0.002508623182 | L200: -0.0001188601707 | M200: =PLOTS!$E$11/($T$9/60*2*PI())*ABS(L200)*$T$12 -> 0.002527562719 | N200: -0.0002453284724 | O200: =PLOTS!$E$11/($T$9/60*2*PI())*ABS(N200)*$T$12 -> 0.005216912419 | P200: -0.0002465297343 | Q200: =PLOTS!$E$11/($T$9/60*2*PI())*ABS(P200)*$T$12 -> 0.005242457266
... 664 more rows
